{"text_format":"3","workbook":"xlsx","n_sheets":12,"sheets":["OCA","ŞUB","MAR","NİS","MAY","HAZ","TEM","AĞU","EYL","EKİ","KAS","ARA"],"not_rendered":{"defined_names":40},"read":"whole","date_system":"1900"}

{"sheet":"OCA","index":0,"n_rows":20,"n_cols":9,"rows_kept":20,"merged":[[16,2,17,2],[16,3,17,3],[17,4,19,8]]}
[null,"OCA","PAZ",{"$f":"UPPER(TEXT(D3,\"ggg\"))","v":"PZT"},"SAL","ÇAR","PER","CUM","CMT"]
[null,{"$f":"YEAR(TODAY())","v":2018}]
[null,null,{"$f":"GünlerVeHaftalar+DATE(TakvimYılı,1,1)-WEEKDAY(DATE(TakvimYılı,1,1),(HaftaBaşlangıcı=\"PZT\")+1)+1","v":"2017-12-31"},"2018-01-01","2018-01-02","2018-01-03","2018-01-04","2018-01-05","2018-01-06"]
[null,null,{"$f":"IF(DAY(TakvimGünü)=1,CONCATENATE(\"Hafta \",WEEKNUM(TakvimGünü),\"/Gün \",TakvimGünü-DATE(YEAR(TakvimGünü),1,0)),CONCATENATE(\"Gün \",TakvimGünü-DATE(YEAR(TakvimGünü),1,0)))","v":"Gün 365"},"Hafta 1/Gün 1","Gün 2","Gün 3","Gün 4","Gün 5","Gün 6"]
[]
[null,null,{"$f":"GünlerVeHaftalar+DATE(TakvimYılı,1,1)-WEEKDAY(DATE(TakvimYılı,1,1),(HaftaBaşlangıcı=\"PZT\")+1)+8","v":"2018-01-07"},"2018-01-08","2018-01-09","2018-01-10","2018-01-11","2018-01-12","2018-01-13"]
[null,null,{"$f":"IF(WEEKDAY(TakvimGünü)=HaftaBaşlangıçDeğeri,CONCATENATE(\"Hafta \",WEEKNUM(TakvimGünü),\"/Gün \",TakvimGünü-DATE(YEAR(TakvimGünü),1,0)),CONCATENATE(\"Gün \",TakvimGünü-DATE(YEAR(TakvimGünü),1,0)))","v":"Hafta 2/Gün 7"},{"$f":"IF(WEEKDAY(TakvimGünü)=HaftaBaşlangıçDeğeri,CONCATENATE(\"Hafta \",WEEKNUM(TakvimGünü),\"/Gün \",TakvimGünü-DATE(YEAR(TakvimGünü),1,0)),CONCATENATE(\"Gün \",TakvimGünü-DATE(YEAR(TakvimGünü),1,0)))","v":"Gün 8"},{"$f":"IF(WEEKDAY(TakvimGünü)=HaftaBaşlangıçDeğeri,CONCATENATE(\"Hafta \",WEEKNUM(TakvimGünü),\"/Gün \",TakvimGünü-DATE(YEAR(TakvimGünü),1,0)),CONCATENATE(\"Gün \",TakvimGünü-DATE(YEAR(TakvimGünü),1,0)))","v":"Gün 9"},{"$f":"IF(WEEKDAY(TakvimGünü)=HaftaBaşlangıçDeğeri,CONCATENATE(\"Hafta \",WEEKNUM(TakvimGünü),\"/Gün \",TakvimGünü-DATE(YEAR(TakvimGünü),1,0)),CONCATENATE(\"Gün \",TakvimGünü-DATE(YEAR(TakvimGünü),1,0)))","v":"Gün 10"},{"$f":"IF(WEEKDAY(TakvimGünü)=HaftaBaşlangıçDeğeri,CONCATENATE(\"Hafta \",WEEKNUM(TakvimGünü),\"/Gün \",TakvimGünü-DATE(YEAR(TakvimGünü),1,0)),CONCATENATE(\"Gün \",TakvimGünü-DATE(YEAR(TakvimGünü),1,0)))","v":"Gün 11"},{"$f":"IF(WEEKDAY(TakvimGünü)=HaftaBaşlangıçDeğeri,CONCATENATE(\"Hafta \",WEEKNUM(TakvimGünü),\"/Gün \",TakvimGünü-DATE(YEAR(TakvimGünü),1,0)),CONCATENATE(\"Gün \",TakvimGünü-DATE(YEAR(TakvimGünü),1,0)))","v":"Gün 12"},{"$f":"IF(WEEKDAY(TakvimGünü)=HaftaBaşlangıçDeğeri,CONCATENATE(\"Hafta \",WEEKNUM(TakvimGünü),\"/Gün \",TakvimGünü-DATE(YEAR(TakvimGünü),1,0)),CONCATENATE(\"Gün \",TakvimGünü-DATE(YEAR(TakvimGünü),1,0)))","v":"Gün 13"}]
[]
[null,null,{"$f":"GünlerVeHaftalar+DATE(TakvimYılı,1,1)-WEEKDAY(DATE(TakvimYılı,1,1),(HaftaBaşlangıcı=\"PZT\")+1)+15","v":"2018-01-14"},"2018-01-15","2018-01-16","2018-01-17","2018-01-18","2018-01-19","2018-01-20"]
[null,null,{"$f":"IF(WEEKDAY(TakvimGünü)=HaftaBaşlangıçDeğeri,CONCATENATE(\"Hafta \",WEEKNUM(TakvimGünü),\"/Gün \",TakvimGünü-DATE(YEAR(TakvimGünü),1,0)),CONCATENATE(\"Gün \",TakvimGünü-DATE(YEAR(TakvimGünü),1,0)))","v":"Hafta 3/Gün 14"},{"$f":"IF(WEEKDAY(TakvimGünü)=HaftaBaşlangıçDeğeri,CONCATENATE(\"Hafta \",WEEKNUM(TakvimGünü),\"/Gün \",TakvimGünü-DATE(YEAR(TakvimGünü),1,0)),CONCATENATE(\"Gün \",TakvimGünü-DATE(YEAR(TakvimGünü),1,0)))","v":"Gün 15"},{"$f":"IF(WEEKDAY(TakvimGünü)=HaftaBaşlangıçDeğeri,CONCATENATE(\"Hafta \",WEEKNUM(TakvimGünü),\"/Gün \",TakvimGünü-DATE(YEAR(TakvimGünü),1,0)),CONCATENATE(\"Gün \",TakvimGünü-DATE(YEAR(TakvimGünü),1,0)))","v":"Gün 16"},{"$f":"IF(WEEKDAY(TakvimGünü)=HaftaBaşlangıçDeğeri,CONCATENATE(\"Hafta \",WEEKNUM(TakvimGünü),\"/Gün \",TakvimGünü-DATE(YEAR(TakvimGünü),1,0)),CONCATENATE(\"Gün \",TakvimGünü-DATE(YEAR(TakvimGünü),1,0)))","v":"Gün 17"},{"$f":"IF(WEEKDAY(TakvimGünü)=HaftaBaşlangıçDeğeri,CONCATENATE(\"Hafta \",WEEKNUM(TakvimGünü),\"/Gün \",TakvimGünü-DATE(YEAR(TakvimGünü),1,0)),CONCATENATE(\"Gün \",TakvimGünü-DATE(YEAR(TakvimGünü),1,0)))","v":"Gün 18"},{"$f":"IF(WEEKDAY(TakvimGünü)=HaftaBaşlangıçDeğeri,CONCATENATE(\"Hafta \",WEEKNUM(TakvimGünü),\"/Gün \",TakvimGünü-DATE(YEAR(TakvimGünü),1,0)),CONCATENATE(\"Gün \",TakvimGünü-DATE(YEAR(TakvimGünü),1,0)))","v":"Gün 19"},{"$f":"IF(WEEKDAY(TakvimGünü)=HaftaBaşlangıçDeğeri,CONCATENATE(\"Hafta \",WEEKNUM(TakvimGünü),\"/Gün \",TakvimGünü-DATE(YEAR(TakvimGünü),1,0)),CONCATENATE(\"Gün \",TakvimGünü-DATE(YEAR(TakvimGünü),1,0)))","v":"Gün 20"}]
[]
[null,null,{"$f":"GünlerVeHaftalar+DATE(TakvimYılı,1,1)-WEEKDAY(DATE(TakvimYılı,1,1),(HaftaBaşlangıcı=\"PZT\")+1)+22","v":"2018-01-21"},"2018-01-22","2018-01-23","2018-01-24","2018-01-25","2018-01-26","2018-01-27"]
[null,null,{"$f":"IF(WEEKDAY(TakvimGünü)=HaftaBaşlangıçDeğeri,CONCATENATE(\"Hafta \",WEEKNUM(TakvimGünü),\"/Gün \",TakvimGünü-DATE(YEAR(TakvimGünü),1,0)),CONCATENATE(\"Gün \",TakvimGünü-DATE(YEAR(TakvimGünü),1,0)))","v":"Hafta 4/Gün 21"},{"$f":"IF(WEEKDAY(TakvimGünü)=HaftaBaşlangıçDeğeri,CONCATENATE(\"Hafta \",WEEKNUM(TakvimGünü),\"/Gün \",TakvimGünü-DATE(YEAR(TakvimGünü),1,0)),CONCATENATE(\"Gün \",TakvimGünü-DATE(YEAR(TakvimGünü),1,0)))","v":"Gün 22"},{"$f":"IF(WEEKDAY(TakvimGünü)=HaftaBaşlangıçDeğeri,CONCATENATE(\"Hafta \",WEEKNUM(TakvimGünü),\"/Gün \",TakvimGünü-DATE(YEAR(TakvimGünü),1,0)),CONCATENATE(\"Gün \",TakvimGünü-DATE(YEAR(TakvimGünü),1,0)))","v":"Gün 23"},{"$f":"IF(WEEKDAY(TakvimGünü)=HaftaBaşlangıçDeğeri,CONCATENATE(\"Hafta \",WEEKNUM(TakvimGünü),\"/Gün \",TakvimGünü-DATE(YEAR(TakvimGünü),1,0)),CONCATENATE(\"Gün \",TakvimGünü-DATE(YEAR(TakvimGünü),1,0)))","v":"Gün 24"},{"$f":"IF(WEEKDAY(TakvimGünü)=HaftaBaşlangıçDeğeri,CONCATENATE(\"Hafta \",WEEKNUM(TakvimGünü),\"/Gün \",TakvimGünü-DATE(YEAR(TakvimGünü),1,0)),CONCATENATE(\"Gün \",TakvimGünü-DATE(YEAR(TakvimGünü),1,0)))","v":"Gün 25"},{"$f":"IF(WEEKDAY(TakvimGünü)=HaftaBaşlangıçDeğeri,CONCATENATE(\"Hafta \",WEEKNUM(TakvimGünü),\"/Gün \",TakvimGünü-DATE(YEAR(TakvimGünü),1,0)),CONCATENATE(\"Gün \",TakvimGünü-DATE(YEAR(TakvimGünü),1,0)))","v":"Gün 26"},{"$f":"IF(WEEKDAY(TakvimGünü)=HaftaBaşlangıçDeğeri,CONCATENATE(\"Hafta \",WEEKNUM(TakvimGünü),\"/Gün \",TakvimGünü-DATE(YEAR(TakvimGünü),1,0)),CONCATENATE(\"Gün \",TakvimGünü-DATE(YEAR(TakvimGünü),1,0)))","v":"Gün 27"}]
[]
[null,null,{"$f":"GünlerVeHaftalar+DATE(TakvimYılı,1,1)-WEEKDAY(DATE(TakvimYılı,1,1),(HaftaBaşlangıcı=\"PZT\")+1)+29","v":"2018-01-28"},"2018-01-29","2018-01-30","2018-01-31","2018-02-01","2018-02-02","2018-02-03"]
[null,null,{"$f":"IF(WEEKDAY(TakvimGünü)=HaftaBaşlangıçDeğeri,CONCATENATE(\"Hafta \",WEEKNUM(TakvimGünü),\"/Gün \",TakvimGünü-DATE(YEAR(TakvimGünü),1,0)),CONCATENATE(\"Gün \",TakvimGünü-DATE(YEAR(TakvimGünü),1,0)))","v":"Hafta 5/Gün 28"},{"$f":"IF(WEEKDAY(TakvimGünü)=HaftaBaşlangıçDeğeri,CONCATENATE(\"Hafta \",WEEKNUM(TakvimGünü),\"/Gün \",TakvimGünü-DATE(YEAR(TakvimGünü),1,0)),CONCATENATE(\"Gün \",TakvimGünü-DATE(YEAR(TakvimGünü),1,0)))","v":"Gün 29"},{"$f":"IF(WEEKDAY(TakvimGünü)=HaftaBaşlangıçDeğeri,CONCATENATE(\"Hafta \",WEEKNUM(TakvimGünü),\"/Gün \",TakvimGünü-DATE(YEAR(TakvimGünü),1,0)),CONCATENATE(\"Gün \",TakvimGünü-DATE(YEAR(TakvimGünü),1,0)))","v":"Gün 30"},{"$f":"IF(WEEKDAY(TakvimGünü)=HaftaBaşlangıçDeğeri,CONCATENATE(\"Hafta \",WEEKNUM(TakvimGünü),\"/Gün \",TakvimGünü-DATE(YEAR(TakvimGünü),1,0)),CONCATENATE(\"Gün \",TakvimGünü-DATE(YEAR(TakvimGünü),1,0)))","v":"Gün 31"},{"$f":"IF(WEEKDAY(TakvimGünü)=HaftaBaşlangıçDeğeri,CONCATENATE(\"Hafta \",WEEKNUM(TakvimGünü),\"/Gün \",TakvimGünü-DATE(YEAR(TakvimGünü),1,0)),CONCATENATE(\"Gün \",TakvimGünü-DATE(YEAR(TakvimGünü),1,0)))","v":"Gün 32"},{"$f":"IF(WEEKDAY(TakvimGünü)=HaftaBaşlangıçDeğeri,CONCATENATE(\"Hafta \",WEEKNUM(TakvimGünü),\"/Gün \",TakvimGünü-DATE(YEAR(TakvimGünü),1,0)),CONCATENATE(\"Gün \",TakvimGünü-DATE(YEAR(TakvimGünü),1,0)))","v":"Gün 33"},{"$f":"IF(WEEKDAY(TakvimGünü)=HaftaBaşlangıçDeğeri,CONCATENATE(\"Hafta \",WEEKNUM(TakvimGünü),\"/Gün \",TakvimGünü-DATE(YEAR(TakvimGünü),1,0)),CONCATENATE(\"Gün \",TakvimGünü-DATE(YEAR(TakvimGünü),1,0)))","v":"Gün 34"}]
[{"$nulls":4},"NOTLAR"]
[]
[null,null,{"$f":"GünlerVeHaftalar+DATE(TakvimYılı,1,1)-WEEKDAY(DATE(TakvimYılı,1,1),(HaftaBaşlangıcı=\"PZT\")+1)+36","v":"2018-02-04"},"2018-02-05"]
[null,null,{"$f":"IF(WEEKDAY(TakvimGünü)=HaftaBaşlangıçDeğeri,CONCATENATE(\"Hafta \",WEEKNUM(TakvimGünü),\"/Gün \",TakvimGünü-DATE(YEAR(TakvimGünü),1,0)),CONCATENATE(\"Gün \",TakvimGünü-DATE(YEAR(TakvimGünü),1,0)))","v":"Hafta 6/Gün 35"},{"$f":"IF(WEEKDAY(TakvimGünü)=HaftaBaşlangıçDeğeri,CONCATENATE(\"Hafta \",WEEKNUM(TakvimGünü),\"/Gün \",TakvimGünü-DATE(YEAR(TakvimGünü),1,0)),CONCATENATE(\"Gün \",TakvimGünü-DATE(YEAR(TakvimGünü),1,0)))","v":"Gün 36"}]

{"sheet":"ŞUB","index":1,"n_rows":20,"n_cols":9,"rows_kept":20,"merged":[[16,2,17,2],[17,4,19,8]]}
[null,"ŞUB",{"$f":"UPPER(TEXT(HaftaBaşlangıcı,\"ddd\"))","v":"PAZ"},{"$f":"UPPER(TEXT(D3,\"ggg\"))","v":"PZT"},"SAL","ÇAR","PER","CUM","CMT"]
[null,{"$f":"TakvimYılı","v":2018}]
[null,null,{"$f":"GünlerVeHaftalar+DATE(TakvimYılı,2,1)-WEEKDAY(DATE(TakvimYılı,2,1),(HaftaBaşlangıcı=\"PZT\")+1)+1","v":"2018-01-28"},"2018-01-29","2018-01-30","2018-01-31","2018-02-01","2018-02-02","2018-02-03"]
[null,null,{"$f":"IF(DAY(TakvimGünü)=1,CONCATENATE(\"Hafta \",WEEKNUM(TakvimGünü),\"/Gün \",TakvimGünü-DATE(YEAR(TakvimGünü),1,0)),CONCATENATE(\"Gün \",TakvimGünü-DATE(YEAR(TakvimGünü),1,0)))","v":"Gün 28"},{"$f":"IF(DAY(TakvimGünü)=1,CONCATENATE(\"Hafta \",WEEKNUM(TakvimGünü),\"/Gün \",TakvimGünü-DATE(YEAR(TakvimGünü),1,0)),CONCATENATE(\"Gün \",TakvimGünü-DATE(YEAR(TakvimGünü),1,0)))","v":"Gün 29"},{"$f":"IF(DAY(TakvimGünü)=1,CONCATENATE(\"Hafta \",WEEKNUM(TakvimGünü),\"/Gün \",TakvimGünü-DATE(YEAR(TakvimGünü),1,0)),CONCATENATE(\"Gün \",TakvimGünü-DATE(YEAR(TakvimGünü),1,0)))","v":"Gün 30"},{"$f":"IF(DAY(TakvimGünü)=1,CONCATENATE(\"Hafta \",WEEKNUM(TakvimGünü),\"/Gün \",TakvimGünü-DATE(YEAR(TakvimGünü),1,0)),CONCATENATE(\"Gün \",TakvimGünü-DATE(YEAR(TakvimGünü),1,0)))","v":"Gün 31"},{"$f":"IF(DAY(TakvimGünü)=1,CONCATENATE(\"Hafta \",WEEKNUM(TakvimGünü),\"/Gün \",TakvimGünü-DATE(YEAR(TakvimGünü),1,0)),CONCATENATE(\"Gün \",TakvimGünü-DATE(YEAR(TakvimGünü),1,0)))","v":"Hafta 5/Gün 32"},{"$f":"IF(DAY(TakvimGünü)=1,CONCATENATE(\"Hafta \",WEEKNUM(TakvimGünü),\"/Gün \",TakvimGünü-DATE(YEAR(TakvimGünü),1,0)),CONCATENATE(\"Gün \",TakvimGünü-DATE(YEAR(TakvimGünü),1,0)))","v":"Gün 33"},{"$f":"IF(DAY(TakvimGünü)=1,CONCATENATE(\"Hafta \",WEEKNUM(TakvimGünü),\"/Gün \",TakvimGünü-DATE(YEAR(TakvimGünü),1,0)),CONCATENATE(\"Gün \",TakvimGünü-DATE(YEAR(TakvimGünü),1,0)))","v":"Gün 34"}]
[]
[null,null,{"$f":"GünlerVeHaftalar+DATE(TakvimYılı,2,1)-WEEKDAY(DATE(TakvimYılı,2,1),(HaftaBaşlangıcı=\"PZT\")+1)+8","v":"2018-02-04"},"2018-02-05","2018-02-06","2018-02-07","2018-02-08","2018-02-09","2018-02-10"]
[null,null,{"$f":"IF(WEEKDAY(TakvimGünü)=HaftaBaşlangıçDeğeri,CONCATENATE(\"Hafta \",WEEKNUM(TakvimGünü),\"/Gün \",TakvimGünü-DATE(YEAR(TakvimGünü),1,0)),CONCATENATE(\"Gün \",TakvimGünü-DATE(YEAR(TakvimGünü),1,0)))","v":"Hafta 6/Gün 35"},{"$f":"IF(WEEKDAY(TakvimGünü)=HaftaBaşlangıçDeğeri,CONCATENATE(\"Hafta \",WEEKNUM(TakvimGünü),\"/Gün \",TakvimGünü-DATE(YEAR(TakvimGünü),1,0)),CONCATENATE(\"Gün \",TakvimGünü-DATE(YEAR(TakvimGünü),1,0)))","v":"Gün 36"},{"$f":"IF(WEEKDAY(TakvimGünü)=HaftaBaşlangıçDeğeri,CONCATENATE(\"Hafta \",WEEKNUM(TakvimGünü),\"/Gün \",TakvimGünü-DATE(YEAR(TakvimGünü),1,0)),CONCATENATE(\"Gün \",TakvimGünü-DATE(YEAR(TakvimGünü),1,0)))","v":"Gün 37"},{"$f":"IF(WEEKDAY(TakvimGünü)=HaftaBaşlangıçDeğeri,CONCATENATE(\"Hafta \",WEEKNUM(TakvimGünü),\"/Gün \",TakvimGünü-DATE(YEAR(TakvimGünü),1,0)),CONCATENATE(\"Gün \",TakvimGünü-DATE(YEAR(TakvimGünü),1,0)))","v":"Gün 38"},{"$f":"IF(WEEKDAY(TakvimGünü)=HaftaBaşlangıçDeğeri,CONCATENATE(\"Hafta \",WEEKNUM(TakvimGünü),\"/Gün \",TakvimGünü-DATE(YEAR(TakvimGünü),1,0)),CONCATENATE(\"Gün \",TakvimGünü-DATE(YEAR(TakvimGünü),1,0)))","v":"Gün 39"},{"$f":"IF(WEEKDAY(TakvimGünü)=HaftaBaşlangıçDeğeri,CONCATENATE(\"Hafta \",WEEKNUM(TakvimGünü),\"/Gün \",TakvimGünü-DATE(YEAR(TakvimGünü),1,0)),CONCATENATE(\"Gün \",TakvimGünü-DATE(YEAR(TakvimGünü),1,0)))","v":"Gün 40"},{"$f":"IF(WEEKDAY(TakvimGünü)=HaftaBaşlangıçDeğeri,CONCATENATE(\"Hafta \",WEEKNUM(TakvimGünü),\"/Gün \",TakvimGünü-DATE(YEAR(TakvimGünü),1,0)),CONCATENATE(\"Gün \",TakvimGünü-DATE(YEAR(TakvimGünü),1,0)))","v":"Gün 41"}]
[]
[null,null,{"$f":"GünlerVeHaftalar+DATE(TakvimYılı,2,1)-WEEKDAY(DATE(TakvimYılı,2,1),(HaftaBaşlangıcı=\"PZT\")+1)+15","v":"2018-02-11"},"2018-02-12","2018-02-13","2018-02-14","2018-02-15","2018-02-16","2018-02-17"]
[null,null,{"$f":"IF(WEEKDAY(TakvimGünü)=HaftaBaşlangıçDeğeri,CONCATENATE(\"Hafta \",WEEKNUM(TakvimGünü),\"/Gün \",TakvimGünü-DATE(YEAR(TakvimGünü),1,0)),CONCATENATE(\"Gün \",TakvimGünü-DATE(YEAR(TakvimGünü),1,0)))","v":"Hafta 7/Gün 42"},{"$f":"IF(WEEKDAY(TakvimGünü)=HaftaBaşlangıçDeğeri,CONCATENATE(\"Hafta \",WEEKNUM(TakvimGünü),\"/Gün \",TakvimGünü-DATE(YEAR(TakvimGünü),1,0)),CONCATENATE(\"Gün \",TakvimGünü-DATE(YEAR(TakvimGünü),1,0)))","v":"Gün 43"},{"$f":"IF(WEEKDAY(TakvimGünü)=HaftaBaşlangıçDeğeri,CONCATENATE(\"Hafta \",WEEKNUM(TakvimGünü),\"/Gün \",TakvimGünü-DATE(YEAR(TakvimGünü),1,0)),CONCATENATE(\"Gün \",TakvimGünü-DATE(YEAR(TakvimGünü),1,0)))","v":"Gün 44"},{"$f":"IF(WEEKDAY(TakvimGünü)=HaftaBaşlangıçDeğeri,CONCATENATE(\"Hafta \",WEEKNUM(TakvimGünü),\"/Gün \",TakvimGünü-DATE(YEAR(TakvimGünü),1,0)),CONCATENATE(\"Gün \",TakvimGünü-DATE(YEAR(TakvimGünü),1,0)))","v":"Gün 45"},{"$f":"IF(WEEKDAY(TakvimGünü)=HaftaBaşlangıçDeğeri,CONCATENATE(\"Hafta \",WEEKNUM(TakvimGünü),\"/Gün \",TakvimGünü-DATE(YEAR(TakvimGünü),1,0)),CONCATENATE(\"Gün \",TakvimGünü-DATE(YEAR(TakvimGünü),1,0)))","v":"Gün 46"},{"$f":"IF(WEEKDAY(TakvimGünü)=HaftaBaşlangıçDeğeri,CONCATENATE(\"Hafta \",WEEKNUM(TakvimGünü),\"/Gün \",TakvimGünü-DATE(YEAR(TakvimGünü),1,0)),CONCATENATE(\"Gün \",TakvimGünü-DATE(YEAR(TakvimGünü),1,0)))","v":"Gün 47"},{"$f":"IF(WEEKDAY(TakvimGünü)=HaftaBaşlangıçDeğeri,CONCATENATE(\"Hafta \",WEEKNUM(TakvimGünü),\"/Gün \",TakvimGünü-DATE(YEAR(TakvimGünü),1,0)),CONCATENATE(\"Gün \",TakvimGünü-DATE(YEAR(TakvimGünü),1,0)))","v":"Gün 48"}]
[]
[null,null,{"$f":"GünlerVeHaftalar+DATE(TakvimYılı,2,1)-WEEKDAY(DATE(TakvimYılı,2,1),(HaftaBaşlangıcı=\"PZT\")+1)+22","v":"2018-02-18"},"2018-02-19","2018-02-20","2018-02-21","2018-02-22","2018-02-23","2018-02-24"]
[null,null,{"$f":"IF(WEEKDAY(TakvimGünü)=HaftaBaşlangıçDeğeri,CONCATENATE(\"Hafta \",WEEKNUM(TakvimGünü),\"/Gün \",TakvimGünü-DATE(YEAR(TakvimGünü),1,0)),CONCATENATE(\"Gün \",TakvimGünü-DATE(YEAR(TakvimGünü),1,0)))","v":"Hafta 8/Gün 49"},{"$f":"IF(WEEKDAY(TakvimGünü)=HaftaBaşlangıçDeğeri,CONCATENATE(\"Hafta \",WEEKNUM(TakvimGünü),\"/Gün \",TakvimGünü-DATE(YEAR(TakvimGünü),1,0)),CONCATENATE(\"Gün \",TakvimGünü-DATE(YEAR(TakvimGünü),1,0)))","v":"Gün 50"},{"$f":"IF(WEEKDAY(TakvimGünü)=HaftaBaşlangıçDeğeri,CONCATENATE(\"Hafta \",WEEKNUM(TakvimGünü),\"/Gün \",TakvimGünü-DATE(YEAR(TakvimGünü),1,0)),CONCATENATE(\"Gün \",TakvimGünü-DATE(YEAR(TakvimGünü),1,0)))","v":"Gün 51"},{"$f":"IF(WEEKDAY(TakvimGünü)=HaftaBaşlangıçDeğeri,CONCATENATE(\"Hafta \",WEEKNUM(TakvimGünü),\"/Gün \",TakvimGünü-DATE(YEAR(TakvimGünü),1,0)),CONCATENATE(\"Gün \",TakvimGünü-DATE(YEAR(TakvimGünü),1,0)))","v":"Gün 52"},{"$f":"IF(WEEKDAY(TakvimGünü)=HaftaBaşlangıçDeğeri,CONCATENATE(\"Hafta \",WEEKNUM(TakvimGünü),\"/Gün \",TakvimGünü-DATE(YEAR(TakvimGünü),1,0)),CONCATENATE(\"Gün \",TakvimGünü-DATE(YEAR(TakvimGünü),1,0)))","v":"Gün 53"},{"$f":"IF(WEEKDAY(TakvimGünü)=HaftaBaşlangıçDeğeri,CONCATENATE(\"Hafta \",WEEKNUM(TakvimGünü),\"/Gün \",TakvimGünü-DATE(YEAR(TakvimGünü),1,0)),CONCATENATE(\"Gün \",TakvimGünü-DATE(YEAR(TakvimGünü),1,0)))","v":"Gün 54"},{"$f":"IF(WEEKDAY(TakvimGünü)=HaftaBaşlangıçDeğeri,CONCATENATE(\"Hafta \",WEEKNUM(TakvimGünü),\"/Gün \",TakvimGünü-DATE(YEAR(TakvimGünü),1,0)),CONCATENATE(\"Gün \",TakvimGünü-DATE(YEAR(TakvimGünü),1,0)))","v":"Gün 55"}]
[]
[null,null,{"$f":"GünlerVeHaftalar+DATE(TakvimYılı,2,1)-WEEKDAY(DATE(TakvimYılı,2,1),(HaftaBaşlangıcı=\"PZT\")+1)+29","v":"2018-02-25"},"2018-02-26","2018-02-27","2018-02-28","2018-03-01","2018-03-02","2018-03-03"]
[null,null,{"$f":"IF(WEEKDAY(TakvimGünü)=HaftaBaşlangıçDeğeri,CONCATENATE(\"Hafta \",WEEKNUM(TakvimGünü),\"/Gün \",TakvimGünü-DATE(YEAR(TakvimGünü),1,0)),CONCATENATE(\"Gün \",TakvimGünü-DATE(YEAR(TakvimGünü),1,0)))","v":"Hafta 9/Gün 56"},{"$f":"IF(WEEKDAY(TakvimGünü)=HaftaBaşlangıçDeğeri,CONCATENATE(\"Hafta \",WEEKNUM(TakvimGünü),\"/Gün \",TakvimGünü-DATE(YEAR(TakvimGünü),1,0)),CONCATENATE(\"Gün \",TakvimGünü-DATE(YEAR(TakvimGünü),1,0)))","v":"Gün 57"},{"$f":"IF(WEEKDAY(TakvimGünü)=HaftaBaşlangıçDeğeri,CONCATENATE(\"Hafta \",WEEKNUM(TakvimGünü),\"/Gün \",TakvimGünü-DATE(YEAR(TakvimGünü),1,0)),CONCATENATE(\"Gün \",TakvimGünü-DATE(YEAR(TakvimGünü),1,0)))","v":"Gün 58"},{"$f":"IF(WEEKDAY(TakvimGünü)=HaftaBaşlangıçDeğeri,CONCATENATE(\"Hafta \",WEEKNUM(TakvimGünü),\"/Gün \",TakvimGünü-DATE(YEAR(TakvimGünü),1,0)),CONCATENATE(\"Gün \",TakvimGünü-DATE(YEAR(TakvimGünü),1,0)))","v":"Gün 59"},{"$f":"IF(WEEKDAY(TakvimGünü)=HaftaBaşlangıçDeğeri,CONCATENATE(\"Hafta \",WEEKNUM(TakvimGünü),\"/Gün \",TakvimGünü-DATE(YEAR(TakvimGünü),1,0)),CONCATENATE(\"Gün \",TakvimGünü-DATE(YEAR(TakvimGünü),1,0)))","v":"Gün 60"},{"$f":"IF(WEEKDAY(TakvimGünü)=HaftaBaşlangıçDeğeri,CONCATENATE(\"Hafta \",WEEKNUM(TakvimGünü),\"/Gün \",TakvimGünü-DATE(YEAR(TakvimGünü),1,0)),CONCATENATE(\"Gün \",TakvimGünü-DATE(YEAR(TakvimGünü),1,0)))","v":"Gün 61"},{"$f":"IF(WEEKDAY(TakvimGünü)=HaftaBaşlangıçDeğeri,CONCATENATE(\"Hafta \",WEEKNUM(TakvimGünü),\"/Gün \",TakvimGünü-DATE(YEAR(TakvimGünü),1,0)),CONCATENATE(\"Gün \",TakvimGünü-DATE(YEAR(TakvimGünü),1,0)))","v":"Gün 62"}]
[{"$nulls":4},"NOTLAR"]
[]
[null,null,{"$f":"GünlerVeHaftalar+DATE(TakvimYılı,2,1)-WEEKDAY(DATE(TakvimYılı,2,1),(HaftaBaşlangıcı=\"PZT\")+1)+36","v":"2018-03-04"},"2018-03-05"]
[null,null,{"$f":"IF(WEEKDAY(TakvimGünü)=HaftaBaşlangıçDeğeri,CONCATENATE(\"Hafta \",WEEKNUM(TakvimGünü),\"/Gün \",TakvimGünü-DATE(YEAR(TakvimGünü),1,0)),CONCATENATE(\"Gün \",TakvimGünü-DATE(YEAR(TakvimGünü),1,0)))","v":"Hafta 10/Gün 63"},{"$f":"IF(WEEKDAY(TakvimGünü)=HaftaBaşlangıçDeğeri,CONCATENATE(\"Hafta \",WEEKNUM(TakvimGünü),\"/Gün \",TakvimGünü-DATE(YEAR(TakvimGünü),1,0)),CONCATENATE(\"Gün \",TakvimGünü-DATE(YEAR(TakvimGünü),1,0)))","v":"Gün 64"}]

{"sheet":"MAR","index":2,"n_rows":20,"n_cols":9,"rows_kept":20,"merged":[[16,2,17,2],[17,4,19,8]]}
[null,"MAR",{"$f":"UPPER(TEXT(HaftaBaşlangıcı,\"ddd\"))","v":"PAZ"},{"$f":"UPPER(TEXT(D3,\"ggg\"))","v":"PZT"},"SAL","ÇAR","PER","CUM","CMT"]
[null,{"$f":"TakvimYılı","v":2018}]
[null,null,{"$f":"GünlerVeHaftalar+DATE(TakvimYılı,3,1)-WEEKDAY(DATE(TakvimYılı,3,1),(HaftaBaşlangıcı=\"PZT\")+1)+1","v":"2018-02-25"},"2018-02-26","2018-02-27","2018-02-28","2018-03-01","2018-03-02","2018-03-03"]
[null,null,{"$f":"IF(DAY(TakvimGünü)=1,CONCATENATE(\"Hafta \",WEEKNUM(TakvimGünü),\"/Gün \",TakvimGünü-DATE(YEAR(TakvimGünü),1,0)),CONCATENATE(\"Gün \",TakvimGünü-DATE(YEAR(TakvimGünü),1,0)))","v":"Gün 56"},{"$f":"IF(DAY(TakvimGünü)=1,CONCATENATE(\"Hafta \",WEEKNUM(TakvimGünü),\"/Gün \",TakvimGünü-DATE(YEAR(TakvimGünü),1,0)),CONCATENATE(\"Gün \",TakvimGünü-DATE(YEAR(TakvimGünü),1,0)))","v":"Gün 57"},{"$f":"IF(DAY(TakvimGünü)=1,CONCATENATE(\"Hafta \",WEEKNUM(TakvimGünü),\"/Gün \",TakvimGünü-DATE(YEAR(TakvimGünü),1,0)),CONCATENATE(\"Gün \",TakvimGünü-DATE(YEAR(TakvimGünü),1,0)))","v":"Gün 58"},{"$f":"IF(DAY(TakvimGünü)=1,CONCATENATE(\"Hafta \",WEEKNUM(TakvimGünü),\"/Gün \",TakvimGünü-DATE(YEAR(TakvimGünü),1,0)),CONCATENATE(\"Gün \",TakvimGünü-DATE(YEAR(TakvimGünü),1,0)))","v":"Gün 59"},{"$f":"IF(DAY(TakvimGünü)=1,CONCATENATE(\"Hafta \",WEEKNUM(TakvimGünü),\"/Gün \",TakvimGünü-DATE(YEAR(TakvimGünü),1,0)),CONCATENATE(\"Gün \",TakvimGünü-DATE(YEAR(TakvimGünü),1,0)))","v":"Hafta 9/Gün 60"},{"$f":"IF(DAY(TakvimGünü)=1,CONCATENATE(\"Hafta \",WEEKNUM(TakvimGünü),\"/Gün \",TakvimGünü-DATE(YEAR(TakvimGünü),1,0)),CONCATENATE(\"Gün \",TakvimGünü-DATE(YEAR(TakvimGünü),1,0)))","v":"Gün 61"},{"$f":"IF(DAY(TakvimGünü)=1,CONCATENATE(\"Hafta \",WEEKNUM(TakvimGünü),\"/Gün \",TakvimGünü-DATE(YEAR(TakvimGünü),1,0)),CONCATENATE(\"Gün \",TakvimGünü-DATE(YEAR(TakvimGünü),1,0)))","v":"Gün 62"}]
[]
[null,null,{"$f":"GünlerVeHaftalar+DATE(TakvimYılı,3,1)-WEEKDAY(DATE(TakvimYılı,3,1),(HaftaBaşlangıcı=\"PZT\")+1)+8","v":"2018-03-04"},"2018-03-05","2018-03-06","2018-03-07","2018-03-08","2018-03-09","2018-03-10"]
[null,null,{"$f":"IF(WEEKDAY(TakvimGünü)=HaftaBaşlangıçDeğeri,CONCATENATE(\"Hafta \",WEEKNUM(TakvimGünü),\"/Gün \",TakvimGünü-DATE(YEAR(TakvimGünü),1,0)),CONCATENATE(\"Gün \",TakvimGünü-DATE(YEAR(TakvimGünü),1,0)))","v":"Hafta 10/Gün 63"},{"$f":"IF(WEEKDAY(TakvimGünü)=HaftaBaşlangıçDeğeri,CONCATENATE(\"Hafta \",WEEKNUM(TakvimGünü),\"/Gün \",TakvimGünü-DATE(YEAR(TakvimGünü),1,0)),CONCATENATE(\"Gün \",TakvimGünü-DATE(YEAR(TakvimGünü),1,0)))","v":"Gün 64"},{"$f":"IF(WEEKDAY(TakvimGünü)=HaftaBaşlangıçDeğeri,CONCATENATE(\"Hafta \",WEEKNUM(TakvimGünü),\"/Gün \",TakvimGünü-DATE(YEAR(TakvimGünü),1,0)),CONCATENATE(\"Gün \",TakvimGünü-DATE(YEAR(TakvimGünü),1,0)))","v":"Gün 65"},{"$f":"IF(WEEKDAY(TakvimGünü)=HaftaBaşlangıçDeğeri,CONCATENATE(\"Hafta \",WEEKNUM(TakvimGünü),\"/Gün \",TakvimGünü-DATE(YEAR(TakvimGünü),1,0)),CONCATENATE(\"Gün \",TakvimGünü-DATE(YEAR(TakvimGünü),1,0)))","v":"Gün 66"},{"$f":"IF(WEEKDAY(TakvimGünü)=HaftaBaşlangıçDeğeri,CONCATENATE(\"Hafta \",WEEKNUM(TakvimGünü),\"/Gün \",TakvimGünü-DATE(YEAR(TakvimGünü),1,0)),CONCATENATE(\"Gün \",TakvimGünü-DATE(YEAR(TakvimGünü),1,0)))","v":"Gün 67"},{"$f":"IF(WEEKDAY(TakvimGünü)=HaftaBaşlangıçDeğeri,CONCATENATE(\"Hafta \",WEEKNUM(TakvimGünü),\"/Gün \",TakvimGünü-DATE(YEAR(TakvimGünü),1,0)),CONCATENATE(\"Gün \",TakvimGünü-DATE(YEAR(TakvimGünü),1,0)))","v":"Gün 68"},{"$f":"IF(WEEKDAY(TakvimGünü)=HaftaBaşlangıçDeğeri,CONCATENATE(\"Hafta \",WEEKNUM(TakvimGünü),\"/Gün \",TakvimGünü-DATE(YEAR(TakvimGünü),1,0)),CONCATENATE(\"Gün \",TakvimGünü-DATE(YEAR(TakvimGünü),1,0)))","v":"Gün 69"}]
[]
[null,null,{"$f":"GünlerVeHaftalar+DATE(TakvimYılı,3,1)-WEEKDAY(DATE(TakvimYılı,3,1),(HaftaBaşlangıcı=\"PZT\")+1)+15","v":"2018-03-11"},"2018-03-12","2018-03-13","2018-03-14","2018-03-15","2018-03-16","2018-03-17"]
[null,null,{"$f":"IF(WEEKDAY(TakvimGünü)=HaftaBaşlangıçDeğeri,CONCATENATE(\"Hafta \",WEEKNUM(TakvimGünü),\"/Gün \",TakvimGünü-DATE(YEAR(TakvimGünü),1,0)),CONCATENATE(\"Gün \",TakvimGünü-DATE(YEAR(TakvimGünü),1,0)))","v":"Hafta 11/Gün 70"},{"$f":"IF(WEEKDAY(TakvimGünü)=HaftaBaşlangıçDeğeri,CONCATENATE(\"Hafta \",WEEKNUM(TakvimGünü),\"/Gün \",TakvimGünü-DATE(YEAR(TakvimGünü),1,0)),CONCATENATE(\"Gün \",TakvimGünü-DATE(YEAR(TakvimGünü),1,0)))","v":"Gün 71"},{"$f":"IF(WEEKDAY(TakvimGünü)=HaftaBaşlangıçDeğeri,CONCATENATE(\"Hafta \",WEEKNUM(TakvimGünü),\"/Gün \",TakvimGünü-DATE(YEAR(TakvimGünü),1,0)),CONCATENATE(\"Gün \",TakvimGünü-DATE(YEAR(TakvimGünü),1,0)))","v":"Gün 72"},{"$f":"IF(WEEKDAY(TakvimGünü)=HaftaBaşlangıçDeğeri,CONCATENATE(\"Hafta \",WEEKNUM(TakvimGünü),\"/Gün \",TakvimGünü-DATE(YEAR(TakvimGünü),1,0)),CONCATENATE(\"Gün \",TakvimGünü-DATE(YEAR(TakvimGünü),1,0)))","v":"Gün 73"},{"$f":"IF(WEEKDAY(TakvimGünü)=HaftaBaşlangıçDeğeri,CONCATENATE(\"Hafta \",WEEKNUM(TakvimGünü),\"/Gün \",TakvimGünü-DATE(YEAR(TakvimGünü),1,0)),CONCATENATE(\"Gün \",TakvimGünü-DATE(YEAR(TakvimGünü),1,0)))","v":"Gün 74"},{"$f":"IF(WEEKDAY(TakvimGünü)=HaftaBaşlangıçDeğeri,CONCATENATE(\"Hafta \",WEEKNUM(TakvimGünü),\"/Gün \",TakvimGünü-DATE(YEAR(TakvimGünü),1,0)),CONCATENATE(\"Gün \",TakvimGünü-DATE(YEAR(TakvimGünü),1,0)))","v":"Gün 75"},{"$f":"IF(WEEKDAY(TakvimGünü)=HaftaBaşlangıçDeğeri,CONCATENATE(\"Hafta \",WEEKNUM(TakvimGünü),\"/Gün \",TakvimGünü-DATE(YEAR(TakvimGünü),1,0)),CONCATENATE(\"Gün \",TakvimGünü-DATE(YEAR(TakvimGünü),1,0)))","v":"Gün 76"}]
[]
[null,null,{"$f":"GünlerVeHaftalar+DATE(TakvimYılı,3,1)-WEEKDAY(DATE(TakvimYılı,3,1),(HaftaBaşlangıcı=\"PZT\")+1)+22","v":"2018-03-18"},"2018-03-19","2018-03-20","2018-03-21","2018-03-22","2018-03-23","2018-03-24"]
[null,null,{"$f":"IF(WEEKDAY(TakvimGünü)=HaftaBaşlangıçDeğeri,CONCATENATE(\"Hafta \",WEEKNUM(TakvimGünü),\"/Gün \",TakvimGünü-DATE(YEAR(TakvimGünü),1,0)),CONCATENATE(\"Gün \",TakvimGünü-DATE(YEAR(TakvimGünü),1,0)))","v":"Hafta 12/Gün 77"},{"$f":"IF(WEEKDAY(TakvimGünü)=HaftaBaşlangıçDeğeri,CONCATENATE(\"Hafta \",WEEKNUM(TakvimGünü),\"/Gün \",TakvimGünü-DATE(YEAR(TakvimGünü),1,0)),CONCATENATE(\"Gün \",TakvimGünü-DATE(YEAR(TakvimGünü),1,0)))","v":"Gün 78"},{"$f":"IF(WEEKDAY(TakvimGünü)=HaftaBaşlangıçDeğeri,CONCATENATE(\"Hafta \",WEEKNUM(TakvimGünü),\"/Gün \",TakvimGünü-DATE(YEAR(TakvimGünü),1,0)),CONCATENATE(\"Gün \",TakvimGünü-DATE(YEAR(TakvimGünü),1,0)))","v":"Gün 79"},{"$f":"IF(WEEKDAY(TakvimGünü)=HaftaBaşlangıçDeğeri,CONCATENATE(\"Hafta \",WEEKNUM(TakvimGünü),\"/Gün \",TakvimGünü-DATE(YEAR(TakvimGünü),1,0)),CONCATENATE(\"Gün \",TakvimGünü-DATE(YEAR(TakvimGünü),1,0)))","v":"Gün 80"},{"$f":"IF(WEEKDAY(TakvimGünü)=HaftaBaşlangıçDeğeri,CONCATENATE(\"Hafta \",WEEKNUM(TakvimGünü),\"/Gün \",TakvimGünü-DATE(YEAR(TakvimGünü),1,0)),CONCATENATE(\"Gün \",TakvimGünü-DATE(YEAR(TakvimGünü),1,0)))","v":"Gün 81"},{"$f":"IF(WEEKDAY(TakvimGünü)=HaftaBaşlangıçDeğeri,CONCATENATE(\"Hafta \",WEEKNUM(TakvimGünü),\"/Gün \",TakvimGünü-DATE(YEAR(TakvimGünü),1,0)),CONCATENATE(\"Gün \",TakvimGünü-DATE(YEAR(TakvimGünü),1,0)))","v":"Gün 82"},{"$f":"IF(WEEKDAY(TakvimGünü)=HaftaBaşlangıçDeğeri,CONCATENATE(\"Hafta \",WEEKNUM(TakvimGünü),\"/Gün \",TakvimGünü-DATE(YEAR(TakvimGünü),1,0)),CONCATENATE(\"Gün \",TakvimGünü-DATE(YEAR(TakvimGünü),1,0)))","v":"Gün 83"}]
[]
[null,null,{"$f":"GünlerVeHaftalar+DATE(TakvimYılı,3,1)-WEEKDAY(DATE(TakvimYılı,3,1),(HaftaBaşlangıcı=\"PZT\")+1)+29","v":"2018-03-25"},"2018-03-26","2018-03-27","2018-03-28","2018-03-29","2018-03-30","2018-03-31"]
[null,null,{"$f":"IF(WEEKDAY(TakvimGünü)=HaftaBaşlangıçDeğeri,CONCATENATE(\"Hafta \",WEEKNUM(TakvimGünü),\"/Gün \",TakvimGünü-DATE(YEAR(TakvimGünü),1,0)),CONCATENATE(\"Gün \",TakvimGünü-DATE(YEAR(TakvimGünü),1,0)))","v":"Hafta 13/Gün 84"},{"$f":"IF(WEEKDAY(TakvimGünü)=HaftaBaşlangıçDeğeri,CONCATENATE(\"Hafta \",WEEKNUM(TakvimGünü),\"/Gün \",TakvimGünü-DATE(YEAR(TakvimGünü),1,0)),CONCATENATE(\"Gün \",TakvimGünü-DATE(YEAR(TakvimGünü),1,0)))","v":"Gün 85"},{"$f":"IF(WEEKDAY(TakvimGünü)=HaftaBaşlangıçDeğeri,CONCATENATE(\"Hafta \",WEEKNUM(TakvimGünü),\"/Gün \",TakvimGünü-DATE(YEAR(TakvimGünü),1,0)),CONCATENATE(\"Gün \",TakvimGünü-DATE(YEAR(TakvimGünü),1,0)))","v":"Gün 86"},{"$f":"IF(WEEKDAY(TakvimGünü)=HaftaBaşlangıçDeğeri,CONCATENATE(\"Hafta \",WEEKNUM(TakvimGünü),\"/Gün \",TakvimGünü-DATE(YEAR(TakvimGünü),1,0)),CONCATENATE(\"Gün \",TakvimGünü-DATE(YEAR(TakvimGünü),1,0)))","v":"Gün 87"},{"$f":"IF(WEEKDAY(TakvimGünü)=HaftaBaşlangıçDeğeri,CONCATENATE(\"Hafta \",WEEKNUM(TakvimGünü),\"/Gün \",TakvimGünü-DATE(YEAR(TakvimGünü),1,0)),CONCATENATE(\"Gün \",TakvimGünü-DATE(YEAR(TakvimGünü),1,0)))","v":"Gün 88"},{"$f":"IF(WEEKDAY(TakvimGünü)=HaftaBaşlangıçDeğeri,CONCATENATE(\"Hafta \",WEEKNUM(TakvimGünü),\"/Gün \",TakvimGünü-DATE(YEAR(TakvimGünü),1,0)),CONCATENATE(\"Gün \",TakvimGünü-DATE(YEAR(TakvimGünü),1,0)))","v":"Gün 89"},{"$f":"IF(WEEKDAY(TakvimGünü)=HaftaBaşlangıçDeğeri,CONCATENATE(\"Hafta \",WEEKNUM(TakvimGünü),\"/Gün \",TakvimGünü-DATE(YEAR(TakvimGünü),1,0)),CONCATENATE(\"Gün \",TakvimGünü-DATE(YEAR(TakvimGünü),1,0)))","v":"Gün 90"}]
[{"$nulls":4},"NOTLAR"]
[]
[null,null,{"$f":"GünlerVeHaftalar+DATE(TakvimYılı,3,1)-WEEKDAY(DATE(TakvimYılı,3,1),(HaftaBaşlangıcı=\"PZT\")+1)+36","v":"2018-04-01"},"2018-04-02"]
[null,null,{"$f":"IF(WEEKDAY(TakvimGünü)=HaftaBaşlangıçDeğeri,CONCATENATE(\"Hafta \",WEEKNUM(TakvimGünü),\"/Gün \",TakvimGünü-DATE(YEAR(TakvimGünü),1,0)),CONCATENATE(\"Gün \",TakvimGünü-DATE(YEAR(TakvimGünü),1,0)))","v":"Hafta 14/Gün 91"},{"$f":"IF(WEEKDAY(TakvimGünü)=HaftaBaşlangıçDeğeri,CONCATENATE(\"Hafta \",WEEKNUM(TakvimGünü),\"/Gün \",TakvimGünü-DATE(YEAR(TakvimGünü),1,0)),CONCATENATE(\"Gün \",TakvimGünü-DATE(YEAR(TakvimGünü),1,0)))","v":"Gün 92"}]

{"sheet":"NİS","index":3,"n_rows":20,"n_cols":9,"rows_kept":20,"merged":[[16,2,17,2],[17,4,19,8]]}
[null,"NİS",{"$f":"UPPER(TEXT(HaftaBaşlangıcı,\"ddd\"))","v":"PAZ"},{"$f":"UPPER(TEXT(D3,\"ggg\"))","v":"PZT"},"SAL","ÇAR","PER","CUM","CMT"]
[null,{"$f":"TakvimYılı","v":2018}]
[null,null,{"$f":"GünlerVeHaftalar+DATE(TakvimYılı,4,1)-WEEKDAY(DATE(TakvimYılı,4,1),(HaftaBaşlangıcı=\"PZT\")+1)+1","v":"2018-04-01"},"2018-04-02","2018-04-03","2018-04-04","2018-04-05","2018-04-06","2018-04-07"]
[null,null,{"$f":"IF(DAY(TakvimGünü)=1,CONCATENATE(\"Hafta \",WEEKNUM(TakvimGünü),\"/Gün \",TakvimGünü-DATE(YEAR(TakvimGünü),1,0)),CONCATENATE(\"Gün \",TakvimGünü-DATE(YEAR(TakvimGünü),1,0)))","v":"Hafta 14/Gün 91"},{"$f":"IF(DAY(TakvimGünü)=1,CONCATENATE(\"Hafta \",WEEKNUM(TakvimGünü),\"/Gün \",TakvimGünü-DATE(YEAR(TakvimGünü),1,0)),CONCATENATE(\"Gün \",TakvimGünü-DATE(YEAR(TakvimGünü),1,0)))","v":"Gün 92"},{"$f":"IF(DAY(TakvimGünü)=1,CONCATENATE(\"Hafta \",WEEKNUM(TakvimGünü),\"/Gün \",TakvimGünü-DATE(YEAR(TakvimGünü),1,0)),CONCATENATE(\"Gün \",TakvimGünü-DATE(YEAR(TakvimGünü),1,0)))","v":"Gün 93"},{"$f":"IF(DAY(TakvimGünü)=1,CONCATENATE(\"Hafta \",WEEKNUM(TakvimGünü),\"/Gün \",TakvimGünü-DATE(YEAR(TakvimGünü),1,0)),CONCATENATE(\"Gün \",TakvimGünü-DATE(YEAR(TakvimGünü),1,0)))","v":"Gün 94"},{"$f":"IF(DAY(TakvimGünü)=1,CONCATENATE(\"Hafta \",WEEKNUM(TakvimGünü),\"/Gün \",TakvimGünü-DATE(YEAR(TakvimGünü),1,0)),CONCATENATE(\"Gün \",TakvimGünü-DATE(YEAR(TakvimGünü),1,0)))","v":"Gün 95"},{"$f":"IF(DAY(TakvimGünü)=1,CONCATENATE(\"Hafta \",WEEKNUM(TakvimGünü),\"/Gün \",TakvimGünü-DATE(YEAR(TakvimGünü),1,0)),CONCATENATE(\"Gün \",TakvimGünü-DATE(YEAR(TakvimGünü),1,0)))","v":"Gün 96"},{"$f":"IF(DAY(TakvimGünü)=1,CONCATENATE(\"Hafta \",WEEKNUM(TakvimGünü),\"/Gün \",TakvimGünü-DATE(YEAR(TakvimGünü),1,0)),CONCATENATE(\"Gün \",TakvimGünü-DATE(YEAR(TakvimGünü),1,0)))","v":"Gün 97"}]
[]
[null,null,{"$f":"GünlerVeHaftalar+DATE(TakvimYılı,4,1)-WEEKDAY(DATE(TakvimYılı,4,1),(HaftaBaşlangıcı=\"PZT\")+1)+8","v":"2018-04-08"},"2018-04-09","2018-04-10","2018-04-11","2018-04-12","2018-04-13","2018-04-14"]
[null,null,{"$f":"IF(WEEKDAY(TakvimGünü)=HaftaBaşlangıçDeğeri,CONCATENATE(\"Hafta \",WEEKNUM(TakvimGünü),\"/Gün \",TakvimGünü-DATE(YEAR(TakvimGünü),1,0)),CONCATENATE(\"Gün \",TakvimGünü-DATE(YEAR(TakvimGünü),1,0)))","v":"Hafta 15/Gün 98"},{"$f":"IF(WEEKDAY(TakvimGünü)=HaftaBaşlangıçDeğeri,CONCATENATE(\"Hafta \",WEEKNUM(TakvimGünü),\"/Gün \",TakvimGünü-DATE(YEAR(TakvimGünü),1,0)),CONCATENATE(\"Gün \",TakvimGünü-DATE(YEAR(TakvimGünü),1,0)))","v":"Gün 99"},{"$f":"IF(WEEKDAY(TakvimGünü)=HaftaBaşlangıçDeğeri,CONCATENATE(\"Hafta \",WEEKNUM(TakvimGünü),\"/Gün \",TakvimGünü-DATE(YEAR(TakvimGünü),1,0)),CONCATENATE(\"Gün \",TakvimGünü-DATE(YEAR(TakvimGünü),1,0)))","v":"Gün 100"},{"$f":"IF(WEEKDAY(TakvimGünü)=HaftaBaşlangıçDeğeri,CONCATENATE(\"Hafta \",WEEKNUM(TakvimGünü),\"/Gün \",TakvimGünü-DATE(YEAR(TakvimGünü),1,0)),CONCATENATE(\"Gün \",TakvimGünü-DATE(YEAR(TakvimGünü),1,0)))","v":"Gün 101"},{"$f":"IF(WEEKDAY(TakvimGünü)=HaftaBaşlangıçDeğeri,CONCATENATE(\"Hafta \",WEEKNUM(TakvimGünü),\"/Gün \",TakvimGünü-DATE(YEAR(TakvimGünü),1,0)),CONCATENATE(\"Gün \",TakvimGünü-DATE(YEAR(TakvimGünü),1,0)))","v":"Gün 102"},{"$f":"IF(WEEKDAY(TakvimGünü)=HaftaBaşlangıçDeğeri,CONCATENATE(\"Hafta \",WEEKNUM(TakvimGünü),\"/Gün \",TakvimGünü-DATE(YEAR(TakvimGünü),1,0)),CONCATENATE(\"Gün \",TakvimGünü-DATE(YEAR(TakvimGünü),1,0)))","v":"Gün 103"},{"$f":"IF(WEEKDAY(TakvimGünü)=HaftaBaşlangıçDeğeri,CONCATENATE(\"Hafta \",WEEKNUM(TakvimGünü),\"/Gün \",TakvimGünü-DATE(YEAR(TakvimGünü),1,0)),CONCATENATE(\"Gün \",TakvimGünü-DATE(YEAR(TakvimGünü),1,0)))","v":"Gün 104"}]
[]
[null,null,{"$f":"GünlerVeHaftalar+DATE(TakvimYılı,4,1)-WEEKDAY(DATE(TakvimYılı,4,1),(HaftaBaşlangıcı=\"PZT\")+1)+15","v":"2018-04-15"},"2018-04-16","2018-04-17","2018-04-18","2018-04-19","2018-04-20","2018-04-21"]
[null,null,{"$f":"IF(WEEKDAY(TakvimGünü)=HaftaBaşlangıçDeğeri,CONCATENATE(\"Hafta \",WEEKNUM(TakvimGünü),\"/Gün \",TakvimGünü-DATE(YEAR(TakvimGünü),1,0)),CONCATENATE(\"Gün \",TakvimGünü-DATE(YEAR(TakvimGünü),1,0)))","v":"Hafta 16/Gün 105"},{"$f":"IF(WEEKDAY(TakvimGünü)=HaftaBaşlangıçDeğeri,CONCATENATE(\"Hafta \",WEEKNUM(TakvimGünü),\"/Gün \",TakvimGünü-DATE(YEAR(TakvimGünü),1,0)),CONCATENATE(\"Gün \",TakvimGünü-DATE(YEAR(TakvimGünü),1,0)))","v":"Gün 106"},{"$f":"IF(WEEKDAY(TakvimGünü)=HaftaBaşlangıçDeğeri,CONCATENATE(\"Hafta \",WEEKNUM(TakvimGünü),\"/Gün \",TakvimGünü-DATE(YEAR(TakvimGünü),1,0)),CONCATENATE(\"Gün \",TakvimGünü-DATE(YEAR(TakvimGünü),1,0)))","v":"Gün 107"},{"$f":"IF(WEEKDAY(TakvimGünü)=HaftaBaşlangıçDeğeri,CONCATENATE(\"Hafta \",WEEKNUM(TakvimGünü),\"/Gün \",TakvimGünü-DATE(YEAR(TakvimGünü),1,0)),CONCATENATE(\"Gün \",TakvimGünü-DATE(YEAR(TakvimGünü),1,0)))","v":"Gün 108"},{"$f":"IF(WEEKDAY(TakvimGünü)=HaftaBaşlangıçDeğeri,CONCATENATE(\"Hafta \",WEEKNUM(TakvimGünü),\"/Gün \",TakvimGünü-DATE(YEAR(TakvimGünü),1,0)),CONCATENATE(\"Gün \",TakvimGünü-DATE(YEAR(TakvimGünü),1,0)))","v":"Gün 109"},{"$f":"IF(WEEKDAY(TakvimGünü)=HaftaBaşlangıçDeğeri,CONCATENATE(\"Hafta \",WEEKNUM(TakvimGünü),\"/Gün \",TakvimGünü-DATE(YEAR(TakvimGünü),1,0)),CONCATENATE(\"Gün \",TakvimGünü-DATE(YEAR(TakvimGünü),1,0)))","v":"Gün 110"},{"$f":"IF(WEEKDAY(TakvimGünü)=HaftaBaşlangıçDeğeri,CONCATENATE(\"Hafta \",WEEKNUM(TakvimGünü),\"/Gün \",TakvimGünü-DATE(YEAR(TakvimGünü),1,0)),CONCATENATE(\"Gün \",TakvimGünü-DATE(YEAR(TakvimGünü),1,0)))","v":"Gün 111"}]
[]
[null,null,{"$f":"GünlerVeHaftalar+DATE(TakvimYılı,4,1)-WEEKDAY(DATE(TakvimYılı,4,1),(HaftaBaşlangıcı=\"PZT\")+1)+22","v":"2018-04-22"},"2018-04-23","2018-04-24","2018-04-25","2018-04-26","2018-04-27","2018-04-28"]
[null,null,{"$f":"IF(WEEKDAY(TakvimGünü)=HaftaBaşlangıçDeğeri,CONCATENATE(\"Hafta \",WEEKNUM(TakvimGünü),\"/Gün \",TakvimGünü-DATE(YEAR(TakvimGünü),1,0)),CONCATENATE(\"Gün \",TakvimGünü-DATE(YEAR(TakvimGünü),1,0)))","v":"Hafta 17/Gün 112"},{"$f":"IF(WEEKDAY(TakvimGünü)=HaftaBaşlangıçDeğeri,CONCATENATE(\"Hafta \",WEEKNUM(TakvimGünü),\"/Gün \",TakvimGünü-DATE(YEAR(TakvimGünü),1,0)),CONCATENATE(\"Gün \",TakvimGünü-DATE(YEAR(TakvimGünü),1,0)))","v":"Gün 113"},{"$f":"IF(WEEKDAY(TakvimGünü)=HaftaBaşlangıçDeğeri,CONCATENATE(\"Hafta \",WEEKNUM(TakvimGünü),\"/Gün \",TakvimGünü-DATE(YEAR(TakvimGünü),1,0)),CONCATENATE(\"Gün \",TakvimGünü-DATE(YEAR(TakvimGünü),1,0)))","v":"Gün 114"},{"$f":"IF(WEEKDAY(TakvimGünü)=HaftaBaşlangıçDeğeri,CONCATENATE(\"Hafta \",WEEKNUM(TakvimGünü),\"/Gün \",TakvimGünü-DATE(YEAR(TakvimGünü),1,0)),CONCATENATE(\"Gün \",TakvimGünü-DATE(YEAR(TakvimGünü),1,0)))","v":"Gün 115"},{"$f":"IF(WEEKDAY(TakvimGünü)=HaftaBaşlangıçDeğeri,CONCATENATE(\"Hafta \",WEEKNUM(TakvimGünü),\"/Gün \",TakvimGünü-DATE(YEAR(TakvimGünü),1,0)),CONCATENATE(\"Gün \",TakvimGünü-DATE(YEAR(TakvimGünü),1,0)))","v":"Gün 116"},{"$f":"IF(WEEKDAY(TakvimGünü)=HaftaBaşlangıçDeğeri,CONCATENATE(\"Hafta \",WEEKNUM(TakvimGünü),\"/Gün \",TakvimGünü-DATE(YEAR(TakvimGünü),1,0)),CONCATENATE(\"Gün \",TakvimGünü-DATE(YEAR(TakvimGünü),1,0)))","v":"Gün 117"},{"$f":"IF(WEEKDAY(TakvimGünü)=HaftaBaşlangıçDeğeri,CONCATENATE(\"Hafta \",WEEKNUM(TakvimGünü),\"/Gün \",TakvimGünü-DATE(YEAR(TakvimGünü),1,0)),CONCATENATE(\"Gün \",TakvimGünü-DATE(YEAR(TakvimGünü),1,0)))","v":"Gün 118"}]
[]
[null,null,{"$f":"GünlerVeHaftalar+DATE(TakvimYılı,4,1)-WEEKDAY(DATE(TakvimYılı,4,1),(HaftaBaşlangıcı=\"PZT\")+1)+29","v":"2018-04-29"},"2018-04-30","2018-05-01","2018-05-02","2018-05-03","2018-05-04","2018-05-05"]
[null,null,{"$f":"IF(WEEKDAY(TakvimGünü)=HaftaBaşlangıçDeğeri,CONCATENATE(\"Hafta \",WEEKNUM(TakvimGünü),\"/Gün \",TakvimGünü-DATE(YEAR(TakvimGünü),1,0)),CONCATENATE(\"Gün \",TakvimGünü-DATE(YEAR(TakvimGünü),1,0)))","v":"Hafta 18/Gün 119"},{"$f":"IF(WEEKDAY(TakvimGünü)=HaftaBaşlangıçDeğeri,CONCATENATE(\"Hafta \",WEEKNUM(TakvimGünü),\"/Gün \",TakvimGünü-DATE(YEAR(TakvimGünü),1,0)),CONCATENATE(\"Gün \",TakvimGünü-DATE(YEAR(TakvimGünü),1,0)))","v":"Gün 120"},{"$f":"IF(WEEKDAY(TakvimGünü)=HaftaBaşlangıçDeğeri,CONCATENATE(\"Hafta \",WEEKNUM(TakvimGünü),\"/Gün \",TakvimGünü-DATE(YEAR(TakvimGünü),1,0)),CONCATENATE(\"Gün \",TakvimGünü-DATE(YEAR(TakvimGünü),1,0)))","v":"Gün 121"},{"$f":"IF(WEEKDAY(TakvimGünü)=HaftaBaşlangıçDeğeri,CONCATENATE(\"Hafta \",WEEKNUM(TakvimGünü),\"/Gün \",TakvimGünü-DATE(YEAR(TakvimGünü),1,0)),CONCATENATE(\"Gün \",TakvimGünü-DATE(YEAR(TakvimGünü),1,0)))","v":"Gün 122"},{"$f":"IF(WEEKDAY(TakvimGünü)=HaftaBaşlangıçDeğeri,CONCATENATE(\"Hafta \",WEEKNUM(TakvimGünü),\"/Gün \",TakvimGünü-DATE(YEAR(TakvimGünü),1,0)),CONCATENATE(\"Gün \",TakvimGünü-DATE(YEAR(TakvimGünü),1,0)))","v":"Gün 123"},{"$f":"IF(WEEKDAY(TakvimGünü)=HaftaBaşlangıçDeğeri,CONCATENATE(\"Hafta \",WEEKNUM(TakvimGünü),\"/Gün \",TakvimGünü-DATE(YEAR(TakvimGünü),1,0)),CONCATENATE(\"Gün \",TakvimGünü-DATE(YEAR(TakvimGünü),1,0)))","v":"Gün 124"},{"$f":"IF(WEEKDAY(TakvimGünü)=HaftaBaşlangıçDeğeri,CONCATENATE(\"Hafta \",WEEKNUM(TakvimGünü),\"/Gün \",TakvimGünü-DATE(YEAR(TakvimGünü),1,0)),CONCATENATE(\"Gün \",TakvimGünü-DATE(YEAR(TakvimGünü),1,0)))","v":"Gün 125"}]
[{"$nulls":4},"NOTLAR"]
[]
[null,null,{"$f":"GünlerVeHaftalar+DATE(TakvimYılı,4,1)-WEEKDAY(DATE(TakvimYılı,4,1),(HaftaBaşlangıcı=\"PZT\")+1)+36","v":"2018-05-06"},"2018-05-07"]
[null,null,{"$f":"IF(WEEKDAY(TakvimGünü)=HaftaBaşlangıçDeğeri,CONCATENATE(\"Hafta \",WEEKNUM(TakvimGünü),\"/Gün \",TakvimGünü-DATE(YEAR(TakvimGünü),1,0)),CONCATENATE(\"Gün \",TakvimGünü-DATE(YEAR(TakvimGünü),1,0)))","v":"Hafta 19/Gün 126"},{"$f":"IF(WEEKDAY(TakvimGünü)=HaftaBaşlangıçDeğeri,CONCATENATE(\"Hafta \",WEEKNUM(TakvimGünü),\"/Gün \",TakvimGünü-DATE(YEAR(TakvimGünü),1,0)),CONCATENATE(\"Gün \",TakvimGünü-DATE(YEAR(TakvimGünü),1,0)))","v":"Gün 127"}]

{"sheet":"MAY","index":4,"n_rows":20,"n_cols":9,"rows_kept":20,"merged":[[16,2,17,2],[17,4,19,8]]}
[null,"MAYIS",{"$f":"UPPER(TEXT(HaftaBaşlangıcı,\"ddd\"))","v":"PAZ"},{"$f":"UPPER(TEXT(D3,\"ggg\"))","v":"PZT"},"SAL","ÇAR","PER","CUM","CMT"]
[null,{"$f":"TakvimYılı","v":2018}]
[null,null,{"$f":"GünlerVeHaftalar+DATE(TakvimYılı,5,1)-WEEKDAY(DATE(TakvimYılı,5,1),(HaftaBaşlangıcı=\"PZT\")+1)+1","v":"2018-04-29"},"2018-04-30","2018-05-01","2018-05-02","2018-05-03","2018-05-04","2018-05-05"]
[null,null,{"$f":"IF(DAY(TakvimGünü)=1,CONCATENATE(\"Hafta \",WEEKNUM(TakvimGünü),\"/Gün \",TakvimGünü-DATE(YEAR(TakvimGünü),1,0)),CONCATENATE(\"Gün \",TakvimGünü-DATE(YEAR(TakvimGünü),1,0)))","v":"Gün 119"},{"$f":"IF(DAY(TakvimGünü)=1,CONCATENATE(\"Hafta \",WEEKNUM(TakvimGünü),\"/Gün \",TakvimGünü-DATE(YEAR(TakvimGünü),1,0)),CONCATENATE(\"Gün \",TakvimGünü-DATE(YEAR(TakvimGünü),1,0)))","v":"Gün 120"},{"$f":"IF(DAY(TakvimGünü)=1,CONCATENATE(\"Hafta \",WEEKNUM(TakvimGünü),\"/Gün \",TakvimGünü-DATE(YEAR(TakvimGünü),1,0)),CONCATENATE(\"Gün \",TakvimGünü-DATE(YEAR(TakvimGünü),1,0)))","v":"Hafta 18/Gün 121"},{"$f":"IF(DAY(TakvimGünü)=1,CONCATENATE(\"Hafta \",WEEKNUM(TakvimGünü),\"/Gün \",TakvimGünü-DATE(YEAR(TakvimGünü),1,0)),CONCATENATE(\"Gün \",TakvimGünü-DATE(YEAR(TakvimGünü),1,0)))","v":"Gün 122"},{"$f":"IF(DAY(TakvimGünü)=1,CONCATENATE(\"Hafta \",WEEKNUM(TakvimGünü),\"/Gün \",TakvimGünü-DATE(YEAR(TakvimGünü),1,0)),CONCATENATE(\"Gün \",TakvimGünü-DATE(YEAR(TakvimGünü),1,0)))","v":"Gün 123"},{"$f":"IF(DAY(TakvimGünü)=1,CONCATENATE(\"Hafta \",WEEKNUM(TakvimGünü),\"/Gün \",TakvimGünü-DATE(YEAR(TakvimGünü),1,0)),CONCATENATE(\"Gün \",TakvimGünü-DATE(YEAR(TakvimGünü),1,0)))","v":"Gün 124"},{"$f":"IF(DAY(TakvimGünü)=1,CONCATENATE(\"Hafta \",WEEKNUM(TakvimGünü),\"/Gün \",TakvimGünü-DATE(YEAR(TakvimGünü),1,0)),CONCATENATE(\"Gün \",TakvimGünü-DATE(YEAR(TakvimGünü),1,0)))","v":"Gün 125"}]
[]
[null,null,{"$f":"GünlerVeHaftalar+DATE(TakvimYılı,5,1)-WEEKDAY(DATE(TakvimYılı,5,1),(HaftaBaşlangıcı=\"PZT\")+1)+8","v":"2018-05-06"},"2018-05-07","2018-05-08","2018-05-09","2018-05-10","2018-05-11","2018-05-12"]
[null,null,{"$f":"IF(WEEKDAY(TakvimGünü)=HaftaBaşlangıçDeğeri,CONCATENATE(\"Hafta \",WEEKNUM(TakvimGünü),\"/Gün \",TakvimGünü-DATE(YEAR(TakvimGünü),1,0)),CONCATENATE(\"Gün \",TakvimGünü-DATE(YEAR(TakvimGünü),1,0)))","v":"Hafta 19/Gün 126"},{"$f":"IF(WEEKDAY(TakvimGünü)=HaftaBaşlangıçDeğeri,CONCATENATE(\"Hafta \",WEEKNUM(TakvimGünü),\"/Gün \",TakvimGünü-DATE(YEAR(TakvimGünü),1,0)),CONCATENATE(\"Gün \",TakvimGünü-DATE(YEAR(TakvimGünü),1,0)))","v":"Gün 127"},{"$f":"IF(WEEKDAY(TakvimGünü)=HaftaBaşlangıçDeğeri,CONCATENATE(\"Hafta \",WEEKNUM(TakvimGünü),\"/Gün \",TakvimGünü-DATE(YEAR(TakvimGünü),1,0)),CONCATENATE(\"Gün \",TakvimGünü-DATE(YEAR(TakvimGünü),1,0)))","v":"Gün 128"},{"$f":"IF(WEEKDAY(TakvimGünü)=HaftaBaşlangıçDeğeri,CONCATENATE(\"Hafta \",WEEKNUM(TakvimGünü),\"/Gün \",TakvimGünü-DATE(YEAR(TakvimGünü),1,0)),CONCATENATE(\"Gün \",TakvimGünü-DATE(YEAR(TakvimGünü),1,0)))","v":"Gün 129"},{"$f":"IF(WEEKDAY(TakvimGünü)=HaftaBaşlangıçDeğeri,CONCATENATE(\"Hafta \",WEEKNUM(TakvimGünü),\"/Gün \",TakvimGünü-DATE(YEAR(TakvimGünü),1,0)),CONCATENATE(\"Gün \",TakvimGünü-DATE(YEAR(TakvimGünü),1,0)))","v":"Gün 130"},{"$f":"IF(WEEKDAY(TakvimGünü)=HaftaBaşlangıçDeğeri,CONCATENATE(\"Hafta \",WEEKNUM(TakvimGünü),\"/Gün \",TakvimGünü-DATE(YEAR(TakvimGünü),1,0)),CONCATENATE(\"Gün \",TakvimGünü-DATE(YEAR(TakvimGünü),1,0)))","v":"Gün 131"},{"$f":"IF(WEEKDAY(TakvimGünü)=HaftaBaşlangıçDeğeri,CONCATENATE(\"Hafta \",WEEKNUM(TakvimGünü),\"/Gün \",TakvimGünü-DATE(YEAR(TakvimGünü),1,0)),CONCATENATE(\"Gün \",TakvimGünü-DATE(YEAR(TakvimGünü),1,0)))","v":"Gün 132"}]
[]
[null,null,{"$f":"GünlerVeHaftalar+DATE(TakvimYılı,5,1)-WEEKDAY(DATE(TakvimYılı,5,1),(HaftaBaşlangıcı=\"PZT\")+1)+15","v":"2018-05-13"},"2018-05-14","2018-05-15","2018-05-16","2018-05-17","2018-05-18","2018-05-19"]
[null,null,{"$f":"IF(WEEKDAY(TakvimGünü)=HaftaBaşlangıçDeğeri,CONCATENATE(\"Hafta \",WEEKNUM(TakvimGünü),\"/Gün \",TakvimGünü-DATE(YEAR(TakvimGünü),1,0)),CONCATENATE(\"Gün \",TakvimGünü-DATE(YEAR(TakvimGünü),1,0)))","v":"Hafta 20/Gün 133"},{"$f":"IF(WEEKDAY(TakvimGünü)=HaftaBaşlangıçDeğeri,CONCATENATE(\"Hafta \",WEEKNUM(TakvimGünü),\"/Gün \",TakvimGünü-DATE(YEAR(TakvimGünü),1,0)),CONCATENATE(\"Gün \",TakvimGünü-DATE(YEAR(TakvimGünü),1,0)))","v":"Gün 134"},{"$f":"IF(WEEKDAY(TakvimGünü)=HaftaBaşlangıçDeğeri,CONCATENATE(\"Hafta \",WEEKNUM(TakvimGünü),\"/Gün \",TakvimGünü-DATE(YEAR(TakvimGünü),1,0)),CONCATENATE(\"Gün \",TakvimGünü-DATE(YEAR(TakvimGünü),1,0)))","v":"Gün 135"},{"$f":"IF(WEEKDAY(TakvimGünü)=HaftaBaşlangıçDeğeri,CONCATENATE(\"Hafta \",WEEKNUM(TakvimGünü),\"/Gün \",TakvimGünü-DATE(YEAR(TakvimGünü),1,0)),CONCATENATE(\"Gün \",TakvimGünü-DATE(YEAR(TakvimGünü),1,0)))","v":"Gün 136"},{"$f":"IF(WEEKDAY(TakvimGünü)=HaftaBaşlangıçDeğeri,CONCATENATE(\"Hafta \",WEEKNUM(TakvimGünü),\"/Gün \",TakvimGünü-DATE(YEAR(TakvimGünü),1,0)),CONCATENATE(\"Gün \",TakvimGünü-DATE(YEAR(TakvimGünü),1,0)))","v":"Gün 137"},{"$f":"IF(WEEKDAY(TakvimGünü)=HaftaBaşlangıçDeğeri,CONCATENATE(\"Hafta \",WEEKNUM(TakvimGünü),\"/Gün \",TakvimGünü-DATE(YEAR(TakvimGünü),1,0)),CONCATENATE(\"Gün \",TakvimGünü-DATE(YEAR(TakvimGünü),1,0)))","v":"Gün 138"},{"$f":"IF(WEEKDAY(TakvimGünü)=HaftaBaşlangıçDeğeri,CONCATENATE(\"Hafta \",WEEKNUM(TakvimGünü),\"/Gün \",TakvimGünü-DATE(YEAR(TakvimGünü),1,0)),CONCATENATE(\"Gün \",TakvimGünü-DATE(YEAR(TakvimGünü),1,0)))","v":"Gün 139"}]
[]
[null,null,{"$f":"GünlerVeHaftalar+DATE(TakvimYılı,5,1)-WEEKDAY(DATE(TakvimYılı,5,1),(HaftaBaşlangıcı=\"PZT\")+1)+22","v":"2018-05-20"},"2018-05-21","2018-05-22","2018-05-23","2018-05-24","2018-05-25","2018-05-26"]
[null,null,{"$f":"IF(WEEKDAY(TakvimGünü)=HaftaBaşlangıçDeğeri,CONCATENATE(\"Hafta \",WEEKNUM(TakvimGünü),\"/Gün \",TakvimGünü-DATE(YEAR(TakvimGünü),1,0)),CONCATENATE(\"Gün \",TakvimGünü-DATE(YEAR(TakvimGünü),1,0)))","v":"Hafta 21/Gün 140"},{"$f":"IF(WEEKDAY(TakvimGünü)=HaftaBaşlangıçDeğeri,CONCATENATE(\"Hafta \",WEEKNUM(TakvimGünü),\"/Gün \",TakvimGünü-DATE(YEAR(TakvimGünü),1,0)),CONCATENATE(\"Gün \",TakvimGünü-DATE(YEAR(TakvimGünü),1,0)))","v":"Gün 141"},{"$f":"IF(WEEKDAY(TakvimGünü)=HaftaBaşlangıçDeğeri,CONCATENATE(\"Hafta \",WEEKNUM(TakvimGünü),\"/Gün \",TakvimGünü-DATE(YEAR(TakvimGünü),1,0)),CONCATENATE(\"Gün \",TakvimGünü-DATE(YEAR(TakvimGünü),1,0)))","v":"Gün 142"},{"$f":"IF(WEEKDAY(TakvimGünü)=HaftaBaşlangıçDeğeri,CONCATENATE(\"Hafta \",WEEKNUM(TakvimGünü),\"/Gün \",TakvimGünü-DATE(YEAR(TakvimGünü),1,0)),CONCATENATE(\"Gün \",TakvimGünü-DATE(YEAR(TakvimGünü),1,0)))","v":"Gün 143"},{"$f":"IF(WEEKDAY(TakvimGünü)=HaftaBaşlangıçDeğeri,CONCATENATE(\"Hafta \",WEEKNUM(TakvimGünü),\"/Gün \",TakvimGünü-DATE(YEAR(TakvimGünü),1,0)),CONCATENATE(\"Gün \",TakvimGünü-DATE(YEAR(TakvimGünü),1,0)))","v":"Gün 144"},{"$f":"IF(WEEKDAY(TakvimGünü)=HaftaBaşlangıçDeğeri,CONCATENATE(\"Hafta \",WEEKNUM(TakvimGünü),\"/Gün \",TakvimGünü-DATE(YEAR(TakvimGünü),1,0)),CONCATENATE(\"Gün \",TakvimGünü-DATE(YEAR(TakvimGünü),1,0)))","v":"Gün 145"},{"$f":"IF(WEEKDAY(TakvimGünü)=HaftaBaşlangıçDeğeri,CONCATENATE(\"Hafta \",WEEKNUM(TakvimGünü),\"/Gün \",TakvimGünü-DATE(YEAR(TakvimGünü),1,0)),CONCATENATE(\"Gün \",TakvimGünü-DATE(YEAR(TakvimGünü),1,0)))","v":"Gün 146"}]
[]
[null,null,{"$f":"GünlerVeHaftalar+DATE(TakvimYılı,5,1)-WEEKDAY(DATE(TakvimYılı,5,1),(HaftaBaşlangıcı=\"PZT\")+1)+29","v":"2018-05-27"},"2018-05-28","2018-05-29","2018-05-30","2018-05-31","2018-06-01","2018-06-02"]
[null,null,{"$f":"IF(WEEKDAY(TakvimGünü)=HaftaBaşlangıçDeğeri,CONCATENATE(\"Hafta \",WEEKNUM(TakvimGünü),\"/Gün \",TakvimGünü-DATE(YEAR(TakvimGünü),1,0)),CONCATENATE(\"Gün \",TakvimGünü-DATE(YEAR(TakvimGünü),1,0)))","v":"Hafta 22/Gün 147"},{"$f":"IF(WEEKDAY(TakvimGünü)=HaftaBaşlangıçDeğeri,CONCATENATE(\"Hafta \",WEEKNUM(TakvimGünü),\"/Gün \",TakvimGünü-DATE(YEAR(TakvimGünü),1,0)),CONCATENATE(\"Gün \",TakvimGünü-DATE(YEAR(TakvimGünü),1,0)))","v":"Gün 148"},{"$f":"IF(WEEKDAY(TakvimGünü)=HaftaBaşlangıçDeğeri,CONCATENATE(\"Hafta \",WEEKNUM(TakvimGünü),\"/Gün \",TakvimGünü-DATE(YEAR(TakvimGünü),1,0)),CONCATENATE(\"Gün \",TakvimGünü-DATE(YEAR(TakvimGünü),1,0)))","v":"Gün 149"},{"$f":"IF(WEEKDAY(TakvimGünü)=HaftaBaşlangıçDeğeri,CONCATENATE(\"Hafta \",WEEKNUM(TakvimGünü),\"/Gün \",TakvimGünü-DATE(YEAR(TakvimGünü),1,0)),CONCATENATE(\"Gün \",TakvimGünü-DATE(YEAR(TakvimGünü),1,0)))","v":"Gün 150"},{"$f":"IF(WEEKDAY(TakvimGünü)=HaftaBaşlangıçDeğeri,CONCATENATE(\"Hafta \",WEEKNUM(TakvimGünü),\"/Gün \",TakvimGünü-DATE(YEAR(TakvimGünü),1,0)),CONCATENATE(\"Gün \",TakvimGünü-DATE(YEAR(TakvimGünü),1,0)))","v":"Gün 151"},{"$f":"IF(WEEKDAY(TakvimGünü)=HaftaBaşlangıçDeğeri,CONCATENATE(\"Hafta \",WEEKNUM(TakvimGünü),\"/Gün \",TakvimGünü-DATE(YEAR(TakvimGünü),1,0)),CONCATENATE(\"Gün \",TakvimGünü-DATE(YEAR(TakvimGünü),1,0)))","v":"Gün 152"},{"$f":"IF(WEEKDAY(TakvimGünü)=HaftaBaşlangıçDeğeri,CONCATENATE(\"Hafta \",WEEKNUM(TakvimGünü),\"/Gün \",TakvimGünü-DATE(YEAR(TakvimGünü),1,0)),CONCATENATE(\"Gün \",TakvimGünü-DATE(YEAR(TakvimGünü),1,0)))","v":"Gün 153"}]
[{"$nulls":4},"NOTLAR"]
[]
[null,null,{"$f":"GünlerVeHaftalar+DATE(TakvimYılı,5,1)-WEEKDAY(DATE(TakvimYılı,5,1),(HaftaBaşlangıcı=\"PZT\")+1)+36","v":"2018-06-03"},"2018-06-04"]
[null,null,{"$f":"IF(WEEKDAY(TakvimGünü)=HaftaBaşlangıçDeğeri,CONCATENATE(\"Hafta \",WEEKNUM(TakvimGünü),\"/Gün \",TakvimGünü-DATE(YEAR(TakvimGünü),1,0)),CONCATENATE(\"Gün \",TakvimGünü-DATE(YEAR(TakvimGünü),1,0)))","v":"Hafta 23/Gün 154"},{"$f":"IF(WEEKDAY(TakvimGünü)=HaftaBaşlangıçDeğeri,CONCATENATE(\"Hafta \",WEEKNUM(TakvimGünü),\"/Gün \",TakvimGünü-DATE(YEAR(TakvimGünü),1,0)),CONCATENATE(\"Gün \",TakvimGünü-DATE(YEAR(TakvimGünü),1,0)))","v":"Gün 155"}]

{"sheet":"HAZ","index":5,"n_rows":20,"n_cols":9,"rows_kept":20,"merged":[[16,2,17,2],[17,4,19,8]]}
[null,"HAZ",{"$f":"UPPER(TEXT(HaftaBaşlangıcı,\"ddd\"))","v":"PAZ"},{"$f":"UPPER(TEXT(D3,\"ggg\"))","v":"PZT"},"SAL","ÇAR","PER","CUM","CMT"]
[null,{"$f":"TakvimYılı","v":2018}]
[null,null,{"$f":"GünlerVeHaftalar+DATE(TakvimYılı,6,1)-WEEKDAY(DATE(TakvimYılı,6,1),(HaftaBaşlangıcı=\"PZT\")+1)+1","v":"2018-05-27"},"2018-05-28","2018-05-29","2018-05-30","2018-05-31","2018-06-01","2018-06-02"]
[null,null,{"$f":"IF(DAY(TakvimGünü)=1,CONCATENATE(\"Hafta \",WEEKNUM(TakvimGünü),\"/Gün \",TakvimGünü-DATE(YEAR(TakvimGünü),1,0)),CONCATENATE(\"Gün \",TakvimGünü-DATE(YEAR(TakvimGünü),1,0)))","v":"Gün 147"},{"$f":"IF(DAY(TakvimGünü)=1,CONCATENATE(\"Hafta \",WEEKNUM(TakvimGünü),\"/Gün \",TakvimGünü-DATE(YEAR(TakvimGünü),1,0)),CONCATENATE(\"Gün \",TakvimGünü-DATE(YEAR(TakvimGünü),1,0)))","v":"Gün 148"},{"$f":"IF(DAY(TakvimGünü)=1,CONCATENATE(\"Hafta \",WEEKNUM(TakvimGünü),\"/Gün \",TakvimGünü-DATE(YEAR(TakvimGünü),1,0)),CONCATENATE(\"Gün \",TakvimGünü-DATE(YEAR(TakvimGünü),1,0)))","v":"Gün 149"},{"$f":"IF(DAY(TakvimGünü)=1,CONCATENATE(\"Hafta \",WEEKNUM(TakvimGünü),\"/Gün \",TakvimGünü-DATE(YEAR(TakvimGünü),1,0)),CONCATENATE(\"Gün \",TakvimGünü-DATE(YEAR(TakvimGünü),1,0)))","v":"Gün 150"},{"$f":"IF(DAY(TakvimGünü)=1,CONCATENATE(\"Hafta \",WEEKNUM(TakvimGünü),\"/Gün \",TakvimGünü-DATE(YEAR(TakvimGünü),1,0)),CONCATENATE(\"Gün \",TakvimGünü-DATE(YEAR(TakvimGünü),1,0)))","v":"Gün 151"},{"$f":"IF(DAY(TakvimGünü)=1,CONCATENATE(\"Hafta \",WEEKNUM(TakvimGünü),\"/Gün \",TakvimGünü-DATE(YEAR(TakvimGünü),1,0)),CONCATENATE(\"Gün \",TakvimGünü-DATE(YEAR(TakvimGünü),1,0)))","v":"Hafta 22/Gün 152"},{"$f":"IF(DAY(TakvimGünü)=1,CONCATENATE(\"Hafta \",WEEKNUM(TakvimGünü),\"/Gün \",TakvimGünü-DATE(YEAR(TakvimGünü),1,0)),CONCATENATE(\"Gün \",TakvimGünü-DATE(YEAR(TakvimGünü),1,0)))","v":"Gün 153"}]
[]
[null,null,{"$f":"GünlerVeHaftalar+DATE(TakvimYılı,6,1)-WEEKDAY(DATE(TakvimYılı,6,1),(HaftaBaşlangıcı=\"PZT\")+1)+8","v":"2018-06-03"},"2018-06-04","2018-06-05","2018-06-06","2018-06-07","2018-06-08","2018-06-09"]
[null,null,{"$f":"IF(WEEKDAY(TakvimGünü)=HaftaBaşlangıçDeğeri,CONCATENATE(\"Hafta \",WEEKNUM(TakvimGünü),\"/Gün \",TakvimGünü-DATE(YEAR(TakvimGünü),1,0)),CONCATENATE(\"Gün \",TakvimGünü-DATE(YEAR(TakvimGünü),1,0)))","v":"Hafta 23/Gün 154"},{"$f":"IF(WEEKDAY(TakvimGünü)=HaftaBaşlangıçDeğeri,CONCATENATE(\"Hafta \",WEEKNUM(TakvimGünü),\"/Gün \",TakvimGünü-DATE(YEAR(TakvimGünü),1,0)),CONCATENATE(\"Gün \",TakvimGünü-DATE(YEAR(TakvimGünü),1,0)))","v":"Gün 155"},{"$f":"IF(WEEKDAY(TakvimGünü)=HaftaBaşlangıçDeğeri,CONCATENATE(\"Hafta \",WEEKNUM(TakvimGünü),\"/Gün \",TakvimGünü-DATE(YEAR(TakvimGünü),1,0)),CONCATENATE(\"Gün \",TakvimGünü-DATE(YEAR(TakvimGünü),1,0)))","v":"Gün 156"},{"$f":"IF(WEEKDAY(TakvimGünü)=HaftaBaşlangıçDeğeri,CONCATENATE(\"Hafta \",WEEKNUM(TakvimGünü),\"/Gün \",TakvimGünü-DATE(YEAR(TakvimGünü),1,0)),CONCATENATE(\"Gün \",TakvimGünü-DATE(YEAR(TakvimGünü),1,0)))","v":"Gün 157"},{"$f":"IF(WEEKDAY(TakvimGünü)=HaftaBaşlangıçDeğeri,CONCATENATE(\"Hafta \",WEEKNUM(TakvimGünü),\"/Gün \",TakvimGünü-DATE(YEAR(TakvimGünü),1,0)),CONCATENATE(\"Gün \",TakvimGünü-DATE(YEAR(TakvimGünü),1,0)))","v":"Gün 158"},{"$f":"IF(WEEKDAY(TakvimGünü)=HaftaBaşlangıçDeğeri,CONCATENATE(\"Hafta \",WEEKNUM(TakvimGünü),\"/Gün \",TakvimGünü-DATE(YEAR(TakvimGünü),1,0)),CONCATENATE(\"Gün \",TakvimGünü-DATE(YEAR(TakvimGünü),1,0)))","v":"Gün 159"},{"$f":"IF(WEEKDAY(TakvimGünü)=HaftaBaşlangıçDeğeri,CONCATENATE(\"Hafta \",WEEKNUM(TakvimGünü),\"/Gün \",TakvimGünü-DATE(YEAR(TakvimGünü),1,0)),CONCATENATE(\"Gün \",TakvimGünü-DATE(YEAR(TakvimGünü),1,0)))","v":"Gün 160"}]
[]
[null,null,{"$f":"GünlerVeHaftalar+DATE(TakvimYılı,6,1)-WEEKDAY(DATE(TakvimYılı,6,1),(HaftaBaşlangıcı=\"PZT\")+1)+15","v":"2018-06-10"},"2018-06-11","2018-06-12","2018-06-13","2018-06-14","2018-06-15","2018-06-16"]
[null,null,{"$f":"IF(WEEKDAY(TakvimGünü)=HaftaBaşlangıçDeğeri,CONCATENATE(\"Hafta \",WEEKNUM(TakvimGünü),\"/Gün \",TakvimGünü-DATE(YEAR(TakvimGünü),1,0)),CONCATENATE(\"Gün \",TakvimGünü-DATE(YEAR(TakvimGünü),1,0)))","v":"Hafta 24/Gün 161"},{"$f":"IF(WEEKDAY(TakvimGünü)=HaftaBaşlangıçDeğeri,CONCATENATE(\"Hafta \",WEEKNUM(TakvimGünü),\"/Gün \",TakvimGünü-DATE(YEAR(TakvimGünü),1,0)),CONCATENATE(\"Gün \",TakvimGünü-DATE(YEAR(TakvimGünü),1,0)))","v":"Gün 162"},{"$f":"IF(WEEKDAY(TakvimGünü)=HaftaBaşlangıçDeğeri,CONCATENATE(\"Hafta \",WEEKNUM(TakvimGünü),\"/Gün \",TakvimGünü-DATE(YEAR(TakvimGünü),1,0)),CONCATENATE(\"Gün \",TakvimGünü-DATE(YEAR(TakvimGünü),1,0)))","v":"Gün 163"},{"$f":"IF(WEEKDAY(TakvimGünü)=HaftaBaşlangıçDeğeri,CONCATENATE(\"Hafta \",WEEKNUM(TakvimGünü),\"/Gün \",TakvimGünü-DATE(YEAR(TakvimGünü),1,0)),CONCATENATE(\"Gün \",TakvimGünü-DATE(YEAR(TakvimGünü),1,0)))","v":"Gün 164"},{"$f":"IF(WEEKDAY(TakvimGünü)=HaftaBaşlangıçDeğeri,CONCATENATE(\"Hafta \",WEEKNUM(TakvimGünü),\"/Gün \",TakvimGünü-DATE(YEAR(TakvimGünü),1,0)),CONCATENATE(\"Gün \",TakvimGünü-DATE(YEAR(TakvimGünü),1,0)))","v":"Gün 165"},{"$f":"IF(WEEKDAY(TakvimGünü)=HaftaBaşlangıçDeğeri,CONCATENATE(\"Hafta \",WEEKNUM(TakvimGünü),\"/Gün \",TakvimGünü-DATE(YEAR(TakvimGünü),1,0)),CONCATENATE(\"Gün \",TakvimGünü-DATE(YEAR(TakvimGünü),1,0)))","v":"Gün 166"},{"$f":"IF(WEEKDAY(TakvimGünü)=HaftaBaşlangıçDeğeri,CONCATENATE(\"Hafta \",WEEKNUM(TakvimGünü),\"/Gün \",TakvimGünü-DATE(YEAR(TakvimGünü),1,0)),CONCATENATE(\"Gün \",TakvimGünü-DATE(YEAR(TakvimGünü),1,0)))","v":"Gün 167"}]
[]
[null,null,{"$f":"GünlerVeHaftalar+DATE(TakvimYılı,6,1)-WEEKDAY(DATE(TakvimYılı,6,1),(HaftaBaşlangıcı=\"PZT\")+1)+22","v":"2018-06-17"},"2018-06-18","2018-06-19","2018-06-20","2018-06-21","2018-06-22","2018-06-23"]
[null,null,{"$f":"IF(WEEKDAY(TakvimGünü)=HaftaBaşlangıçDeğeri,CONCATENATE(\"Hafta \",WEEKNUM(TakvimGünü),\"/Gün \",TakvimGünü-DATE(YEAR(TakvimGünü),1,0)),CONCATENATE(\"Gün \",TakvimGünü-DATE(YEAR(TakvimGünü),1,0)))","v":"Hafta 25/Gün 168"},{"$f":"IF(WEEKDAY(TakvimGünü)=HaftaBaşlangıçDeğeri,CONCATENATE(\"Hafta \",WEEKNUM(TakvimGünü),\"/Gün \",TakvimGünü-DATE(YEAR(TakvimGünü),1,0)),CONCATENATE(\"Gün \",TakvimGünü-DATE(YEAR(TakvimGünü),1,0)))","v":"Gün 169"},{"$f":"IF(WEEKDAY(TakvimGünü)=HaftaBaşlangıçDeğeri,CONCATENATE(\"Hafta \",WEEKNUM(TakvimGünü),\"/Gün \",TakvimGünü-DATE(YEAR(TakvimGünü),1,0)),CONCATENATE(\"Gün \",TakvimGünü-DATE(YEAR(TakvimGünü),1,0)))","v":"Gün 170"},{"$f":"IF(WEEKDAY(TakvimGünü)=HaftaBaşlangıçDeğeri,CONCATENATE(\"Hafta \",WEEKNUM(TakvimGünü),\"/Gün \",TakvimGünü-DATE(YEAR(TakvimGünü),1,0)),CONCATENATE(\"Gün \",TakvimGünü-DATE(YEAR(TakvimGünü),1,0)))","v":"Gün 171"},{"$f":"IF(WEEKDAY(TakvimGünü)=HaftaBaşlangıçDeğeri,CONCATENATE(\"Hafta \",WEEKNUM(TakvimGünü),\"/Gün \",TakvimGünü-DATE(YEAR(TakvimGünü),1,0)),CONCATENATE(\"Gün \",TakvimGünü-DATE(YEAR(TakvimGünü),1,0)))","v":"Gün 172"},{"$f":"IF(WEEKDAY(TakvimGünü)=HaftaBaşlangıçDeğeri,CONCATENATE(\"Hafta \",WEEKNUM(TakvimGünü),\"/Gün \",TakvimGünü-DATE(YEAR(TakvimGünü),1,0)),CONCATENATE(\"Gün \",TakvimGünü-DATE(YEAR(TakvimGünü),1,0)))","v":"Gün 173"},{"$f":"IF(WEEKDAY(TakvimGünü)=HaftaBaşlangıçDeğeri,CONCATENATE(\"Hafta \",WEEKNUM(TakvimGünü),\"/Gün \",TakvimGünü-DATE(YEAR(TakvimGünü),1,0)),CONCATENATE(\"Gün \",TakvimGünü-DATE(YEAR(TakvimGünü),1,0)))","v":"Gün 174"}]
[]
[null,null,{"$f":"GünlerVeHaftalar+DATE(TakvimYılı,6,1)-WEEKDAY(DATE(TakvimYılı,6,1),(HaftaBaşlangıcı=\"PZT\")+1)+29","v":"2018-06-24"},"2018-06-25","2018-06-26","2018-06-27","2018-06-28","2018-06-29","2018-06-30"]
[null,null,{"$f":"IF(WEEKDAY(TakvimGünü)=HaftaBaşlangıçDeğeri,CONCATENATE(\"Hafta \",WEEKNUM(TakvimGünü),\"/Gün \",TakvimGünü-DATE(YEAR(TakvimGünü),1,0)),CONCATENATE(\"Gün \",TakvimGünü-DATE(YEAR(TakvimGünü),1,0)))","v":"Hafta 26/Gün 175"},{"$f":"IF(WEEKDAY(TakvimGünü)=HaftaBaşlangıçDeğeri,CONCATENATE(\"Hafta \",WEEKNUM(TakvimGünü),\"/Gün \",TakvimGünü-DATE(YEAR(TakvimGünü),1,0)),CONCATENATE(\"Gün \",TakvimGünü-DATE(YEAR(TakvimGünü),1,0)))","v":"Gün 176"},{"$f":"IF(WEEKDAY(TakvimGünü)=HaftaBaşlangıçDeğeri,CONCATENATE(\"Hafta \",WEEKNUM(TakvimGünü),\"/Gün \",TakvimGünü-DATE(YEAR(TakvimGünü),1,0)),CONCATENATE(\"Gün \",TakvimGünü-DATE(YEAR(TakvimGünü),1,0)))","v":"Gün 177"},{"$f":"IF(WEEKDAY(TakvimGünü)=HaftaBaşlangıçDeğeri,CONCATENATE(\"Hafta \",WEEKNUM(TakvimGünü),\"/Gün \",TakvimGünü-DATE(YEAR(TakvimGünü),1,0)),CONCATENATE(\"Gün \",TakvimGünü-DATE(YEAR(TakvimGünü),1,0)))","v":"Gün 178"},{"$f":"IF(WEEKDAY(TakvimGünü)=HaftaBaşlangıçDeğeri,CONCATENATE(\"Hafta \",WEEKNUM(TakvimGünü),\"/Gün \",TakvimGünü-DATE(YEAR(TakvimGünü),1,0)),CONCATENATE(\"Gün \",TakvimGünü-DATE(YEAR(TakvimGünü),1,0)))","v":"Gün 179"},{"$f":"IF(WEEKDAY(TakvimGünü)=HaftaBaşlangıçDeğeri,CONCATENATE(\"Hafta \",WEEKNUM(TakvimGünü),\"/Gün \",TakvimGünü-DATE(YEAR(TakvimGünü),1,0)),CONCATENATE(\"Gün \",TakvimGünü-DATE(YEAR(TakvimGünü),1,0)))","v":"Gün 180"},{"$f":"IF(WEEKDAY(TakvimGünü)=HaftaBaşlangıçDeğeri,CONCATENATE(\"Hafta \",WEEKNUM(TakvimGünü),\"/Gün \",TakvimGünü-DATE(YEAR(TakvimGünü),1,0)),CONCATENATE(\"Gün \",TakvimGünü-DATE(YEAR(TakvimGünü),1,0)))","v":"Gün 181"}]
[{"$nulls":4},"NOTLAR"]
[]
[null,null,{"$f":"GünlerVeHaftalar+DATE(TakvimYılı,6,1)-WEEKDAY(DATE(TakvimYılı,6,1),(HaftaBaşlangıcı=\"PZT\")+1)+36","v":"2018-07-01"},"2018-07-02"]
[null,null,{"$f":"IF(WEEKDAY(TakvimGünü)=HaftaBaşlangıçDeğeri,CONCATENATE(\"Hafta \",WEEKNUM(TakvimGünü),\"/Gün \",TakvimGünü-DATE(YEAR(TakvimGünü),1,0)),CONCATENATE(\"Gün \",TakvimGünü-DATE(YEAR(TakvimGünü),1,0)))","v":"Hafta 27/Gün 182"},{"$f":"IF(WEEKDAY(TakvimGünü)=HaftaBaşlangıçDeğeri,CONCATENATE(\"Hafta \",WEEKNUM(TakvimGünü),\"/Gün \",TakvimGünü-DATE(YEAR(TakvimGünü),1,0)),CONCATENATE(\"Gün \",TakvimGünü-DATE(YEAR(TakvimGünü),1,0)))","v":"Gün 183"}]

{"sheet":"TEM","index":6,"n_rows":20,"n_cols":9,"rows_kept":20,"merged":[[16,2,17,2],[17,4,19,8]]}
[null,"TEM",{"$f":"UPPER(TEXT(HaftaBaşlangıcı,\"ddd\"))","v":"PAZ"},{"$f":"UPPER(TEXT(D3,\"ggg\"))","v":"PZT"},"SAL","ÇAR","PER","CUM","CMT"]
[null,{"$f":"TakvimYılı","v":2018}]
[null,null,{"$f":"GünlerVeHaftalar+DATE(TakvimYılı,7,1)-WEEKDAY(DATE(TakvimYılı,7,1),(HaftaBaşlangıcı=\"PZT\")+1)+1","v":"2018-07-01"},"2018-07-02","2018-07-03","2018-07-04","2018-07-05","2018-07-06","2018-07-07"]
[null,null,{"$f":"IF(DAY(TakvimGünü)=1,CONCATENATE(\"Hafta \",WEEKNUM(TakvimGünü),\"/Gün \",TakvimGünü-DATE(YEAR(TakvimGünü),1,0)),CONCATENATE(\"Gün \",TakvimGünü-DATE(YEAR(TakvimGünü),1,0)))","v":"Hafta 27/Gün 182"},{"$f":"IF(DAY(TakvimGünü)=1,CONCATENATE(\"Hafta \",WEEKNUM(TakvimGünü),\"/Gün \",TakvimGünü-DATE(YEAR(TakvimGünü),1,0)),CONCATENATE(\"Gün \",TakvimGünü-DATE(YEAR(TakvimGünü),1,0)))","v":"Gün 183"},{"$f":"IF(DAY(TakvimGünü)=1,CONCATENATE(\"Hafta \",WEEKNUM(TakvimGünü),\"/Gün \",TakvimGünü-DATE(YEAR(TakvimGünü),1,0)),CONCATENATE(\"Gün \",TakvimGünü-DATE(YEAR(TakvimGünü),1,0)))","v":"Gün 184"},{"$f":"IF(DAY(TakvimGünü)=1,CONCATENATE(\"Hafta \",WEEKNUM(TakvimGünü),\"/Gün \",TakvimGünü-DATE(YEAR(TakvimGünü),1,0)),CONCATENATE(\"Gün \",TakvimGünü-DATE(YEAR(TakvimGünü),1,0)))","v":"Gün 185"},{"$f":"IF(DAY(TakvimGünü)=1,CONCATENATE(\"Hafta \",WEEKNUM(TakvimGünü),\"/Gün \",TakvimGünü-DATE(YEAR(TakvimGünü),1,0)),CONCATENATE(\"Gün \",TakvimGünü-DATE(YEAR(TakvimGünü),1,0)))","v":"Gün 186"},{"$f":"IF(DAY(TakvimGünü)=1,CONCATENATE(\"Hafta \",WEEKNUM(TakvimGünü),\"/Gün \",TakvimGünü-DATE(YEAR(TakvimGünü),1,0)),CONCATENATE(\"Gün \",TakvimGünü-DATE(YEAR(TakvimGünü),1,0)))","v":"Gün 187"},{"$f":"IF(DAY(TakvimGünü)=1,CONCATENATE(\"Hafta \",WEEKNUM(TakvimGünü),\"/Gün \",TakvimGünü-DATE(YEAR(TakvimGünü),1,0)),CONCATENATE(\"Gün \",TakvimGünü-DATE(YEAR(TakvimGünü),1,0)))","v":"Gün 188"}]
[]
[null,null,{"$f":"GünlerVeHaftalar+DATE(TakvimYılı,7,1)-WEEKDAY(DATE(TakvimYılı,7,1),(HaftaBaşlangıcı=\"PZT\")+1)+8","v":"2018-07-08"},"2018-07-09","2018-07-10","2018-07-11","2018-07-12","2018-07-13","2018-07-14"]
[null,null,{"$f":"IF(WEEKDAY(TakvimGünü)=HaftaBaşlangıçDeğeri,CONCATENATE(\"Hafta \",WEEKNUM(TakvimGünü),\"/Gün \",TakvimGünü-DATE(YEAR(TakvimGünü),1,0)),CONCATENATE(\"Gün \",TakvimGünü-DATE(YEAR(TakvimGünü),1,0)))","v":"Hafta 28/Gün 189"},{"$f":"IF(WEEKDAY(TakvimGünü)=HaftaBaşlangıçDeğeri,CONCATENATE(\"Hafta \",WEEKNUM(TakvimGünü),\"/Gün \",TakvimGünü-DATE(YEAR(TakvimGünü),1,0)),CONCATENATE(\"Gün \",TakvimGünü-DATE(YEAR(TakvimGünü),1,0)))","v":"Gün 190"},{"$f":"IF(WEEKDAY(TakvimGünü)=HaftaBaşlangıçDeğeri,CONCATENATE(\"Hafta \",WEEKNUM(TakvimGünü),\"/Gün \",TakvimGünü-DATE(YEAR(TakvimGünü),1,0)),CONCATENATE(\"Gün \",TakvimGünü-DATE(YEAR(TakvimGünü),1,0)))","v":"Gün 191"},{"$f":"IF(WEEKDAY(TakvimGünü)=HaftaBaşlangıçDeğeri,CONCATENATE(\"Hafta \",WEEKNUM(TakvimGünü),\"/Gün \",TakvimGünü-DATE(YEAR(TakvimGünü),1,0)),CONCATENATE(\"Gün \",TakvimGünü-DATE(YEAR(TakvimGünü),1,0)))","v":"Gün 192"},{"$f":"IF(WEEKDAY(TakvimGünü)=HaftaBaşlangıçDeğeri,CONCATENATE(\"Hafta \",WEEKNUM(TakvimGünü),\"/Gün \",TakvimGünü-DATE(YEAR(TakvimGünü),1,0)),CONCATENATE(\"Gün \",TakvimGünü-DATE(YEAR(TakvimGünü),1,0)))","v":"Gün 193"},{"$f":"IF(WEEKDAY(TakvimGünü)=HaftaBaşlangıçDeğeri,CONCATENATE(\"Hafta \",WEEKNUM(TakvimGünü),\"/Gün \",TakvimGünü-DATE(YEAR(TakvimGünü),1,0)),CONCATENATE(\"Gün \",TakvimGünü-DATE(YEAR(TakvimGünü),1,0)))","v":"Gün 194"},{"$f":"IF(WEEKDAY(TakvimGünü)=HaftaBaşlangıçDeğeri,CONCATENATE(\"Hafta \",WEEKNUM(TakvimGünü),\"/Gün \",TakvimGünü-DATE(YEAR(TakvimGünü),1,0)),CONCATENATE(\"Gün \",TakvimGünü-DATE(YEAR(TakvimGünü),1,0)))","v":"Gün 195"}]
[]
[null,null,{"$f":"GünlerVeHaftalar+DATE(TakvimYılı,7,1)-WEEKDAY(DATE(TakvimYılı,7,1),(HaftaBaşlangıcı=\"PZT\")+1)+15","v":"2018-07-15"},"2018-07-16","2018-07-17","2018-07-18","2018-07-19","2018-07-20","2018-07-21"]
[null,null,{"$f":"IF(WEEKDAY(TakvimGünü)=HaftaBaşlangıçDeğeri,CONCATENATE(\"Hafta \",WEEKNUM(TakvimGünü),\"/Gün \",TakvimGünü-DATE(YEAR(TakvimGünü),1,0)),CONCATENATE(\"Gün \",TakvimGünü-DATE(YEAR(TakvimGünü),1,0)))","v":"Hafta 29/Gün 196"},{"$f":"IF(WEEKDAY(TakvimGünü)=HaftaBaşlangıçDeğeri,CONCATENATE(\"Hafta \",WEEKNUM(TakvimGünü),\"/Gün \",TakvimGünü-DATE(YEAR(TakvimGünü),1,0)),CONCATENATE(\"Gün \",TakvimGünü-DATE(YEAR(TakvimGünü),1,0)))","v":"Gün 197"},{"$f":"IF(WEEKDAY(TakvimGünü)=HaftaBaşlangıçDeğeri,CONCATENATE(\"Hafta \",WEEKNUM(TakvimGünü),\"/Gün \",TakvimGünü-DATE(YEAR(TakvimGünü),1,0)),CONCATENATE(\"Gün \",TakvimGünü-DATE(YEAR(TakvimGünü),1,0)))","v":"Gün 198"},{"$f":"IF(WEEKDAY(TakvimGünü)=HaftaBaşlangıçDeğeri,CONCATENATE(\"Hafta \",WEEKNUM(TakvimGünü),\"/Gün \",TakvimGünü-DATE(YEAR(TakvimGünü),1,0)),CONCATENATE(\"Gün \",TakvimGünü-DATE(YEAR(TakvimGünü),1,0)))","v":"Gün 199"},{"$f":"IF(WEEKDAY(TakvimGünü)=HaftaBaşlangıçDeğeri,CONCATENATE(\"Hafta \",WEEKNUM(TakvimGünü),\"/Gün \",TakvimGünü-DATE(YEAR(TakvimGünü),1,0)),CONCATENATE(\"Gün \",TakvimGünü-DATE(YEAR(TakvimGünü),1,0)))","v":"Gün 200"},{"$f":"IF(WEEKDAY(TakvimGünü)=HaftaBaşlangıçDeğeri,CONCATENATE(\"Hafta \",WEEKNUM(TakvimGünü),\"/Gün \",TakvimGünü-DATE(YEAR(TakvimGünü),1,0)),CONCATENATE(\"Gün \",TakvimGünü-DATE(YEAR(TakvimGünü),1,0)))","v":"Gün 201"},{"$f":"IF(WEEKDAY(TakvimGünü)=HaftaBaşlangıçDeğeri,CONCATENATE(\"Hafta \",WEEKNUM(TakvimGünü),\"/Gün \",TakvimGünü-DATE(YEAR(TakvimGünü),1,0)),CONCATENATE(\"Gün \",TakvimGünü-DATE(YEAR(TakvimGünü),1,0)))","v":"Gün 202"}]
[]
[null,null,{"$f":"GünlerVeHaftalar+DATE(TakvimYılı,7,1)-WEEKDAY(DATE(TakvimYılı,7,1),(HaftaBaşlangıcı=\"PZT\")+1)+22","v":"2018-07-22"},"2018-07-23","2018-07-24","2018-07-25","2018-07-26","2018-07-27","2018-07-28"]
[null,null,{"$f":"IF(WEEKDAY(TakvimGünü)=HaftaBaşlangıçDeğeri,CONCATENATE(\"Hafta \",WEEKNUM(TakvimGünü),\"/Gün \",TakvimGünü-DATE(YEAR(TakvimGünü),1,0)),CONCATENATE(\"Gün \",TakvimGünü-DATE(YEAR(TakvimGünü),1,0)))","v":"Hafta 30/Gün 203"},{"$f":"IF(WEEKDAY(TakvimGünü)=HaftaBaşlangıçDeğeri,CONCATENATE(\"Hafta \",WEEKNUM(TakvimGünü),\"/Gün \",TakvimGünü-DATE(YEAR(TakvimGünü),1,0)),CONCATENATE(\"Gün \",TakvimGünü-DATE(YEAR(TakvimGünü),1,0)))","v":"Gün 204"},{"$f":"IF(WEEKDAY(TakvimGünü)=HaftaBaşlangıçDeğeri,CONCATENATE(\"Hafta \",WEEKNUM(TakvimGünü),\"/Gün \",TakvimGünü-DATE(YEAR(TakvimGünü),1,0)),CONCATENATE(\"Gün \",TakvimGünü-DATE(YEAR(TakvimGünü),1,0)))","v":"Gün 205"},{"$f":"IF(WEEKDAY(TakvimGünü)=HaftaBaşlangıçDeğeri,CONCATENATE(\"Hafta \",WEEKNUM(TakvimGünü),\"/Gün \",TakvimGünü-DATE(YEAR(TakvimGünü),1,0)),CONCATENATE(\"Gün \",TakvimGünü-DATE(YEAR(TakvimGünü),1,0)))","v":"Gün 206"},{"$f":"IF(WEEKDAY(TakvimGünü)=HaftaBaşlangıçDeğeri,CONCATENATE(\"Hafta \",WEEKNUM(TakvimGünü),\"/Gün \",TakvimGünü-DATE(YEAR(TakvimGünü),1,0)),CONCATENATE(\"Gün \",TakvimGünü-DATE(YEAR(TakvimGünü),1,0)))","v":"Gün 207"},{"$f":"IF(WEEKDAY(TakvimGünü)=HaftaBaşlangıçDeğeri,CONCATENATE(\"Hafta \",WEEKNUM(TakvimGünü),\"/Gün \",TakvimGünü-DATE(YEAR(TakvimGünü),1,0)),CONCATENATE(\"Gün \",TakvimGünü-DATE(YEAR(TakvimGünü),1,0)))","v":"Gün 208"},{"$f":"IF(WEEKDAY(TakvimGünü)=HaftaBaşlangıçDeğeri,CONCATENATE(\"Hafta \",WEEKNUM(TakvimGünü),\"/Gün \",TakvimGünü-DATE(YEAR(TakvimGünü),1,0)),CONCATENATE(\"Gün \",TakvimGünü-DATE(YEAR(TakvimGünü),1,0)))","v":"Gün 209"}]
[]
[null,null,{"$f":"GünlerVeHaftalar+DATE(TakvimYılı,7,1)-WEEKDAY(DATE(TakvimYılı,7,1),(HaftaBaşlangıcı=\"PZT\")+1)+29","v":"2018-07-29"},"2018-07-30","2018-07-31","2018-08-01","2018-08-02","2018-08-03","2018-08-04"]
[null,null,{"$f":"IF(WEEKDAY(TakvimGünü)=HaftaBaşlangıçDeğeri,CONCATENATE(\"Hafta \",WEEKNUM(TakvimGünü),\"/Gün \",TakvimGünü-DATE(YEAR(TakvimGünü),1,0)),CONCATENATE(\"Gün \",TakvimGünü-DATE(YEAR(TakvimGünü),1,0)))","v":"Hafta 31/Gün 210"},{"$f":"IF(WEEKDAY(TakvimGünü)=HaftaBaşlangıçDeğeri,CONCATENATE(\"Hafta \",WEEKNUM(TakvimGünü),\"/Gün \",TakvimGünü-DATE(YEAR(TakvimGünü),1,0)),CONCATENATE(\"Gün \",TakvimGünü-DATE(YEAR(TakvimGünü),1,0)))","v":"Gün 211"},{"$f":"IF(WEEKDAY(TakvimGünü)=HaftaBaşlangıçDeğeri,CONCATENATE(\"Hafta \",WEEKNUM(TakvimGünü),\"/Gün \",TakvimGünü-DATE(YEAR(TakvimGünü),1,0)),CONCATENATE(\"Gün \",TakvimGünü-DATE(YEAR(TakvimGünü),1,0)))","v":"Gün 212"},{"$f":"IF(WEEKDAY(TakvimGünü)=HaftaBaşlangıçDeğeri,CONCATENATE(\"Hafta \",WEEKNUM(TakvimGünü),\"/Gün \",TakvimGünü-DATE(YEAR(TakvimGünü),1,0)),CONCATENATE(\"Gün \",TakvimGünü-DATE(YEAR(TakvimGünü),1,0)))","v":"Gün 213"},{"$f":"IF(WEEKDAY(TakvimGünü)=HaftaBaşlangıçDeğeri,CONCATENATE(\"Hafta \",WEEKNUM(TakvimGünü),\"/Gün \",TakvimGünü-DATE(YEAR(TakvimGünü),1,0)),CONCATENATE(\"Gün \",TakvimGünü-DATE(YEAR(TakvimGünü),1,0)))","v":"Gün 214"},{"$f":"IF(WEEKDAY(TakvimGünü)=HaftaBaşlangıçDeğeri,CONCATENATE(\"Hafta \",WEEKNUM(TakvimGünü),\"/Gün \",TakvimGünü-DATE(YEAR(TakvimGünü),1,0)),CONCATENATE(\"Gün \",TakvimGünü-DATE(YEAR(TakvimGünü),1,0)))","v":"Gün 215"},{"$f":"IF(WEEKDAY(TakvimGünü)=HaftaBaşlangıçDeğeri,CONCATENATE(\"Hafta \",WEEKNUM(TakvimGünü),\"/Gün \",TakvimGünü-DATE(YEAR(TakvimGünü),1,0)),CONCATENATE(\"Gün \",TakvimGünü-DATE(YEAR(TakvimGünü),1,0)))","v":"Gün 216"}]
[{"$nulls":4},"NOTLAR"]
[]
[null,null,{"$f":"GünlerVeHaftalar+DATE(TakvimYılı,7,1)-WEEKDAY(DATE(TakvimYılı,7,1),(HaftaBaşlangıcı=\"PZT\")+1)+36","v":"2018-08-05"},"2018-08-06"]
[null,null,{"$f":"IF(WEEKDAY(TakvimGünü)=HaftaBaşlangıçDeğeri,CONCATENATE(\"Hafta \",WEEKNUM(TakvimGünü),\"/Gün \",TakvimGünü-DATE(YEAR(TakvimGünü),1,0)),CONCATENATE(\"Gün \",TakvimGünü-DATE(YEAR(TakvimGünü),1,0)))","v":"Hafta 32/Gün 217"},{"$f":"IF(WEEKDAY(TakvimGünü)=HaftaBaşlangıçDeğeri,CONCATENATE(\"Hafta \",WEEKNUM(TakvimGünü),\"/Gün \",TakvimGünü-DATE(YEAR(TakvimGünü),1,0)),CONCATENATE(\"Gün \",TakvimGünü-DATE(YEAR(TakvimGünü),1,0)))","v":"Gün 218"}]

{"sheet":"AĞU","index":7,"n_rows":20,"n_cols":9,"rows_kept":20,"merged":[[16,2,17,2],[17,4,19,8]]}
[null,"AĞU",{"$f":"UPPER(TEXT(HaftaBaşlangıcı,\"ddd\"))","v":"PAZ"},{"$f":"UPPER(TEXT(D3,\"ggg\"))","v":"PZT"},"SAL","ÇAR","PER","CUM","CMT"]
[null,{"$f":"TakvimYılı","v":2018}]
[null,null,{"$f":"GünlerVeHaftalar+DATE(TakvimYılı,8,1)-WEEKDAY(DATE(TakvimYılı,8,1),(HaftaBaşlangıcı=\"PZT\")+1)+1","v":"2018-07-29"},"2018-07-30","2018-07-31","2018-08-01","2018-08-02","2018-08-03","2018-08-04"]
[null,null,{"$f":"IF(DAY(TakvimGünü)=1,CONCATENATE(\"Hafta \",WEEKNUM(TakvimGünü),\"/Gün \",TakvimGünü-DATE(YEAR(TakvimGünü),1,0)),CONCATENATE(\"Gün \",TakvimGünü-DATE(YEAR(TakvimGünü),1,0)))","v":"Gün 210"},{"$f":"IF(DAY(TakvimGünü)=1,CONCATENATE(\"Hafta \",WEEKNUM(TakvimGünü),\"/Gün \",TakvimGünü-DATE(YEAR(TakvimGünü),1,0)),CONCATENATE(\"Gün \",TakvimGünü-DATE(YEAR(TakvimGünü),1,0)))","v":"Gün 211"},{"$f":"IF(DAY(TakvimGünü)=1,CONCATENATE(\"Hafta \",WEEKNUM(TakvimGünü),\"/Gün \",TakvimGünü-DATE(YEAR(TakvimGünü),1,0)),CONCATENATE(\"Gün \",TakvimGünü-DATE(YEAR(TakvimGünü),1,0)))","v":"Gün 212"},{"$f":"IF(DAY(TakvimGünü)=1,CONCATENATE(\"Hafta \",WEEKNUM(TakvimGünü),\"/Gün \",TakvimGünü-DATE(YEAR(TakvimGünü),1,0)),CONCATENATE(\"Gün \",TakvimGünü-DATE(YEAR(TakvimGünü),1,0)))","v":"Hafta 31/Gün 213"},{"$f":"IF(DAY(TakvimGünü)=1,CONCATENATE(\"Hafta \",WEEKNUM(TakvimGünü),\"/Gün \",TakvimGünü-DATE(YEAR(TakvimGünü),1,0)),CONCATENATE(\"Gün \",TakvimGünü-DATE(YEAR(TakvimGünü),1,0)))","v":"Gün 214"},{"$f":"IF(DAY(TakvimGünü)=1,CONCATENATE(\"Hafta \",WEEKNUM(TakvimGünü),\"/Gün \",TakvimGünü-DATE(YEAR(TakvimGünü),1,0)),CONCATENATE(\"Gün \",TakvimGünü-DATE(YEAR(TakvimGünü),1,0)))","v":"Gün 215"},{"$f":"IF(DAY(TakvimGünü)=1,CONCATENATE(\"Hafta \",WEEKNUM(TakvimGünü),\"/Gün \",TakvimGünü-DATE(YEAR(TakvimGünü),1,0)),CONCATENATE(\"Gün \",TakvimGünü-DATE(YEAR(TakvimGünü),1,0)))","v":"Gün 216"}]
[]
[null,null,{"$f":"GünlerVeHaftalar+DATE(TakvimYılı,8,1)-WEEKDAY(DATE(TakvimYılı,8,1),(HaftaBaşlangıcı=\"PZT\")+1)+8","v":"2018-08-05"},"2018-08-06","2018-08-07","2018-08-08","2018-08-09","2018-08-10","2018-08-11"]
[null,null,{"$f":"IF(WEEKDAY(TakvimGünü)=HaftaBaşlangıçDeğeri,CONCATENATE(\"Hafta \",WEEKNUM(TakvimGünü),\"/Gün \",TakvimGünü-DATE(YEAR(TakvimGünü),1,0)),CONCATENATE(\"Gün \",TakvimGünü-DATE(YEAR(TakvimGünü),1,0)))","v":"Hafta 32/Gün 217"},{"$f":"IF(WEEKDAY(TakvimGünü)=HaftaBaşlangıçDeğeri,CONCATENATE(\"Hafta \",WEEKNUM(TakvimGünü),\"/Gün \",TakvimGünü-DATE(YEAR(TakvimGünü),1,0)),CONCATENATE(\"Gün \",TakvimGünü-DATE(YEAR(TakvimGünü),1,0)))","v":"Gün 218"},{"$f":"IF(WEEKDAY(TakvimGünü)=HaftaBaşlangıçDeğeri,CONCATENATE(\"Hafta \",WEEKNUM(TakvimGünü),\"/Gün \",TakvimGünü-DATE(YEAR(TakvimGünü),1,0)),CONCATENATE(\"Gün \",TakvimGünü-DATE(YEAR(TakvimGünü),1,0)))","v":"Gün 219"},{"$f":"IF(WEEKDAY(TakvimGünü)=HaftaBaşlangıçDeğeri,CONCATENATE(\"Hafta \",WEEKNUM(TakvimGünü),\"/Gün \",TakvimGünü-DATE(YEAR(TakvimGünü),1,0)),CONCATENATE(\"Gün \",TakvimGünü-DATE(YEAR(TakvimGünü),1,0)))","v":"Gün 220"},{"$f":"IF(WEEKDAY(TakvimGünü)=HaftaBaşlangıçDeğeri,CONCATENATE(\"Hafta \",WEEKNUM(TakvimGünü),\"/Gün \",TakvimGünü-DATE(YEAR(TakvimGünü),1,0)),CONCATENATE(\"Gün \",TakvimGünü-DATE(YEAR(TakvimGünü),1,0)))","v":"Gün 221"},{"$f":"IF(WEEKDAY(TakvimGünü)=HaftaBaşlangıçDeğeri,CONCATENATE(\"Hafta \",WEEKNUM(TakvimGünü),\"/Gün \",TakvimGünü-DATE(YEAR(TakvimGünü),1,0)),CONCATENATE(\"Gün \",TakvimGünü-DATE(YEAR(TakvimGünü),1,0)))","v":"Gün 222"},{"$f":"IF(WEEKDAY(TakvimGünü)=HaftaBaşlangıçDeğeri,CONCATENATE(\"Hafta \",WEEKNUM(TakvimGünü),\"/Gün \",TakvimGünü-DATE(YEAR(TakvimGünü),1,0)),CONCATENATE(\"Gün \",TakvimGünü-DATE(YEAR(TakvimGünü),1,0)))","v":"Gün 223"}]
[]
[null,null,{"$f":"GünlerVeHaftalar+DATE(TakvimYılı,8,1)-WEEKDAY(DATE(TakvimYılı,8,1),(HaftaBaşlangıcı=\"PZT\")+1)+15","v":"2018-08-12"},"2018-08-13","2018-08-14","2018-08-15","2018-08-16","2018-08-17","2018-08-18"]
[null,null,{"$f":"IF(WEEKDAY(TakvimGünü)=HaftaBaşlangıçDeğeri,CONCATENATE(\"Hafta \",WEEKNUM(TakvimGünü),\"/Gün \",TakvimGünü-DATE(YEAR(TakvimGünü),1,0)),CONCATENATE(\"Gün \",TakvimGünü-DATE(YEAR(TakvimGünü),1,0)))","v":"Hafta 33/Gün 224"},{"$f":"IF(WEEKDAY(TakvimGünü)=HaftaBaşlangıçDeğeri,CONCATENATE(\"Hafta \",WEEKNUM(TakvimGünü),\"/Gün \",TakvimGünü-DATE(YEAR(TakvimGünü),1,0)),CONCATENATE(\"Gün \",TakvimGünü-DATE(YEAR(TakvimGünü),1,0)))","v":"Gün 225"},{"$f":"IF(WEEKDAY(TakvimGünü)=HaftaBaşlangıçDeğeri,CONCATENATE(\"Hafta \",WEEKNUM(TakvimGünü),\"/Gün \",TakvimGünü-DATE(YEAR(TakvimGünü),1,0)),CONCATENATE(\"Gün \",TakvimGünü-DATE(YEAR(TakvimGünü),1,0)))","v":"Gün 226"},{"$f":"IF(WEEKDAY(TakvimGünü)=HaftaBaşlangıçDeğeri,CONCATENATE(\"Hafta \",WEEKNUM(TakvimGünü),\"/Gün \",TakvimGünü-DATE(YEAR(TakvimGünü),1,0)),CONCATENATE(\"Gün \",TakvimGünü-DATE(YEAR(TakvimGünü),1,0)))","v":"Gün 227"},{"$f":"IF(WEEKDAY(TakvimGünü)=HaftaBaşlangıçDeğeri,CONCATENATE(\"Hafta \",WEEKNUM(TakvimGünü),\"/Gün \",TakvimGünü-DATE(YEAR(TakvimGünü),1,0)),CONCATENATE(\"Gün \",TakvimGünü-DATE(YEAR(TakvimGünü),1,0)))","v":"Gün 228"},{"$f":"IF(WEEKDAY(TakvimGünü)=HaftaBaşlangıçDeğeri,CONCATENATE(\"Hafta \",WEEKNUM(TakvimGünü),\"/Gün \",TakvimGünü-DATE(YEAR(TakvimGünü),1,0)),CONCATENATE(\"Gün \",TakvimGünü-DATE(YEAR(TakvimGünü),1,0)))","v":"Gün 229"},{"$f":"IF(WEEKDAY(TakvimGünü)=HaftaBaşlangıçDeğeri,CONCATENATE(\"Hafta \",WEEKNUM(TakvimGünü),\"/Gün \",TakvimGünü-DATE(YEAR(TakvimGünü),1,0)),CONCATENATE(\"Gün \",TakvimGünü-DATE(YEAR(TakvimGünü),1,0)))","v":"Gün 230"}]
[]
[null,null,{"$f":"GünlerVeHaftalar+DATE(TakvimYılı,8,1)-WEEKDAY(DATE(TakvimYılı,8,1),(HaftaBaşlangıcı=\"PZT\")+1)+22","v":"2018-08-19"},"2018-08-20","2018-08-21","2018-08-22","2018-08-23","2018-08-24","2018-08-25"]
[null,null,{"$f":"IF(WEEKDAY(TakvimGünü)=HaftaBaşlangıçDeğeri,CONCATENATE(\"Hafta \",WEEKNUM(TakvimGünü),\"/Gün \",TakvimGünü-DATE(YEAR(TakvimGünü),1,0)),CONCATENATE(\"Gün \",TakvimGünü-DATE(YEAR(TakvimGünü),1,0)))","v":"Hafta 34/Gün 231"},{"$f":"IF(WEEKDAY(TakvimGünü)=HaftaBaşlangıçDeğeri,CONCATENATE(\"Hafta \",WEEKNUM(TakvimGünü),\"/Gün \",TakvimGünü-DATE(YEAR(TakvimGünü),1,0)),CONCATENATE(\"Gün \",TakvimGünü-DATE(YEAR(TakvimGünü),1,0)))","v":"Gün 232"},{"$f":"IF(WEEKDAY(TakvimGünü)=HaftaBaşlangıçDeğeri,CONCATENATE(\"Hafta \",WEEKNUM(TakvimGünü),\"/Gün \",TakvimGünü-DATE(YEAR(TakvimGünü),1,0)),CONCATENATE(\"Gün \",TakvimGünü-DATE(YEAR(TakvimGünü),1,0)))","v":"Gün 233"},{"$f":"IF(WEEKDAY(TakvimGünü)=HaftaBaşlangıçDeğeri,CONCATENATE(\"Hafta \",WEEKNUM(TakvimGünü),\"/Gün \",TakvimGünü-DATE(YEAR(TakvimGünü),1,0)),CONCATENATE(\"Gün \",TakvimGünü-DATE(YEAR(TakvimGünü),1,0)))","v":"Gün 234"},{"$f":"IF(WEEKDAY(TakvimGünü)=HaftaBaşlangıçDeğeri,CONCATENATE(\"Hafta \",WEEKNUM(TakvimGünü),\"/Gün \",TakvimGünü-DATE(YEAR(TakvimGünü),1,0)),CONCATENATE(\"Gün \",TakvimGünü-DATE(YEAR(TakvimGünü),1,0)))","v":"Gün 235"},{"$f":"IF(WEEKDAY(TakvimGünü)=HaftaBaşlangıçDeğeri,CONCATENATE(\"Hafta \",WEEKNUM(TakvimGünü),\"/Gün \",TakvimGünü-DATE(YEAR(TakvimGünü),1,0)),CONCATENATE(\"Gün \",TakvimGünü-DATE(YEAR(TakvimGünü),1,0)))","v":"Gün 236"},{"$f":"IF(WEEKDAY(TakvimGünü)=HaftaBaşlangıçDeğeri,CONCATENATE(\"Hafta \",WEEKNUM(TakvimGünü),\"/Gün \",TakvimGünü-DATE(YEAR(TakvimGünü),1,0)),CONCATENATE(\"Gün \",TakvimGünü-DATE(YEAR(TakvimGünü),1,0)))","v":"Gün 237"}]
[]
[null,null,{"$f":"GünlerVeHaftalar+DATE(TakvimYılı,8,1)-WEEKDAY(DATE(TakvimYılı,8,1),(HaftaBaşlangıcı=\"PZT\")+1)+29","v":"2018-08-26"},"2018-08-27","2018-08-28","2018-08-29","2018-08-30","2018-08-31","2018-09-01"]
[null,null,{"$f":"IF(WEEKDAY(TakvimGünü)=HaftaBaşlangıçDeğeri,CONCATENATE(\"Hafta \",WEEKNUM(TakvimGünü),\"/Gün \",TakvimGünü-DATE(YEAR(TakvimGünü),1,0)),CONCATENATE(\"Gün \",TakvimGünü-DATE(YEAR(TakvimGünü),1,0)))","v":"Hafta 35/Gün 238"},{"$f":"IF(WEEKDAY(TakvimGünü)=HaftaBaşlangıçDeğeri,CONCATENATE(\"Hafta \",WEEKNUM(TakvimGünü),\"/Gün \",TakvimGünü-DATE(YEAR(TakvimGünü),1,0)),CONCATENATE(\"Gün \",TakvimGünü-DATE(YEAR(TakvimGünü),1,0)))","v":"Gün 239"},{"$f":"IF(WEEKDAY(TakvimGünü)=HaftaBaşlangıçDeğeri,CONCATENATE(\"Hafta \",WEEKNUM(TakvimGünü),\"/Gün \",TakvimGünü-DATE(YEAR(TakvimGünü),1,0)),CONCATENATE(\"Gün \",TakvimGünü-DATE(YEAR(TakvimGünü),1,0)))","v":"Gün 240"},{"$f":"IF(WEEKDAY(TakvimGünü)=HaftaBaşlangıçDeğeri,CONCATENATE(\"Hafta \",WEEKNUM(TakvimGünü),\"/Gün \",TakvimGünü-DATE(YEAR(TakvimGünü),1,0)),CONCATENATE(\"Gün \",TakvimGünü-DATE(YEAR(TakvimGünü),1,0)))","v":"Gün 241"},{"$f":"IF(WEEKDAY(TakvimGünü)=HaftaBaşlangıçDeğeri,CONCATENATE(\"Hafta \",WEEKNUM(TakvimGünü),\"/Gün \",TakvimGünü-DATE(YEAR(TakvimGünü),1,0)),CONCATENATE(\"Gün \",TakvimGünü-DATE(YEAR(TakvimGünü),1,0)))","v":"Gün 242"},{"$f":"IF(WEEKDAY(TakvimGünü)=HaftaBaşlangıçDeğeri,CONCATENATE(\"Hafta \",WEEKNUM(TakvimGünü),\"/Gün \",TakvimGünü-DATE(YEAR(TakvimGünü),1,0)),CONCATENATE(\"Gün \",TakvimGünü-DATE(YEAR(TakvimGünü),1,0)))","v":"Gün 243"},{"$f":"IF(WEEKDAY(TakvimGünü)=HaftaBaşlangıçDeğeri,CONCATENATE(\"Hafta \",WEEKNUM(TakvimGünü),\"/Gün \",TakvimGünü-DATE(YEAR(TakvimGünü),1,0)),CONCATENATE(\"Gün \",TakvimGünü-DATE(YEAR(TakvimGünü),1,0)))","v":"Gün 244"}]
[{"$nulls":4},"NOTLAR"]
[]
[null,null,{"$f":"GünlerVeHaftalar+DATE(TakvimYılı,8,1)-WEEKDAY(DATE(TakvimYılı,8,1),(HaftaBaşlangıcı=\"PZT\")+1)+36","v":"2018-09-02"},"2018-09-03"]
[null,null,{"$f":"IF(WEEKDAY(TakvimGünü)=HaftaBaşlangıçDeğeri,CONCATENATE(\"Hafta \",WEEKNUM(TakvimGünü),\"/Gün \",TakvimGünü-DATE(YEAR(TakvimGünü),1,0)),CONCATENATE(\"Gün \",TakvimGünü-DATE(YEAR(TakvimGünü),1,0)))","v":"Hafta 36/Gün 245"},{"$f":"IF(WEEKDAY(TakvimGünü)=HaftaBaşlangıçDeğeri,CONCATENATE(\"Hafta \",WEEKNUM(TakvimGünü),\"/Gün \",TakvimGünü-DATE(YEAR(TakvimGünü),1,0)),CONCATENATE(\"Gün \",TakvimGünü-DATE(YEAR(TakvimGünü),1,0)))","v":"Gün 246"}]

{"sheet":"EYL","index":8,"n_rows":20,"n_cols":9,"rows_kept":20,"merged":[[16,2,17,2],[17,4,19,8]]}
[null,"EYL",{"$f":"UPPER(TEXT(HaftaBaşlangıcı,\"ddd\"))","v":"PAZ"},{"$f":"UPPER(TEXT(D3,\"ggg\"))","v":"PZT"},"SAL","ÇAR","PER","CUM","CMT"]
[null,{"$f":"TakvimYılı","v":2018}]
[null,null,{"$f":"GünlerVeHaftalar+DATE(TakvimYılı,9,1)-WEEKDAY(DATE(TakvimYılı,9,1),(HaftaBaşlangıcı=\"PZT\")+1)+1","v":"2018-08-26"},"2018-08-27","2018-08-28","2018-08-29","2018-08-30","2018-08-31","2018-09-01"]
[null,null,{"$f":"IF(DAY(TakvimGünü)=1,CONCATENATE(\"Hafta \",WEEKNUM(TakvimGünü),\"/Gün \",TakvimGünü-DATE(YEAR(TakvimGünü),1,0)),CONCATENATE(\"Gün \",TakvimGünü-DATE(YEAR(TakvimGünü),1,0)))","v":"Gün 238"},{"$f":"IF(DAY(TakvimGünü)=1,CONCATENATE(\"Hafta \",WEEKNUM(TakvimGünü),\"/Gün \",TakvimGünü-DATE(YEAR(TakvimGünü),1,0)),CONCATENATE(\"Gün \",TakvimGünü-DATE(YEAR(TakvimGünü),1,0)))","v":"Gün 239"},{"$f":"IF(DAY(TakvimGünü)=1,CONCATENATE(\"Hafta \",WEEKNUM(TakvimGünü),\"/Gün \",TakvimGünü-DATE(YEAR(TakvimGünü),1,0)),CONCATENATE(\"Gün \",TakvimGünü-DATE(YEAR(TakvimGünü),1,0)))","v":"Gün 240"},{"$f":"IF(DAY(TakvimGünü)=1,CONCATENATE(\"Hafta \",WEEKNUM(TakvimGünü),\"/Gün \",TakvimGünü-DATE(YEAR(TakvimGünü),1,0)),CONCATENATE(\"Gün \",TakvimGünü-DATE(YEAR(TakvimGünü),1,0)))","v":"Gün 241"},{"$f":"IF(DAY(TakvimGünü)=1,CONCATENATE(\"Hafta \",WEEKNUM(TakvimGünü),\"/Gün \",TakvimGünü-DATE(YEAR(TakvimGünü),1,0)),CONCATENATE(\"Gün \",TakvimGünü-DATE(YEAR(TakvimGünü),1,0)))","v":"Gün 242"},{"$f":"IF(DAY(TakvimGünü)=1,CONCATENATE(\"Hafta \",WEEKNUM(TakvimGünü),\"/Gün \",TakvimGünü-DATE(YEAR(TakvimGünü),1,0)),CONCATENATE(\"Gün \",TakvimGünü-DATE(YEAR(TakvimGünü),1,0)))","v":"Gün 243"},{"$f":"IF(DAY(TakvimGünü)=1,CONCATENATE(\"Hafta \",WEEKNUM(TakvimGünü),\"/Gün \",TakvimGünü-DATE(YEAR(TakvimGünü),1,0)),CONCATENATE(\"Gün \",TakvimGünü-DATE(YEAR(TakvimGünü),1,0)))","v":"Hafta 35/Gün 244"}]
[]
[null,null,{"$f":"GünlerVeHaftalar+DATE(TakvimYılı,9,1)-WEEKDAY(DATE(TakvimYılı,9,1),(HaftaBaşlangıcı=\"PZT\")+1)+8","v":"2018-09-02"},"2018-09-03","2018-09-04","2018-09-05","2018-09-06","2018-09-07","2018-09-08"]
[null,null,{"$f":"IF(WEEKDAY(TakvimGünü)=HaftaBaşlangıçDeğeri,CONCATENATE(\"Hafta \",WEEKNUM(TakvimGünü),\"/Gün \",TakvimGünü-DATE(YEAR(TakvimGünü),1,0)),CONCATENATE(\"Gün \",TakvimGünü-DATE(YEAR(TakvimGünü),1,0)))","v":"Hafta 36/Gün 245"},{"$f":"IF(WEEKDAY(TakvimGünü)=HaftaBaşlangıçDeğeri,CONCATENATE(\"Hafta \",WEEKNUM(TakvimGünü),\"/Gün \",TakvimGünü-DATE(YEAR(TakvimGünü),1,0)),CONCATENATE(\"Gün \",TakvimGünü-DATE(YEAR(TakvimGünü),1,0)))","v":"Gün 246"},{"$f":"IF(WEEKDAY(TakvimGünü)=HaftaBaşlangıçDeğeri,CONCATENATE(\"Hafta \",WEEKNUM(TakvimGünü),\"/Gün \",TakvimGünü-DATE(YEAR(TakvimGünü),1,0)),CONCATENATE(\"Gün \",TakvimGünü-DATE(YEAR(TakvimGünü),1,0)))","v":"Gün 247"},{"$f":"IF(WEEKDAY(TakvimGünü)=HaftaBaşlangıçDeğeri,CONCATENATE(\"Hafta \",WEEKNUM(TakvimGünü),\"/Gün \",TakvimGünü-DATE(YEAR(TakvimGünü),1,0)),CONCATENATE(\"Gün \",TakvimGünü-DATE(YEAR(TakvimGünü),1,0)))","v":"Gün 248"},{"$f":"IF(WEEKDAY(TakvimGünü)=HaftaBaşlangıçDeğeri,CONCATENATE(\"Hafta \",WEEKNUM(TakvimGünü),\"/Gün \",TakvimGünü-DATE(YEAR(TakvimGünü),1,0)),CONCATENATE(\"Gün \",TakvimGünü-DATE(YEAR(TakvimGünü),1,0)))","v":"Gün 249"},{"$f":"IF(WEEKDAY(TakvimGünü)=HaftaBaşlangıçDeğeri,CONCATENATE(\"Hafta \",WEEKNUM(TakvimGünü),\"/Gün \",TakvimGünü-DATE(YEAR(TakvimGünü),1,0)),CONCATENATE(\"Gün \",TakvimGünü-DATE(YEAR(TakvimGünü),1,0)))","v":"Gün 250"},{"$f":"IF(WEEKDAY(TakvimGünü)=HaftaBaşlangıçDeğeri,CONCATENATE(\"Hafta \",WEEKNUM(TakvimGünü),\"/Gün \",TakvimGünü-DATE(YEAR(TakvimGünü),1,0)),CONCATENATE(\"Gün \",TakvimGünü-DATE(YEAR(TakvimGünü),1,0)))","v":"Gün 251"}]
[]
[null,null,{"$f":"GünlerVeHaftalar+DATE(TakvimYılı,9,1)-WEEKDAY(DATE(TakvimYılı,9,1),(HaftaBaşlangıcı=\"PZT\")+1)+15","v":"2018-09-09"},"2018-09-10","2018-09-11","2018-09-12","2018-09-13","2018-09-14","2018-09-15"]
[null,null,{"$f":"IF(WEEKDAY(TakvimGünü)=HaftaBaşlangıçDeğeri,CONCATENATE(\"Hafta \",WEEKNUM(TakvimGünü),\"/Gün \",TakvimGünü-DATE(YEAR(TakvimGünü),1,0)),CONCATENATE(\"Gün \",TakvimGünü-DATE(YEAR(TakvimGünü),1,0)))","v":"Hafta 37/Gün 252"},{"$f":"IF(WEEKDAY(TakvimGünü)=HaftaBaşlangıçDeğeri,CONCATENATE(\"Hafta \",WEEKNUM(TakvimGünü),\"/Gün \",TakvimGünü-DATE(YEAR(TakvimGünü),1,0)),CONCATENATE(\"Gün \",TakvimGünü-DATE(YEAR(TakvimGünü),1,0)))","v":"Gün 253"},{"$f":"IF(WEEKDAY(TakvimGünü)=HaftaBaşlangıçDeğeri,CONCATENATE(\"Hafta \",WEEKNUM(TakvimGünü),\"/Gün \",TakvimGünü-DATE(YEAR(TakvimGünü),1,0)),CONCATENATE(\"Gün \",TakvimGünü-DATE(YEAR(TakvimGünü),1,0)))","v":"Gün 254"},{"$f":"IF(WEEKDAY(TakvimGünü)=HaftaBaşlangıçDeğeri,CONCATENATE(\"Hafta \",WEEKNUM(TakvimGünü),\"/Gün \",TakvimGünü-DATE(YEAR(TakvimGünü),1,0)),CONCATENATE(\"Gün \",TakvimGünü-DATE(YEAR(TakvimGünü),1,0)))","v":"Gün 255"},{"$f":"IF(WEEKDAY(TakvimGünü)=HaftaBaşlangıçDeğeri,CONCATENATE(\"Hafta \",WEEKNUM(TakvimGünü),\"/Gün \",TakvimGünü-DATE(YEAR(TakvimGünü),1,0)),CONCATENATE(\"Gün \",TakvimGünü-DATE(YEAR(TakvimGünü),1,0)))","v":"Gün 256"},{"$f":"IF(WEEKDAY(TakvimGünü)=HaftaBaşlangıçDeğeri,CONCATENATE(\"Hafta \",WEEKNUM(TakvimGünü),\"/Gün \",TakvimGünü-DATE(YEAR(TakvimGünü),1,0)),CONCATENATE(\"Gün \",TakvimGünü-DATE(YEAR(TakvimGünü),1,0)))","v":"Gün 257"},{"$f":"IF(WEEKDAY(TakvimGünü)=HaftaBaşlangıçDeğeri,CONCATENATE(\"Hafta \",WEEKNUM(TakvimGünü),\"/Gün \",TakvimGünü-DATE(YEAR(TakvimGünü),1,0)),CONCATENATE(\"Gün \",TakvimGünü-DATE(YEAR(TakvimGünü),1,0)))","v":"Gün 258"}]
[]
[null,null,{"$f":"GünlerVeHaftalar+DATE(TakvimYılı,9,1)-WEEKDAY(DATE(TakvimYılı,9,1),(HaftaBaşlangıcı=\"PZT\")+1)+22","v":"2018-09-16"},"2018-09-17","2018-09-18","2018-09-19","2018-09-20","2018-09-21","2018-09-22"]
[null,null,{"$f":"IF(WEEKDAY(TakvimGünü)=HaftaBaşlangıçDeğeri,CONCATENATE(\"Hafta \",WEEKNUM(TakvimGünü),\"/Gün \",TakvimGünü-DATE(YEAR(TakvimGünü),1,0)),CONCATENATE(\"Gün \",TakvimGünü-DATE(YEAR(TakvimGünü),1,0)))","v":"Hafta 38/Gün 259"},{"$f":"IF(WEEKDAY(TakvimGünü)=HaftaBaşlangıçDeğeri,CONCATENATE(\"Hafta \",WEEKNUM(TakvimGünü),\"/Gün \",TakvimGünü-DATE(YEAR(TakvimGünü),1,0)),CONCATENATE(\"Gün \",TakvimGünü-DATE(YEAR(TakvimGünü),1,0)))","v":"Gün 260"},{"$f":"IF(WEEKDAY(TakvimGünü)=HaftaBaşlangıçDeğeri,CONCATENATE(\"Hafta \",WEEKNUM(TakvimGünü),\"/Gün \",TakvimGünü-DATE(YEAR(TakvimGünü),1,0)),CONCATENATE(\"Gün \",TakvimGünü-DATE(YEAR(TakvimGünü),1,0)))","v":"Gün 261"},{"$f":"IF(WEEKDAY(TakvimGünü)=HaftaBaşlangıçDeğeri,CONCATENATE(\"Hafta \",WEEKNUM(TakvimGünü),\"/Gün \",TakvimGünü-DATE(YEAR(TakvimGünü),1,0)),CONCATENATE(\"Gün \",TakvimGünü-DATE(YEAR(TakvimGünü),1,0)))","v":"Gün 262"},{"$f":"IF(WEEKDAY(TakvimGünü)=HaftaBaşlangıçDeğeri,CONCATENATE(\"Hafta \",WEEKNUM(TakvimGünü),\"/Gün \",TakvimGünü-DATE(YEAR(TakvimGünü),1,0)),CONCATENATE(\"Gün \",TakvimGünü-DATE(YEAR(TakvimGünü),1,0)))","v":"Gün 263"},{"$f":"IF(WEEKDAY(TakvimGünü)=HaftaBaşlangıçDeğeri,CONCATENATE(\"Hafta \",WEEKNUM(TakvimGünü),\"/Gün \",TakvimGünü-DATE(YEAR(TakvimGünü),1,0)),CONCATENATE(\"Gün \",TakvimGünü-DATE(YEAR(TakvimGünü),1,0)))","v":"Gün 264"},{"$f":"IF(WEEKDAY(TakvimGünü)=HaftaBaşlangıçDeğeri,CONCATENATE(\"Hafta \",WEEKNUM(TakvimGünü),\"/Gün \",TakvimGünü-DATE(YEAR(TakvimGünü),1,0)),CONCATENATE(\"Gün \",TakvimGünü-DATE(YEAR(TakvimGünü),1,0)))","v":"Gün 265"}]
[]
[null,null,{"$f":"GünlerVeHaftalar+DATE(TakvimYılı,9,1)-WEEKDAY(DATE(TakvimYılı,9,1),(HaftaBaşlangıcı=\"PZT\")+1)+29","v":"2018-09-23"},"2018-09-24","2018-09-25","2018-09-26","2018-09-27","2018-09-28","2018-09-29"]
[null,null,{"$f":"IF(WEEKDAY(TakvimGünü)=HaftaBaşlangıçDeğeri,CONCATENATE(\"Hafta \",WEEKNUM(TakvimGünü),\"/Gün \",TakvimGünü-DATE(YEAR(TakvimGünü),1,0)),CONCATENATE(\"Gün \",TakvimGünü-DATE(YEAR(TakvimGünü),1,0)))","v":"Hafta 39/Gün 266"},{"$f":"IF(WEEKDAY(TakvimGünü)=HaftaBaşlangıçDeğeri,CONCATENATE(\"Hafta \",WEEKNUM(TakvimGünü),\"/Gün \",TakvimGünü-DATE(YEAR(TakvimGünü),1,0)),CONCATENATE(\"Gün \",TakvimGünü-DATE(YEAR(TakvimGünü),1,0)))","v":"Gün 267"},{"$f":"IF(WEEKDAY(TakvimGünü)=HaftaBaşlangıçDeğeri,CONCATENATE(\"Hafta \",WEEKNUM(TakvimGünü),\"/Gün \",TakvimGünü-DATE(YEAR(TakvimGünü),1,0)),CONCATENATE(\"Gün \",TakvimGünü-DATE(YEAR(TakvimGünü),1,0)))","v":"Gün 268"},{"$f":"IF(WEEKDAY(TakvimGünü)=HaftaBaşlangıçDeğeri,CONCATENATE(\"Hafta \",WEEKNUM(TakvimGünü),\"/Gün \",TakvimGünü-DATE(YEAR(TakvimGünü),1,0)),CONCATENATE(\"Gün \",TakvimGünü-DATE(YEAR(TakvimGünü),1,0)))","v":"Gün 269"},{"$f":"IF(WEEKDAY(TakvimGünü)=HaftaBaşlangıçDeğeri,CONCATENATE(\"Hafta \",WEEKNUM(TakvimGünü),\"/Gün \",TakvimGünü-DATE(YEAR(TakvimGünü),1,0)),CONCATENATE(\"Gün \",TakvimGünü-DATE(YEAR(TakvimGünü),1,0)))","v":"Gün 270"},{"$f":"IF(WEEKDAY(TakvimGünü)=HaftaBaşlangıçDeğeri,CONCATENATE(\"Hafta \",WEEKNUM(TakvimGünü),\"/Gün \",TakvimGünü-DATE(YEAR(TakvimGünü),1,0)),CONCATENATE(\"Gün \",TakvimGünü-DATE(YEAR(TakvimGünü),1,0)))","v":"Gün 271"},{"$f":"IF(WEEKDAY(TakvimGünü)=HaftaBaşlangıçDeğeri,CONCATENATE(\"Hafta \",WEEKNUM(TakvimGünü),\"/Gün \",TakvimGünü-DATE(YEAR(TakvimGünü),1,0)),CONCATENATE(\"Gün \",TakvimGünü-DATE(YEAR(TakvimGünü),1,0)))","v":"Gün 272"}]
[{"$nulls":4},"NOTLAR"]
[]
[null,null,{"$f":"GünlerVeHaftalar+DATE(TakvimYılı,9,1)-WEEKDAY(DATE(TakvimYılı,9,1),(HaftaBaşlangıcı=\"PZT\")+1)+36","v":"2018-09-30"},"2018-10-01"]
[null,null,{"$f":"IF(WEEKDAY(TakvimGünü)=HaftaBaşlangıçDeğeri,CONCATENATE(\"Hafta \",WEEKNUM(TakvimGünü),\"/Gün \",TakvimGünü-DATE(YEAR(TakvimGünü),1,0)),CONCATENATE(\"Gün \",TakvimGünü-DATE(YEAR(TakvimGünü),1,0)))","v":"Hafta 40/Gün 273"},{"$f":"IF(WEEKDAY(TakvimGünü)=HaftaBaşlangıçDeğeri,CONCATENATE(\"Hafta \",WEEKNUM(TakvimGünü),\"/Gün \",TakvimGünü-DATE(YEAR(TakvimGünü),1,0)),CONCATENATE(\"Gün \",TakvimGünü-DATE(YEAR(TakvimGünü),1,0)))","v":"Gün 274"}]

{"sheet":"EKİ","index":9,"n_rows":20,"n_cols":9,"rows_kept":20,"merged":[[16,2,17,2],[17,4,19,8]]}
[null,"EKİ",{"$f":"UPPER(TEXT(HaftaBaşlangıcı,\"ddd\"))","v":"PAZ"},{"$f":"UPPER(TEXT(D3,\"ggg\"))","v":"PZT"},"SAL","ÇAR","PER","CUM","CMT"]
[null,{"$f":"TakvimYılı","v":2018}]
[null,null,{"$f":"GünlerVeHaftalar+DATE(TakvimYılı,10,1)-WEEKDAY(DATE(TakvimYılı,10,1),(HaftaBaşlangıcı=\"PZT\")+1)+1","v":"2018-09-30"},"2018-10-01","2018-10-02","2018-10-03","2018-10-04","2018-10-05","2018-10-06"]
[null,null,{"$f":"IF(DAY(TakvimGünü)=1,CONCATENATE(\"Hafta \",WEEKNUM(TakvimGünü),\"/Gün \",TakvimGünü-DATE(YEAR(TakvimGünü),1,0)),CONCATENATE(\"Gün \",TakvimGünü-DATE(YEAR(TakvimGünü),1,0)))","v":"Gün 273"},{"$f":"IF(DAY(TakvimGünü)=1,CONCATENATE(\"Hafta \",WEEKNUM(TakvimGünü),\"/Gün \",TakvimGünü-DATE(YEAR(TakvimGünü),1,0)),CONCATENATE(\"Gün \",TakvimGünü-DATE(YEAR(TakvimGünü),1,0)))","v":"Hafta 40/Gün 274"},{"$f":"IF(DAY(TakvimGünü)=1,CONCATENATE(\"Hafta \",WEEKNUM(TakvimGünü),\"/Gün \",TakvimGünü-DATE(YEAR(TakvimGünü),1,0)),CONCATENATE(\"Gün \",TakvimGünü-DATE(YEAR(TakvimGünü),1,0)))","v":"Gün 275"},{"$f":"IF(DAY(TakvimGünü)=1,CONCATENATE(\"Hafta \",WEEKNUM(TakvimGünü),\"/Gün \",TakvimGünü-DATE(YEAR(TakvimGünü),1,0)),CONCATENATE(\"Gün \",TakvimGünü-DATE(YEAR(TakvimGünü),1,0)))","v":"Gün 276"},{"$f":"IF(DAY(TakvimGünü)=1,CONCATENATE(\"Hafta \",WEEKNUM(TakvimGünü),\"/Gün \",TakvimGünü-DATE(YEAR(TakvimGünü),1,0)),CONCATENATE(\"Gün \",TakvimGünü-DATE(YEAR(TakvimGünü),1,0)))","v":"Gün 277"},{"$f":"IF(DAY(TakvimGünü)=1,CONCATENATE(\"Hafta \",WEEKNUM(TakvimGünü),\"/Gün \",TakvimGünü-DATE(YEAR(TakvimGünü),1,0)),CONCATENATE(\"Gün \",TakvimGünü-DATE(YEAR(TakvimGünü),1,0)))","v":"Gün 278"},{"$f":"IF(DAY(TakvimGünü)=1,CONCATENATE(\"Hafta \",WEEKNUM(TakvimGünü),\"/Gün \",TakvimGünü-DATE(YEAR(TakvimGünü),1,0)),CONCATENATE(\"Gün \",TakvimGünü-DATE(YEAR(TakvimGünü),1,0)))","v":"Gün 279"}]
[]
[null,null,{"$f":"GünlerVeHaftalar+DATE(TakvimYılı,10,1)-WEEKDAY(DATE(TakvimYılı,10,1),(HaftaBaşlangıcı=\"PZT\")+1)+8","v":"2018-10-07"},"2018-10-08","2018-10-09","2018-10-10","2018-10-11","2018-10-12","2018-10-13"]
[null,null,{"$f":"IF(WEEKDAY(TakvimGünü)=HaftaBaşlangıçDeğeri,CONCATENATE(\"Hafta \",WEEKNUM(TakvimGünü),\"/Gün \",TakvimGünü-DATE(YEAR(TakvimGünü),1,0)),CONCATENATE(\"Gün \",TakvimGünü-DATE(YEAR(TakvimGünü),1,0)))","v":"Hafta 41/Gün 280"},{"$f":"IF(WEEKDAY(TakvimGünü)=HaftaBaşlangıçDeğeri,CONCATENATE(\"Hafta \",WEEKNUM(TakvimGünü),\"/Gün \",TakvimGünü-DATE(YEAR(TakvimGünü),1,0)),CONCATENATE(\"Gün \",TakvimGünü-DATE(YEAR(TakvimGünü),1,0)))","v":"Gün 281"},{"$f":"IF(WEEKDAY(TakvimGünü)=HaftaBaşlangıçDeğeri,CONCATENATE(\"Hafta \",WEEKNUM(TakvimGünü),\"/Gün \",TakvimGünü-DATE(YEAR(TakvimGünü),1,0)),CONCATENATE(\"Gün \",TakvimGünü-DATE(YEAR(TakvimGünü),1,0)))","v":"Gün 282"},{"$f":"IF(WEEKDAY(TakvimGünü)=HaftaBaşlangıçDeğeri,CONCATENATE(\"Hafta \",WEEKNUM(TakvimGünü),\"/Gün \",TakvimGünü-DATE(YEAR(TakvimGünü),1,0)),CONCATENATE(\"Gün \",TakvimGünü-DATE(YEAR(TakvimGünü),1,0)))","v":"Gün 283"},{"$f":"IF(WEEKDAY(TakvimGünü)=HaftaBaşlangıçDeğeri,CONCATENATE(\"Hafta \",WEEKNUM(TakvimGünü),\"/Gün \",TakvimGünü-DATE(YEAR(TakvimGünü),1,0)),CONCATENATE(\"Gün \",TakvimGünü-DATE(YEAR(TakvimGünü),1,0)))","v":"Gün 284"},{"$f":"IF(WEEKDAY(TakvimGünü)=HaftaBaşlangıçDeğeri,CONCATENATE(\"Hafta \",WEEKNUM(TakvimGünü),\"/Gün \",TakvimGünü-DATE(YEAR(TakvimGünü),1,0)),CONCATENATE(\"Gün \",TakvimGünü-DATE(YEAR(TakvimGünü),1,0)))","v":"Gün 285"},{"$f":"IF(WEEKDAY(TakvimGünü)=HaftaBaşlangıçDeğeri,CONCATENATE(\"Hafta \",WEEKNUM(TakvimGünü),\"/Gün \",TakvimGünü-DATE(YEAR(TakvimGünü),1,0)),CONCATENATE(\"Gün \",TakvimGünü-DATE(YEAR(TakvimGünü),1,0)))","v":"Gün 286"}]
[]
[null,null,{"$f":"GünlerVeHaftalar+DATE(TakvimYılı,10,1)-WEEKDAY(DATE(TakvimYılı,10,1),(HaftaBaşlangıcı=\"PZT\")+1)+15","v":"2018-10-14"},"2018-10-15","2018-10-16","2018-10-17","2018-10-18","2018-10-19","2018-10-20"]
[null,null,{"$f":"IF(WEEKDAY(TakvimGünü)=HaftaBaşlangıçDeğeri,CONCATENATE(\"Hafta \",WEEKNUM(TakvimGünü),\"/Gün \",TakvimGünü-DATE(YEAR(TakvimGünü),1,0)),CONCATENATE(\"Gün \",TakvimGünü-DATE(YEAR(TakvimGünü),1,0)))","v":"Hafta 42/Gün 287"},{"$f":"IF(WEEKDAY(TakvimGünü)=HaftaBaşlangıçDeğeri,CONCATENATE(\"Hafta \",WEEKNUM(TakvimGünü),\"/Gün \",TakvimGünü-DATE(YEAR(TakvimGünü),1,0)),CONCATENATE(\"Gün \",TakvimGünü-DATE(YEAR(TakvimGünü),1,0)))","v":"Gün 288"},{"$f":"IF(WEEKDAY(TakvimGünü)=HaftaBaşlangıçDeğeri,CONCATENATE(\"Hafta \",WEEKNUM(TakvimGünü),\"/Gün \",TakvimGünü-DATE(YEAR(TakvimGünü),1,0)),CONCATENATE(\"Gün \",TakvimGünü-DATE(YEAR(TakvimGünü),1,0)))","v":"Gün 289"},{"$f":"IF(WEEKDAY(TakvimGünü)=HaftaBaşlangıçDeğeri,CONCATENATE(\"Hafta \",WEEKNUM(TakvimGünü),\"/Gün \",TakvimGünü-DATE(YEAR(TakvimGünü),1,0)),CONCATENATE(\"Gün \",TakvimGünü-DATE(YEAR(TakvimGünü),1,0)))","v":"Gün 290"},{"$f":"IF(WEEKDAY(TakvimGünü)=HaftaBaşlangıçDeğeri,CONCATENATE(\"Hafta \",WEEKNUM(TakvimGünü),\"/Gün \",TakvimGünü-DATE(YEAR(TakvimGünü),1,0)),CONCATENATE(\"Gün \",TakvimGünü-DATE(YEAR(TakvimGünü),1,0)))","v":"Gün 291"},{"$f":"IF(WEEKDAY(TakvimGünü)=HaftaBaşlangıçDeğeri,CONCATENATE(\"Hafta \",WEEKNUM(TakvimGünü),\"/Gün \",TakvimGünü-DATE(YEAR(TakvimGünü),1,0)),CONCATENATE(\"Gün \",TakvimGünü-DATE(YEAR(TakvimGünü),1,0)))","v":"Gün 292"},{"$f":"IF(WEEKDAY(TakvimGünü)=HaftaBaşlangıçDeğeri,CONCATENATE(\"Hafta \",WEEKNUM(TakvimGünü),\"/Gün \",TakvimGünü-DATE(YEAR(TakvimGünü),1,0)),CONCATENATE(\"Gün \",TakvimGünü-DATE(YEAR(TakvimGünü),1,0)))","v":"Gün 293"}]
[]
[null,null,{"$f":"GünlerVeHaftalar+DATE(TakvimYılı,10,1)-WEEKDAY(DATE(TakvimYılı,10,1),(HaftaBaşlangıcı=\"PZT\")+1)+22","v":"2018-10-21"},"2018-10-22","2018-10-23","2018-10-24","2018-10-25","2018-10-26","2018-10-27"]
[null,null,{"$f":"IF(WEEKDAY(TakvimGünü)=HaftaBaşlangıçDeğeri,CONCATENATE(\"Hafta \",WEEKNUM(TakvimGünü),\"/Gün \",TakvimGünü-DATE(YEAR(TakvimGünü),1,0)),CONCATENATE(\"Gün \",TakvimGünü-DATE(YEAR(TakvimGünü),1,0)))","v":"Hafta 43/Gün 294"},{"$f":"IF(WEEKDAY(TakvimGünü)=HaftaBaşlangıçDeğeri,CONCATENATE(\"Hafta \",WEEKNUM(TakvimGünü),\"/Gün \",TakvimGünü-DATE(YEAR(TakvimGünü),1,0)),CONCATENATE(\"Gün \",TakvimGünü-DATE(YEAR(TakvimGünü),1,0)))","v":"Gün 295"},{"$f":"IF(WEEKDAY(TakvimGünü)=HaftaBaşlangıçDeğeri,CONCATENATE(\"Hafta \",WEEKNUM(TakvimGünü),\"/Gün \",TakvimGünü-DATE(YEAR(TakvimGünü),1,0)),CONCATENATE(\"Gün \",TakvimGünü-DATE(YEAR(TakvimGünü),1,0)))","v":"Gün 296"},{"$f":"IF(WEEKDAY(TakvimGünü)=HaftaBaşlangıçDeğeri,CONCATENATE(\"Hafta \",WEEKNUM(TakvimGünü),\"/Gün \",TakvimGünü-DATE(YEAR(TakvimGünü),1,0)),CONCATENATE(\"Gün \",TakvimGünü-DATE(YEAR(TakvimGünü),1,0)))","v":"Gün 297"},{"$f":"IF(WEEKDAY(TakvimGünü)=HaftaBaşlangıçDeğeri,CONCATENATE(\"Hafta \",WEEKNUM(TakvimGünü),\"/Gün \",TakvimGünü-DATE(YEAR(TakvimGünü),1,0)),CONCATENATE(\"Gün \",TakvimGünü-DATE(YEAR(TakvimGünü),1,0)))","v":"Gün 298"},{"$f":"IF(WEEKDAY(TakvimGünü)=HaftaBaşlangıçDeğeri,CONCATENATE(\"Hafta \",WEEKNUM(TakvimGünü),\"/Gün \",TakvimGünü-DATE(YEAR(TakvimGünü),1,0)),CONCATENATE(\"Gün \",TakvimGünü-DATE(YEAR(TakvimGünü),1,0)))","v":"Gün 299"},{"$f":"IF(WEEKDAY(TakvimGünü)=HaftaBaşlangıçDeğeri,CONCATENATE(\"Hafta \",WEEKNUM(TakvimGünü),\"/Gün \",TakvimGünü-DATE(YEAR(TakvimGünü),1,0)),CONCATENATE(\"Gün \",TakvimGünü-DATE(YEAR(TakvimGünü),1,0)))","v":"Gün 300"}]
[]
[null,null,{"$f":"GünlerVeHaftalar+DATE(TakvimYılı,10,1)-WEEKDAY(DATE(TakvimYılı,10,1),(HaftaBaşlangıcı=\"PZT\")+1)+29","v":"2018-10-28"},"2018-10-29","2018-10-30","2018-10-31","2018-11-01","2018-11-02","2018-11-03"]
[null,null,{"$f":"IF(WEEKDAY(TakvimGünü)=HaftaBaşlangıçDeğeri,CONCATENATE(\"Hafta \",WEEKNUM(TakvimGünü),\"/Gün \",TakvimGünü-DATE(YEAR(TakvimGünü),1,0)),CONCATENATE(\"Gün \",TakvimGünü-DATE(YEAR(TakvimGünü),1,0)))","v":"Hafta 44/Gün 301"},{"$f":"IF(WEEKDAY(TakvimGünü)=HaftaBaşlangıçDeğeri,CONCATENATE(\"Hafta \",WEEKNUM(TakvimGünü),\"/Gün \",TakvimGünü-DATE(YEAR(TakvimGünü),1,0)),CONCATENATE(\"Gün \",TakvimGünü-DATE(YEAR(TakvimGünü),1,0)))","v":"Gün 302"},{"$f":"IF(WEEKDAY(TakvimGünü)=HaftaBaşlangıçDeğeri,CONCATENATE(\"Hafta \",WEEKNUM(TakvimGünü),\"/Gün \",TakvimGünü-DATE(YEAR(TakvimGünü),1,0)),CONCATENATE(\"Gün \",TakvimGünü-DATE(YEAR(TakvimGünü),1,0)))","v":"Gün 303"},{"$f":"IF(WEEKDAY(TakvimGünü)=HaftaBaşlangıçDeğeri,CONCATENATE(\"Hafta \",WEEKNUM(TakvimGünü),\"/Gün \",TakvimGünü-DATE(YEAR(TakvimGünü),1,0)),CONCATENATE(\"Gün \",TakvimGünü-DATE(YEAR(TakvimGünü),1,0)))","v":"Gün 304"},{"$f":"IF(WEEKDAY(TakvimGünü)=HaftaBaşlangıçDeğeri,CONCATENATE(\"Hafta \",WEEKNUM(TakvimGünü),\"/Gün \",TakvimGünü-DATE(YEAR(TakvimGünü),1,0)),CONCATENATE(\"Gün \",TakvimGünü-DATE(YEAR(TakvimGünü),1,0)))","v":"Gün 305"},{"$f":"IF(WEEKDAY(TakvimGünü)=HaftaBaşlangıçDeğeri,CONCATENATE(\"Hafta \",WEEKNUM(TakvimGünü),\"/Gün \",TakvimGünü-DATE(YEAR(TakvimGünü),1,0)),CONCATENATE(\"Gün \",TakvimGünü-DATE(YEAR(TakvimGünü),1,0)))","v":"Gün 306"},{"$f":"IF(WEEKDAY(TakvimGünü)=HaftaBaşlangıçDeğeri,CONCATENATE(\"Hafta \",WEEKNUM(TakvimGünü),\"/Gün \",TakvimGünü-DATE(YEAR(TakvimGünü),1,0)),CONCATENATE(\"Gün \",TakvimGünü-DATE(YEAR(TakvimGünü),1,0)))","v":"Gün 307"}]
[{"$nulls":4},"NOTLAR"]
[]
[null,null,{"$f":"GünlerVeHaftalar+DATE(TakvimYılı,10,1)-WEEKDAY(DATE(TakvimYılı,10,1),(HaftaBaşlangıcı=\"PZT\")+1)+36","v":"2018-11-04"},"2018-11-05"]
[null,null,{"$f":"IF(WEEKDAY(TakvimGünü)=HaftaBaşlangıçDeğeri,CONCATENATE(\"Hafta \",WEEKNUM(TakvimGünü),\"/Gün \",TakvimGünü-DATE(YEAR(TakvimGünü),1,0)),CONCATENATE(\"Gün \",TakvimGünü-DATE(YEAR(TakvimGünü),1,0)))","v":"Hafta 45/Gün 308"},{"$f":"IF(WEEKDAY(TakvimGünü)=HaftaBaşlangıçDeğeri,CONCATENATE(\"Hafta \",WEEKNUM(TakvimGünü),\"/Gün \",TakvimGünü-DATE(YEAR(TakvimGünü),1,0)),CONCATENATE(\"Gün \",TakvimGünü-DATE(YEAR(TakvimGünü),1,0)))","v":"Gün 309"}]

{"sheet":"KAS","index":10,"n_rows":20,"n_cols":9,"rows_kept":20,"merged":[[16,2,17,2],[17,4,19,8]]}
[null,"KAS",{"$f":"UPPER(TEXT(HaftaBaşlangıcı,\"ddd\"))","v":"PAZ"},{"$f":"UPPER(TEXT(D3,\"ggg\"))","v":"PZT"},"SAL","ÇAR","PER","CUM","CMT"]
[null,{"$f":"TakvimYılı","v":2018}]
[null,null,{"$f":"GünlerVeHaftalar+DATE(TakvimYılı,11,1)-WEEKDAY(DATE(TakvimYılı,11,1),(HaftaBaşlangıcı=\"PZT\")+1)+1","v":"2018-10-28"},"2018-10-29","2018-10-30","2018-10-31","2018-11-01","2018-11-02","2018-11-03"]
[null,null,{"$f":"IF(DAY(TakvimGünü)=1,CONCATENATE(\"Hafta \",WEEKNUM(TakvimGünü),\"/Gün \",TakvimGünü-DATE(YEAR(TakvimGünü),1,0)),CONCATENATE(\"Gün \",TakvimGünü-DATE(YEAR(TakvimGünü),1,0)))","v":"Gün 301"},{"$f":"IF(DAY(TakvimGünü)=1,CONCATENATE(\"Hafta \",WEEKNUM(TakvimGünü),\"/Gün \",TakvimGünü-DATE(YEAR(TakvimGünü),1,0)),CONCATENATE(\"Gün \",TakvimGünü-DATE(YEAR(TakvimGünü),1,0)))","v":"Gün 302"},{"$f":"IF(DAY(TakvimGünü)=1,CONCATENATE(\"Hafta \",WEEKNUM(TakvimGünü),\"/Gün \",TakvimGünü-DATE(YEAR(TakvimGünü),1,0)),CONCATENATE(\"Gün \",TakvimGünü-DATE(YEAR(TakvimGünü),1,0)))","v":"Gün 303"},{"$f":"IF(DAY(TakvimGünü)=1,CONCATENATE(\"Hafta \",WEEKNUM(TakvimGünü),\"/Gün \",TakvimGünü-DATE(YEAR(TakvimGünü),1,0)),CONCATENATE(\"Gün \",TakvimGünü-DATE(YEAR(TakvimGünü),1,0)))","v":"Gün 304"},{"$f":"IF(DAY(TakvimGünü)=1,CONCATENATE(\"Hafta \",WEEKNUM(TakvimGünü),\"/Gün \",TakvimGünü-DATE(YEAR(TakvimGünü),1,0)),CONCATENATE(\"Gün \",TakvimGünü-DATE(YEAR(TakvimGünü),1,0)))","v":"Hafta 44/Gün 305"},{"$f":"IF(DAY(TakvimGünü)=1,CONCATENATE(\"Hafta \",WEEKNUM(TakvimGünü),\"/Gün \",TakvimGünü-DATE(YEAR(TakvimGünü),1,0)),CONCATENATE(\"Gün \",TakvimGünü-DATE(YEAR(TakvimGünü),1,0)))","v":"Gün 306"},{"$f":"IF(DAY(TakvimGünü)=1,CONCATENATE(\"Hafta \",WEEKNUM(TakvimGünü),\"/Gün \",TakvimGünü-DATE(YEAR(TakvimGünü),1,0)),CONCATENATE(\"Gün \",TakvimGünü-DATE(YEAR(TakvimGünü),1,0)))","v":"Gün 307"}]
[]
[null,null,{"$f":"GünlerVeHaftalar+DATE(TakvimYılı,11,1)-WEEKDAY(DATE(TakvimYılı,11,1),(HaftaBaşlangıcı=\"PZT\")+1)+8","v":"2018-11-04"},"2018-11-05","2018-11-06","2018-11-07","2018-11-08","2018-11-09","2018-11-10"]
[null,null,{"$f":"IF(WEEKDAY(TakvimGünü)=HaftaBaşlangıçDeğeri,CONCATENATE(\"Hafta \",WEEKNUM(TakvimGünü),\"/Gün \",TakvimGünü-DATE(YEAR(TakvimGünü),1,0)),CONCATENATE(\"Gün \",TakvimGünü-DATE(YEAR(TakvimGünü),1,0)))","v":"Hafta 45/Gün 308"},{"$f":"IF(WEEKDAY(TakvimGünü)=HaftaBaşlangıçDeğeri,CONCATENATE(\"Hafta \",WEEKNUM(TakvimGünü),\"/Gün \",TakvimGünü-DATE(YEAR(TakvimGünü),1,0)),CONCATENATE(\"Gün \",TakvimGünü-DATE(YEAR(TakvimGünü),1,0)))","v":"Gün 309"},{"$f":"IF(WEEKDAY(TakvimGünü)=HaftaBaşlangıçDeğeri,CONCATENATE(\"Hafta \",WEEKNUM(TakvimGünü),\"/Gün \",TakvimGünü-DATE(YEAR(TakvimGünü),1,0)),CONCATENATE(\"Gün \",TakvimGünü-DATE(YEAR(TakvimGünü),1,0)))","v":"Gün 310"},{"$f":"IF(WEEKDAY(TakvimGünü)=HaftaBaşlangıçDeğeri,CONCATENATE(\"Hafta \",WEEKNUM(TakvimGünü),\"/Gün \",TakvimGünü-DATE(YEAR(TakvimGünü),1,0)),CONCATENATE(\"Gün \",TakvimGünü-DATE(YEAR(TakvimGünü),1,0)))","v":"Gün 311"},{"$f":"IF(WEEKDAY(TakvimGünü)=HaftaBaşlangıçDeğeri,CONCATENATE(\"Hafta \",WEEKNUM(TakvimGünü),\"/Gün \",TakvimGünü-DATE(YEAR(TakvimGünü),1,0)),CONCATENATE(\"Gün \",TakvimGünü-DATE(YEAR(TakvimGünü),1,0)))","v":"Gün 312"},{"$f":"IF(WEEKDAY(TakvimGünü)=HaftaBaşlangıçDeğeri,CONCATENATE(\"Hafta \",WEEKNUM(TakvimGünü),\"/Gün \",TakvimGünü-DATE(YEAR(TakvimGünü),1,0)),CONCATENATE(\"Gün \",TakvimGünü-DATE(YEAR(TakvimGünü),1,0)))","v":"Gün 313"},{"$f":"IF(WEEKDAY(TakvimGünü)=HaftaBaşlangıçDeğeri,CONCATENATE(\"Hafta \",WEEKNUM(TakvimGünü),\"/Gün \",TakvimGünü-DATE(YEAR(TakvimGünü),1,0)),CONCATENATE(\"Gün \",TakvimGünü-DATE(YEAR(TakvimGünü),1,0)))","v":"Gün 314"}]
[]
[null,null,{"$f":"GünlerVeHaftalar+DATE(TakvimYılı,11,1)-WEEKDAY(DATE(TakvimYılı,11,1),(HaftaBaşlangıcı=\"PZT\")+1)+15","v":"2018-11-11"},"2018-11-12","2018-11-13","2018-11-14","2018-11-15","2018-11-16","2018-11-17"]
[null,null,{"$f":"IF(WEEKDAY(TakvimGünü)=HaftaBaşlangıçDeğeri,CONCATENATE(\"Hafta \",WEEKNUM(TakvimGünü),\"/Gün \",TakvimGünü-DATE(YEAR(TakvimGünü),1,0)),CONCATENATE(\"Gün \",TakvimGünü-DATE(YEAR(TakvimGünü),1,0)))","v":"Hafta 46/Gün 315"},{"$f":"IF(WEEKDAY(TakvimGünü)=HaftaBaşlangıçDeğeri,CONCATENATE(\"Hafta \",WEEKNUM(TakvimGünü),\"/Gün \",TakvimGünü-DATE(YEAR(TakvimGünü),1,0)),CONCATENATE(\"Gün \",TakvimGünü-DATE(YEAR(TakvimGünü),1,0)))","v":"Gün 316"},{"$f":"IF(WEEKDAY(TakvimGünü)=HaftaBaşlangıçDeğeri,CONCATENATE(\"Hafta \",WEEKNUM(TakvimGünü),\"/Gün \",TakvimGünü-DATE(YEAR(TakvimGünü),1,0)),CONCATENATE(\"Gün \",TakvimGünü-DATE(YEAR(TakvimGünü),1,0)))","v":"Gün 317"},{"$f":"IF(WEEKDAY(TakvimGünü)=HaftaBaşlangıçDeğeri,CONCATENATE(\"Hafta \",WEEKNUM(TakvimGünü),\"/Gün \",TakvimGünü-DATE(YEAR(TakvimGünü),1,0)),CONCATENATE(\"Gün \",TakvimGünü-DATE(YEAR(TakvimGünü),1,0)))","v":"Gün 318"},{"$f":"IF(WEEKDAY(TakvimGünü)=HaftaBaşlangıçDeğeri,CONCATENATE(\"Hafta \",WEEKNUM(TakvimGünü),\"/Gün \",TakvimGünü-DATE(YEAR(TakvimGünü),1,0)),CONCATENATE(\"Gün \",TakvimGünü-DATE(YEAR(TakvimGünü),1,0)))","v":"Gün 319"},{"$f":"IF(WEEKDAY(TakvimGünü)=HaftaBaşlangıçDeğeri,CONCATENATE(\"Hafta \",WEEKNUM(TakvimGünü),\"/Gün \",TakvimGünü-DATE(YEAR(TakvimGünü),1,0)),CONCATENATE(\"Gün \",TakvimGünü-DATE(YEAR(TakvimGünü),1,0)))","v":"Gün 320"},{"$f":"IF(WEEKDAY(TakvimGünü)=HaftaBaşlangıçDeğeri,CONCATENATE(\"Hafta \",WEEKNUM(TakvimGünü),\"/Gün \",TakvimGünü-DATE(YEAR(TakvimGünü),1,0)),CONCATENATE(\"Gün \",TakvimGünü-DATE(YEAR(TakvimGünü),1,0)))","v":"Gün 321"}]
[]
[null,null,{"$f":"GünlerVeHaftalar+DATE(TakvimYılı,11,1)-WEEKDAY(DATE(TakvimYılı,11,1),(HaftaBaşlangıcı=\"PZT\")+1)+22","v":"2018-11-18"},"2018-11-19","2018-11-20","2018-11-21","2018-11-22","2018-11-23","2018-11-24"]
[null,null,{"$f":"IF(WEEKDAY(TakvimGünü)=HaftaBaşlangıçDeğeri,CONCATENATE(\"Hafta \",WEEKNUM(TakvimGünü),\"/Gün \",TakvimGünü-DATE(YEAR(TakvimGünü),1,0)),CONCATENATE(\"Gün \",TakvimGünü-DATE(YEAR(TakvimGünü),1,0)))","v":"Hafta 47/Gün 322"},{"$f":"IF(WEEKDAY(TakvimGünü)=HaftaBaşlangıçDeğeri,CONCATENATE(\"Hafta \",WEEKNUM(TakvimGünü),\"/Gün \",TakvimGünü-DATE(YEAR(TakvimGünü),1,0)),CONCATENATE(\"Gün \",TakvimGünü-DATE(YEAR(TakvimGünü),1,0)))","v":"Gün 323"},{"$f":"IF(WEEKDAY(TakvimGünü)=HaftaBaşlangıçDeğeri,CONCATENATE(\"Hafta \",WEEKNUM(TakvimGünü),\"/Gün \",TakvimGünü-DATE(YEAR(TakvimGünü),1,0)),CONCATENATE(\"Gün \",TakvimGünü-DATE(YEAR(TakvimGünü),1,0)))","v":"Gün 324"},{"$f":"IF(WEEKDAY(TakvimGünü)=HaftaBaşlangıçDeğeri,CONCATENATE(\"Hafta \",WEEKNUM(TakvimGünü),\"/Gün \",TakvimGünü-DATE(YEAR(TakvimGünü),1,0)),CONCATENATE(\"Gün \",TakvimGünü-DATE(YEAR(TakvimGünü),1,0)))","v":"Gün 325"},{"$f":"IF(WEEKDAY(TakvimGünü)=HaftaBaşlangıçDeğeri,CONCATENATE(\"Hafta \",WEEKNUM(TakvimGünü),\"/Gün \",TakvimGünü-DATE(YEAR(TakvimGünü),1,0)),CONCATENATE(\"Gün \",TakvimGünü-DATE(YEAR(TakvimGünü),1,0)))","v":"Gün 326"},{"$f":"IF(WEEKDAY(TakvimGünü)=HaftaBaşlangıçDeğeri,CONCATENATE(\"Hafta \",WEEKNUM(TakvimGünü),\"/Gün \",TakvimGünü-DATE(YEAR(TakvimGünü),1,0)),CONCATENATE(\"Gün \",TakvimGünü-DATE(YEAR(TakvimGünü),1,0)))","v":"Gün 327"},{"$f":"IF(WEEKDAY(TakvimGünü)=HaftaBaşlangıçDeğeri,CONCATENATE(\"Hafta \",WEEKNUM(TakvimGünü),\"/Gün \",TakvimGünü-DATE(YEAR(TakvimGünü),1,0)),CONCATENATE(\"Gün \",TakvimGünü-DATE(YEAR(TakvimGünü),1,0)))","v":"Gün 328"}]
[]
[null,null,{"$f":"GünlerVeHaftalar+DATE(TakvimYılı,11,1)-WEEKDAY(DATE(TakvimYılı,11,1),(HaftaBaşlangıcı=\"PZT\")+1)+29","v":"2018-11-25"},"2018-11-26","2018-11-27","2018-11-28","2018-11-29","2018-11-30","2018-12-01"]
[null,null,{"$f":"IF(WEEKDAY(TakvimGünü)=HaftaBaşlangıçDeğeri,CONCATENATE(\"Hafta \",WEEKNUM(TakvimGünü),\"/Gün \",TakvimGünü-DATE(YEAR(TakvimGünü),1,0)),CONCATENATE(\"Gün \",TakvimGünü-DATE(YEAR(TakvimGünü),1,0)))","v":"Hafta 48/Gün 329"},{"$f":"IF(WEEKDAY(TakvimGünü)=HaftaBaşlangıçDeğeri,CONCATENATE(\"Hafta \",WEEKNUM(TakvimGünü),\"/Gün \",TakvimGünü-DATE(YEAR(TakvimGünü),1,0)),CONCATENATE(\"Gün \",TakvimGünü-DATE(YEAR(TakvimGünü),1,0)))","v":"Gün 330"},{"$f":"IF(WEEKDAY(TakvimGünü)=HaftaBaşlangıçDeğeri,CONCATENATE(\"Hafta \",WEEKNUM(TakvimGünü),\"/Gün \",TakvimGünü-DATE(YEAR(TakvimGünü),1,0)),CONCATENATE(\"Gün \",TakvimGünü-DATE(YEAR(TakvimGünü),1,0)))","v":"Gün 331"},{"$f":"IF(WEEKDAY(TakvimGünü)=HaftaBaşlangıçDeğeri,CONCATENATE(\"Hafta \",WEEKNUM(TakvimGünü),\"/Gün \",TakvimGünü-DATE(YEAR(TakvimGünü),1,0)),CONCATENATE(\"Gün \",TakvimGünü-DATE(YEAR(TakvimGünü),1,0)))","v":"Gün 332"},{"$f":"IF(WEEKDAY(TakvimGünü)=HaftaBaşlangıçDeğeri,CONCATENATE(\"Hafta \",WEEKNUM(TakvimGünü),\"/Gün \",TakvimGünü-DATE(YEAR(TakvimGünü),1,0)),CONCATENATE(\"Gün \",TakvimGünü-DATE(YEAR(TakvimGünü),1,0)))","v":"Gün 333"},{"$f":"IF(WEEKDAY(TakvimGünü)=HaftaBaşlangıçDeğeri,CONCATENATE(\"Hafta \",WEEKNUM(TakvimGünü),\"/Gün \",TakvimGünü-DATE(YEAR(TakvimGünü),1,0)),CONCATENATE(\"Gün \",TakvimGünü-DATE(YEAR(TakvimGünü),1,0)))","v":"Gün 334"},{"$f":"IF(WEEKDAY(TakvimGünü)=HaftaBaşlangıçDeğeri,CONCATENATE(\"Hafta \",WEEKNUM(TakvimGünü),\"/Gün \",TakvimGünü-DATE(YEAR(TakvimGünü),1,0)),CONCATENATE(\"Gün \",TakvimGünü-DATE(YEAR(TakvimGünü),1,0)))","v":"Gün 335"}]
[{"$nulls":4},"NOTLAR"]
[]
[null,null,{"$f":"GünlerVeHaftalar+DATE(TakvimYılı,11,1)-WEEKDAY(DATE(TakvimYılı,11,1),(HaftaBaşlangıcı=\"PZT\")+1)+36","v":"2018-12-02"},"2018-12-03"]
[null,null,{"$f":"IF(WEEKDAY(TakvimGünü)=HaftaBaşlangıçDeğeri,CONCATENATE(\"Hafta \",WEEKNUM(TakvimGünü),\"/Gün \",TakvimGünü-DATE(YEAR(TakvimGünü),1,0)),CONCATENATE(\"Gün \",TakvimGünü-DATE(YEAR(TakvimGünü),1,0)))","v":"Hafta 49/Gün 336"},{"$f":"IF(WEEKDAY(TakvimGünü)=HaftaBaşlangıçDeğeri,CONCATENATE(\"Hafta \",WEEKNUM(TakvimGünü),\"/Gün \",TakvimGünü-DATE(YEAR(TakvimGünü),1,0)),CONCATENATE(\"Gün \",TakvimGünü-DATE(YEAR(TakvimGünü),1,0)))","v":"Gün 337"}]

{"sheet":"ARA","index":11,"n_rows":20,"n_cols":9,"rows_kept":20,"merged":[[16,2,17,2],[17,4,19,8]]}
[null,"ARA",{"$f":"UPPER(TEXT(HaftaBaşlangıcı,\"ddd\"))","v":"PAZ"},{"$f":"UPPER(TEXT(D3,\"ggg\"))","v":"PZT"},"SAL","ÇAR","PER","CUM","CMT"]
[null,{"$f":"TakvimYılı","v":2018}]
[null,null,{"$f":"GünlerVeHaftalar+DATE(TakvimYılı,12,1)-WEEKDAY(DATE(TakvimYılı,12,1),(HaftaBaşlangıcı=\"PZT\")+1)+1","v":"2018-11-25"},"2018-11-26","2018-11-27","2018-11-28","2018-11-29","2018-11-30","2018-12-01"]
[null,null,{"$f":"IF(DAY(TakvimGünü)=1,CONCATENATE(\"Hafta \",WEEKNUM(TakvimGünü),\"/Gün \",TakvimGünü-DATE(YEAR(TakvimGünü),1,0)),CONCATENATE(\"Gün \",TakvimGünü-DATE(YEAR(TakvimGünü),1,0)))","v":"Gün 329"},{"$f":"IF(DAY(TakvimGünü)=1,CONCATENATE(\"Hafta \",WEEKNUM(TakvimGünü),\"/Gün \",TakvimGünü-DATE(YEAR(TakvimGünü),1,0)),CONCATENATE(\"Gün \",TakvimGünü-DATE(YEAR(TakvimGünü),1,0)))","v":"Gün 330"},{"$f":"IF(DAY(TakvimGünü)=1,CONCATENATE(\"Hafta \",WEEKNUM(TakvimGünü),\"/Gün \",TakvimGünü-DATE(YEAR(TakvimGünü),1,0)),CONCATENATE(\"Gün \",TakvimGünü-DATE(YEAR(TakvimGünü),1,0)))","v":"Gün 331"},{"$f":"IF(DAY(TakvimGünü)=1,CONCATENATE(\"Hafta \",WEEKNUM(TakvimGünü),\"/Gün \",TakvimGünü-DATE(YEAR(TakvimGünü),1,0)),CONCATENATE(\"Gün \",TakvimGünü-DATE(YEAR(TakvimGünü),1,0)))","v":"Gün 332"},{"$f":"IF(DAY(TakvimGünü)=1,CONCATENATE(\"Hafta \",WEEKNUM(TakvimGünü),\"/Gün \",TakvimGünü-DATE(YEAR(TakvimGünü),1,0)),CONCATENATE(\"Gün \",TakvimGünü-DATE(YEAR(TakvimGünü),1,0)))","v":"Gün 333"},{"$f":"IF(DAY(TakvimGünü)=1,CONCATENATE(\"Hafta \",WEEKNUM(TakvimGünü),\"/Gün \",TakvimGünü-DATE(YEAR(TakvimGünü),1,0)),CONCATENATE(\"Gün \",TakvimGünü-DATE(YEAR(TakvimGünü),1,0)))","v":"Gün 334"},{"$f":"IF(DAY(TakvimGünü)=1,CONCATENATE(\"Hafta \",WEEKNUM(TakvimGünü),\"/Gün \",TakvimGünü-DATE(YEAR(TakvimGünü),1,0)),CONCATENATE(\"Gün \",TakvimGünü-DATE(YEAR(TakvimGünü),1,0)))","v":"Hafta 48/Gün 335"}]
[]
[null,null,{"$f":"GünlerVeHaftalar+DATE(TakvimYılı,12,1)-WEEKDAY(DATE(TakvimYılı,12,1),(HaftaBaşlangıcı=\"PZT\")+1)+8","v":"2018-12-02"},"2018-12-03","2018-12-04","2018-12-05","2018-12-06","2018-12-07","2018-12-08"]
[null,null,{"$f":"IF(WEEKDAY(TakvimGünü)=HaftaBaşlangıçDeğeri,CONCATENATE(\"Hafta \",WEEKNUM(TakvimGünü),\"/Gün \",TakvimGünü-DATE(YEAR(TakvimGünü),1,0)),CONCATENATE(\"Gün \",TakvimGünü-DATE(YEAR(TakvimGünü),1,0)))","v":"Hafta 49/Gün 336"},{"$f":"IF(WEEKDAY(TakvimGünü)=HaftaBaşlangıçDeğeri,CONCATENATE(\"Hafta \",WEEKNUM(TakvimGünü),\"/Gün \",TakvimGünü-DATE(YEAR(TakvimGünü),1,0)),CONCATENATE(\"Gün \",TakvimGünü-DATE(YEAR(TakvimGünü),1,0)))","v":"Gün 337"},{"$f":"IF(WEEKDAY(TakvimGünü)=HaftaBaşlangıçDeğeri,CONCATENATE(\"Hafta \",WEEKNUM(TakvimGünü),\"/Gün \",TakvimGünü-DATE(YEAR(TakvimGünü),1,0)),CONCATENATE(\"Gün \",TakvimGünü-DATE(YEAR(TakvimGünü),1,0)))","v":"Gün 338"},{"$f":"IF(WEEKDAY(TakvimGünü)=HaftaBaşlangıçDeğeri,CONCATENATE(\"Hafta \",WEEKNUM(TakvimGünü),\"/Gün \",TakvimGünü-DATE(YEAR(TakvimGünü),1,0)),CONCATENATE(\"Gün \",TakvimGünü-DATE(YEAR(TakvimGünü),1,0)))","v":"Gün 339"},{"$f":"IF(WEEKDAY(TakvimGünü)=HaftaBaşlangıçDeğeri,CONCATENATE(\"Hafta \",WEEKNUM(TakvimGünü),\"/Gün \",TakvimGünü-DATE(YEAR(TakvimGünü),1,0)),CONCATENATE(\"Gün \",TakvimGünü-DATE(YEAR(TakvimGünü),1,0)))","v":"Gün 340"},{"$f":"IF(WEEKDAY(TakvimGünü)=HaftaBaşlangıçDeğeri,CONCATENATE(\"Hafta \",WEEKNUM(TakvimGünü),\"/Gün \",TakvimGünü-DATE(YEAR(TakvimGünü),1,0)),CONCATENATE(\"Gün \",TakvimGünü-DATE(YEAR(TakvimGünü),1,0)))","v":"Gün 341"},{"$f":"IF(WEEKDAY(TakvimGünü)=HaftaBaşlangıçDeğeri,CONCATENATE(\"Hafta \",WEEKNUM(TakvimGünü),\"/Gün \",TakvimGünü-DATE(YEAR(TakvimGünü),1,0)),CONCATENATE(\"Gün \",TakvimGünü-DATE(YEAR(TakvimGünü),1,0)))","v":"Gün 342"}]
[]
[null,null,{"$f":"GünlerVeHaftalar+DATE(TakvimYılı,12,1)-WEEKDAY(DATE(TakvimYılı,12,1),(HaftaBaşlangıcı=\"PZT\")+1)+15","v":"2018-12-09"},"2018-12-10","2018-12-11","2018-12-12","2018-12-13","2018-12-14","2018-12-15"]
[null,null,{"$f":"IF(WEEKDAY(TakvimGünü)=HaftaBaşlangıçDeğeri,CONCATENATE(\"Hafta \",WEEKNUM(TakvimGünü),\"/Gün \",TakvimGünü-DATE(YEAR(TakvimGünü),1,0)),CONCATENATE(\"Gün \",TakvimGünü-DATE(YEAR(TakvimGünü),1,0)))","v":"Hafta 50/Gün 343"},{"$f":"IF(WEEKDAY(TakvimGünü)=HaftaBaşlangıçDeğeri,CONCATENATE(\"Hafta \",WEEKNUM(TakvimGünü),\"/Gün \",TakvimGünü-DATE(YEAR(TakvimGünü),1,0)),CONCATENATE(\"Gün \",TakvimGünü-DATE(YEAR(TakvimGünü),1,0)))","v":"Gün 344"},{"$f":"IF(WEEKDAY(TakvimGünü)=HaftaBaşlangıçDeğeri,CONCATENATE(\"Hafta \",WEEKNUM(TakvimGünü),\"/Gün \",TakvimGünü-DATE(YEAR(TakvimGünü),1,0)),CONCATENATE(\"Gün \",TakvimGünü-DATE(YEAR(TakvimGünü),1,0)))","v":"Gün 345"},{"$f":"IF(WEEKDAY(TakvimGünü)=HaftaBaşlangıçDeğeri,CONCATENATE(\"Hafta \",WEEKNUM(TakvimGünü),\"/Gün \",TakvimGünü-DATE(YEAR(TakvimGünü),1,0)),CONCATENATE(\"Gün \",TakvimGünü-DATE(YEAR(TakvimGünü),1,0)))","v":"Gün 346"},{"$f":"IF(WEEKDAY(TakvimGünü)=HaftaBaşlangıçDeğeri,CONCATENATE(\"Hafta \",WEEKNUM(TakvimGünü),\"/Gün \",TakvimGünü-DATE(YEAR(TakvimGünü),1,0)),CONCATENATE(\"Gün \",TakvimGünü-DATE(YEAR(TakvimGünü),1,0)))","v":"Gün 347"},{"$f":"IF(WEEKDAY(TakvimGünü)=HaftaBaşlangıçDeğeri,CONCATENATE(\"Hafta \",WEEKNUM(TakvimGünü),\"/Gün \",TakvimGünü-DATE(YEAR(TakvimGünü),1,0)),CONCATENATE(\"Gün \",TakvimGünü-DATE(YEAR(TakvimGünü),1,0)))","v":"Gün 348"},{"$f":"IF(WEEKDAY(TakvimGünü)=HaftaBaşlangıçDeğeri,CONCATENATE(\"Hafta \",WEEKNUM(TakvimGünü),\"/Gün \",TakvimGünü-DATE(YEAR(TakvimGünü),1,0)),CONCATENATE(\"Gün \",TakvimGünü-DATE(YEAR(TakvimGünü),1,0)))","v":"Gün 349"}]
[]
[null,null,{"$f":"GünlerVeHaftalar+DATE(TakvimYılı,12,1)-WEEKDAY(DATE(TakvimYılı,12,1),(HaftaBaşlangıcı=\"PZT\")+1)+22","v":"2018-12-16"},"2018-12-17","2018-12-18","2018-12-19","2018-12-20","2018-12-21","2018-12-22"]
[null,null,{"$f":"IF(WEEKDAY(TakvimGünü)=HaftaBaşlangıçDeğeri,CONCATENATE(\"Hafta \",WEEKNUM(TakvimGünü),\"/Gün \",TakvimGünü-DATE(YEAR(TakvimGünü),1,0)),CONCATENATE(\"Gün \",TakvimGünü-DATE(YEAR(TakvimGünü),1,0)))","v":"Hafta 51/Gün 350"},{"$f":"IF(WEEKDAY(TakvimGünü)=HaftaBaşlangıçDeğeri,CONCATENATE(\"Hafta \",WEEKNUM(TakvimGünü),\"/Gün \",TakvimGünü-DATE(YEAR(TakvimGünü),1,0)),CONCATENATE(\"Gün \",TakvimGünü-DATE(YEAR(TakvimGünü),1,0)))","v":"Gün 351"},{"$f":"IF(WEEKDAY(TakvimGünü)=HaftaBaşlangıçDeğeri,CONCATENATE(\"Hafta \",WEEKNUM(TakvimGünü),\"/Gün \",TakvimGünü-DATE(YEAR(TakvimGünü),1,0)),CONCATENATE(\"Gün \",TakvimGünü-DATE(YEAR(TakvimGünü),1,0)))","v":"Gün 352"},{"$f":"IF(WEEKDAY(TakvimGünü)=HaftaBaşlangıçDeğeri,CONCATENATE(\"Hafta \",WEEKNUM(TakvimGünü),\"/Gün \",TakvimGünü-DATE(YEAR(TakvimGünü),1,0)),CONCATENATE(\"Gün \",TakvimGünü-DATE(YEAR(TakvimGünü),1,0)))","v":"Gün 353"},{"$f":"IF(WEEKDAY(TakvimGünü)=HaftaBaşlangıçDeğeri,CONCATENATE(\"Hafta \",WEEKNUM(TakvimGünü),\"/Gün \",TakvimGünü-DATE(YEAR(TakvimGünü),1,0)),CONCATENATE(\"Gün \",TakvimGünü-DATE(YEAR(TakvimGünü),1,0)))","v":"Gün 354"},{"$f":"IF(WEEKDAY(TakvimGünü)=HaftaBaşlangıçDeğeri,CONCATENATE(\"Hafta \",WEEKNUM(TakvimGünü),\"/Gün \",TakvimGünü-DATE(YEAR(TakvimGünü),1,0)),CONCATENATE(\"Gün \",TakvimGünü-DATE(YEAR(TakvimGünü),1,0)))","v":"Gün 355"},{"$f":"IF(WEEKDAY(TakvimGünü)=HaftaBaşlangıçDeğeri,CONCATENATE(\"Hafta \",WEEKNUM(TakvimGünü),\"/Gün \",TakvimGünü-DATE(YEAR(TakvimGünü),1,0)),CONCATENATE(\"Gün \",TakvimGünü-DATE(YEAR(TakvimGünü),1,0)))","v":"Gün 356"}]
[]
[null,null,{"$f":"GünlerVeHaftalar+DATE(TakvimYılı,12,1)-WEEKDAY(DATE(TakvimYılı,12,1),(HaftaBaşlangıcı=\"PZT\")+1)+29","v":"2018-12-23"},"2018-12-24","2018-12-25","2018-12-26","2018-12-27","2018-12-28","2018-12-29"]
[null,null,{"$f":"IF(WEEKDAY(TakvimGünü)=HaftaBaşlangıçDeğeri,CONCATENATE(\"Hafta \",WEEKNUM(TakvimGünü),\"/Gün \",TakvimGünü-DATE(YEAR(TakvimGünü),1,0)),CONCATENATE(\"Gün \",TakvimGünü-DATE(YEAR(TakvimGünü),1,0)))","v":"Hafta 52/Gün 357"},{"$f":"IF(WEEKDAY(TakvimGünü)=HaftaBaşlangıçDeğeri,CONCATENATE(\"Hafta \",WEEKNUM(TakvimGünü),\"/Gün \",TakvimGünü-DATE(YEAR(TakvimGünü),1,0)),CONCATENATE(\"Gün \",TakvimGünü-DATE(YEAR(TakvimGünü),1,0)))","v":"Gün 358"},{"$f":"IF(WEEKDAY(TakvimGünü)=HaftaBaşlangıçDeğeri,CONCATENATE(\"Hafta \",WEEKNUM(TakvimGünü),\"/Gün \",TakvimGünü-DATE(YEAR(TakvimGünü),1,0)),CONCATENATE(\"Gün \",TakvimGünü-DATE(YEAR(TakvimGünü),1,0)))","v":"Gün 359"},{"$f":"IF(WEEKDAY(TakvimGünü)=HaftaBaşlangıçDeğeri,CONCATENATE(\"Hafta \",WEEKNUM(TakvimGünü),\"/Gün \",TakvimGünü-DATE(YEAR(TakvimGünü),1,0)),CONCATENATE(\"Gün \",TakvimGünü-DATE(YEAR(TakvimGünü),1,0)))","v":"Gün 360"},{"$f":"IF(WEEKDAY(TakvimGünü)=HaftaBaşlangıçDeğeri,CONCATENATE(\"Hafta \",WEEKNUM(TakvimGünü),\"/Gün \",TakvimGünü-DATE(YEAR(TakvimGünü),1,0)),CONCATENATE(\"Gün \",TakvimGünü-DATE(YEAR(TakvimGünü),1,0)))","v":"Gün 361"},{"$f":"IF(WEEKDAY(TakvimGünü)=HaftaBaşlangıçDeğeri,CONCATENATE(\"Hafta \",WEEKNUM(TakvimGünü),\"/Gün \",TakvimGünü-DATE(YEAR(TakvimGünü),1,0)),CONCATENATE(\"Gün \",TakvimGünü-DATE(YEAR(TakvimGünü),1,0)))","v":"Gün 362"},{"$f":"IF(WEEKDAY(TakvimGünü)=HaftaBaşlangıçDeğeri,CONCATENATE(\"Hafta \",WEEKNUM(TakvimGünü),\"/Gün \",TakvimGünü-DATE(YEAR(TakvimGünü),1,0)),CONCATENATE(\"Gün \",TakvimGünü-DATE(YEAR(TakvimGünü),1,0)))","v":"Gün 363"}]
[{"$nulls":4},"NOTLAR"]
[]
[null,null,{"$f":"GünlerVeHaftalar+DATE(TakvimYılı,12,1)-WEEKDAY(DATE(TakvimYılı,12,1),(HaftaBaşlangıcı=\"PZT\")+1)+36","v":"2018-12-30"},"2018-12-31"]
[null,null,{"$f":"IF(WEEKDAY(TakvimGünü)=HaftaBaşlangıçDeğeri,CONCATENATE(\"Hafta \",WEEKNUM(TakvimGünü),\"/Gün \",TakvimGünü-DATE(YEAR(TakvimGünü),1,0)),CONCATENATE(\"Gün \",TakvimGünü-DATE(YEAR(TakvimGünü),1,0)))","v":"Hafta 53/Gün 364"},{"$f":"IF(WEEKDAY(TakvimGünü)=HaftaBaşlangıçDeğeri,CONCATENATE(\"Hafta \",WEEKNUM(TakvimGünü),\"/Gün \",TakvimGünü-DATE(YEAR(TakvimGünü),1,0)),CONCATENATE(\"Gün \",TakvimGünü-DATE(YEAR(TakvimGünü),1,0)))","v":"Gün 365"}]